Workbook

Sheet 基本項目 (hidden)
B2: 年度 | C2: 今日現在 | D2: 年金所得 基準日 | E2: 未就学児 基準日 | G2: 納期 | H2: 納期限 | I2: 国保加入の届出月 | L2: 該当 | M2: =SUM(入力!$BR$103) -> 0 | O2: 国保加入の届出月
B3: 7 | C3: =TODAY() -> 2025-02-03 | D3: =VALUE("R"&基本項目!$B$3&".1.1") -> 2025-01-01 | E3: =VALUE("R"&基本項目!$B$3+1&".4.1") -> 2026-04-01 | G3: 第１期 | H3: 2024-07-31 | I3: 4 | J3: 5 | K3: 6 | L3: =IF($O$3="","",IF(OR($O$3=I3,$O$3=J3,$O$3=K3),"〇","")) ->  | M3: =IF(L3="〇",SUM($P$5),"") ->  | O3: =IF(入力!$CP$8="","",入力!$CP$8) ->  | P3: 月
G4: 第２期 | H4: 2024-09-02 | I4: 7 | L4: =IF($O$3="","",IF(L3="〇","〇",IF(OR($O$3=I4,$O$3=J4,$O$3=K4),"〇",""))) ->  | M4: =IF(L4="","",IF(AND(L4="〇",COUNTIF(L$3:L4,"〇")=1),SUM($P$5),SUM($P$6))) -> 
G5: 第３期 | H5: 2024-09-30 | I5: 8 | M5: =IF(L5="","",IF(AND(L5="〇",COUNTIF(L$3:L5,"〇")=1),SUM($P$5),SUM($P$6))) ->  | O5: 当初金額 | P5: =IF(COUNTIF($L$3:$L$10,"〇")=0,"",SUM($M$2)-ROUNDDOWN(SUM($M$2)/COUNTIF($L$3:$L$10,"〇"),-2)*(COUNTIF($L$3:$L$10,"〇")-1)) -> 
G6: 第４期 | H6: 2024-10-31 | I6: 9 | M6: =IF(L6="","",IF(AND(L6="〇",COUNTIF(L$3:L6,"〇")=1),SUM($P$5),SUM($P$6))) ->  | O6: それ以外 | P6: =IF(COUNTIF($L$3:$L$10,"〇")=0,"",ROUNDDOWN(SUM($M$2)/COUNTIF($L$3:$L$10,"〇"),-2)) -> 
G7: 第５期 | H7: 2024-12-02 | I7: 10 | M7: =IF(L7="","",IF(AND(L7="〇",COUNTIF(L$3:L7,"〇")=1),SUM($P$5),SUM($P$6))) -> 
G8: 第６期 | H8: 2024-12-25 | I8: 11 | M8: =IF($O$3="","",IF(L8="","",IF(AND(L8="〇",COUNTIF(L$3:L8,"〇")=1),SUM($P$5),SUM($P$6)))) -> 
G9: 第７期 | H9: 2025-01-31 | I9: 12 | M9: =IF(L9="","",IF(AND(L9="〇",COUNTIF(L$3:L9,"〇")=1),SUM($P$5),SUM($P$6))) -> 
G10: 第８期 | H10: 2025-02-28 | I10: 1 | M10: =IF(L10="","",IF(AND(L10="〇",COUNTIF(L$3:L10,"〇")=1),SUM($P$5),SUM($P$6))) -> 
G11: 随時期１ | H11: 2025-03-31 | I11: 2 | L11: =IF($O$3="","",IF(OR($O$3=I11,$O$3=J11,$O$3=K11),"〇","")) ->  | M11: =IF(L11="〇",SUM($M$2),"") -> 
G12: 随時期２ | H12: 2025-06-02 | I12: 3 | L12: =IF($O$3="","",IF(OR($O$3=I12,$O$3=J12,$O$3=K12),"〇","")) ->  | M12: =IF(L12="〇",SUM($M$2),"") -> 
G13: 注：４月末納期限は現額のみ，なので，３月に新規加入届出は，５月末となる。

Sheet 入力
B1: ="令和"&DBCS(基本項目!$B$3)&"年度 国民健康保険税 簡易計算（概算）" -> 令和７年度 国民健康保険税 簡易計算（概算）
D2: 下の被保険者に入っていない擬主及び特定同一世帯所属者の総所得金額
D3: 下の被保険者に入っていない特定同一世帯所属者の人数 | AL3: =IF(AU2="","",IF(AU3="","人数→","")) -> 
D4: 世帯の軽減判定所得合計 ＝ 擬主 ＋ 被保険者 ＋ 特定同一世帯所属者 | AU4: =SUM(GD26) -> 0
D5: 軽減判定人数 | P5: =IF(SUM($AU$3,$GD$27)=0,0,SUM($AU$3,$GD$27)) -> 0 | W5: 軽減判定結果 ⇒ | AU5: =IF(国民健康保険税軽減早見表H26から!$AN$20="","",国民健康保険税軽減早見表H26から!$AN$20) -> 
D7: 平等割額の軽減特例措置 国保被保険者が後期高齢者医療への移行により，残る世帯員が国保単身世帯になった場合，世帯にかかる平等割額を減額する。 H24まで：1/2減額(5年間)，H25から：1/2減額(5年間)，6年目から1/4減額(3年間延長) | CP7: 国保加入の届出月 | DJ7: =IF(SUM(AY13:BE22)=0,"","該当あれば 入力") ->  | DY7: この下の「所得金額調整控除不要？」のエラーで，自分，同一生計配偶者，扶養親族のいずれかが特別障害者，又は２３歳未満の扶養親族がいる。という条件が無い場合は，エラーのままでＯＫ
CX8: 月
DJ9: =IF(DJ7="","","⇓") ->  | ET9: １２カ月すべての場合「○」は入力しなくてＯＫ 注：該当月数を指定する場合のみ「○」を入力
C10: 【被保険者の入力】
D11: 氏 名 | K11: 生年月日 | R11: 年齢 | U11: 年齢 直接 入力 | X11: 給与収入 | AE11: 給与所得 | AL11: 所得 金額 調整 控除 | AO11: 非自発的失業 | AR11: 非自発的失業 該当 30/100所得 | AY11: 公的年金収入 | BF11: 公的年金所得 | BM11: その他所得 | BT11: 給与収入の内 専従者 給与分収入額 | CA11: 純繰越 ﾏｲﾅｽ入力 | CH11: 雑繰越 ﾏｲﾅｽ入力 | CO11: 分離所得 特別控除前 | CV11: 分離所得 特別控除額 ﾌﾟﾗｽ入力 | DC11: 国保税 総所得金額 | DJ11: 年金所得に係る雑所得以外の 合計所得金額 | EO11: 給与 OR 年金 | ET11: 月途中の加入は該当するが，月途中に抜ける場合はその月は非該当 | GD11: 該当 月数 | GH11: 世帯 月数 | GL11: 障害 | GT11: 該当月判定用（介護） | ID11: 介護 該当 | IH11: 国保 該当 | IN11: 該当月判定用（後期） | JX11: 後期 該当 | KB11: 国保 該当 | KH11: 該当月判定用（修正後）介護 | LR11: 介護 該当 | LV11: 国保 該当 | LZ11: 障害 | ME11: 該当月判定用（修正後）後期 | NO11: 後期 該当 | NS11: 国保 該当 | NW11: 障害 | OB11: 軽減判定用所得計算
DY12: ↓↓↓↓↓↓ | ET12: 4 | EW12: 5 | EZ12: 6 | FC12: 7 | FF12: 8 | FI12: 9 | FL12: 10 | FO12: 11 | FR12: 12 | FU12: 1 | FX12: 2 | GA12: 3 | GT12: 4 | GW12: 5 | GZ12: 6 | HC12: 7 | HF12: 8 | HI12: 9 | HL12: 10 | HO12: 11 | HR12: 12 | HU12: 1 | HX12: 2 | IA12: 3 | ID12: 月数計 | IH12: 月数計 | IN12: 4 | IQ12: 5 | IT12: 6 | IW12: 7 | IZ12: 8 | JC12: 9 | JF12: 10 | JI12: 11 | JL12: 12 | JO12: 1 | JR12: 2 | JU12: 3 | JX12: 月数計 | KB12: 月数計 | KH12: 4 | KK12: 5 | KN12: 6 | KQ12: 7 | KT12: 8 | KW12: 9 | KZ12: 10 | LC12: 11 | LF12: 12 | LI12: 1 | LL12: 2 | LO12: 3 | LR12: 月数計 | LV12: 月数計 | ME12: 4 | MH12: 5 | MK12: 6 | MN12: 7 | MQ12: 8 | MT12: 9 | MW12: 10 | MZ12: 11 | NC12: 12 | NF12: 1 | NI12: 2 | NL12: 3 | NO12: 月数計 | NS12: 月数計 | OB12: 4 | OE12: 5 | OH12: 6 | OK12: 7 | ON12: 8 | OQ12: 9 | OT12: 10 | OW12: 11 | OZ12: 12 | PC12: 1 | PF12: 2 | PI12: 3
B13: 1 | R13: =IF(AND($U13="",$K13=""),"",IF($U13="",所得計算!$I6,$U13)) ->  | AE13: =IF(所得計算!AI$4="","",所得計算!AI$4) ->  | AR13: =IF($AE13="","",IF($AO13=1,ROUNDDOWN(SUM($AE13)*0.3,0),"")) ->  | BF13: =IF(所得計算!AI$23="","",所得計算!AI$23) ->  | DC13: =IF(R13="","",IF(AO13=1,SUM(AR13,BF13,BM13,CA13,CO13)-SUM(CV13),SUM(AE13,BF13,BM13,CA13,CO13)-SUM(CV13))) ->  | DQ13: =IF(AND(D13<>"",K13="",U13=""),"生年月日又は年齢",IF(AND(D13="",OR(K13<>"",U13<>"")),"氏名は必要","")) ->  | DY13: =IF(OR(AND(SUM($AL13)=1,SUM($X13)<=8500000),AND(SUM($AL13)=1,SUM($X13)>8500000,SUM($BF13)>0)),"所得金額調整控除１？",IF(OR(AND(SUM($AL13)=2,OR(SUM(所得計算!$BE$5:$BE$15)=0,SUM($BF13)=0)),AND(SUM($AL13)=2,OR(SUM($X13)>8500000,SUM($BF13)=0))),"所得金額調整控除２？",IF(AND(SUM($AL13)=3,OR(SUM($X13)<=8500000,SUM($BF13)=0)),"所得金額調整控除３？",IF(AND($AL13="",OR(SUM($X13)>8500000,AND(SUM(所得計算!$BE$5:$BE$15)>0,SUM($BF13)>0))),"所得金額調整控除サイン不要？","")))) ->  | EL13: =IF(SUM(DC13,CH13,CV13)=0,0,SUM(DC13,CH13,CV13)-SUM(所得計算!$AT$4)-SUM(所得計算!$AI$36)) -> 0 | EO13: =IF(OR(SUM(AE13)>0,SUM(BF13)>0),1,"") ->  | ER13: 1 | GD13: =IF(D13="","",IF(COUNTIF(ET13:GC13,"○")=0,12,COUNTIF(ET13:GC13,"○"))) ->  | GH13: =IF(SUM(GD13:GG22)=0,"",IF(MAX(GD13:GG22)>=12,12,SUM(ET23:GC23))) ->  | GO13: =IF($GL13="","",IF(HLOOKUP($GL13,$GT$12:$IC$22,2,FALSE)>=65,"","65未到達")) ->  | GT13: =IF($R13="","",IF($U13="",IF(EOMONTH(VALUE("R"&基本項目!$B$3&"."&ET$12&".1"),0)<$K13,"",DATEDIF($K13-1,EOMONTH(VALUE("R"&基本項目!$B$3&"."&ET$12&".1")-1,1),"Y")),$U13)) ->  | GW13: =IF($R13="","",IF($U13="",IF(EOMONTH(VALUE("R"&基本項目!$B$3&"."&EW$12&".1"),0)<$K13,"",DATEDIF($K13-1,EOMONTH(VALUE("R"&基本項目!$B$3&"."&EW$12&".1")-1,1),"Y")),$U13)) ->  | GZ13: =IF($R13="","",IF($U13="",IF(EOMONTH(VALUE("R"&基本項目!$B$3&"."&EZ$12&".1"),0)<$K13,"",DATEDIF($K13-1,EOMONTH(VALUE("R"&基本項目!$B$3&"."&EZ$12&".1")-1,1),"Y")),$U13)) ->  | HC13: =IF($R13="","",IF($U13="",IF(EOMONTH(VALUE("R"&基本項目!$B$3&"."&FC$12&".1"),0)<$K13,"",DATEDIF($K13-1,EOMONTH(VALUE("R"&基本項目!$B$3&"."&FC$12&".1")-1,1),"Y")),$U13)) ->  | HF13: =IF($R13="","",IF($U13="",IF(EOMONTH(VALUE("R"&基本項目!$B$3&"."&FF$12&".1"),0)<$K13,"",DATEDIF($K13-1,EOMONTH(VALUE("R"&基本項目!$B$3&"."&FF$12&".1")-1,1),"Y")),$U13)) ->  | HI13: =IF($R13="","",IF($U13="",IF(EOMONTH(VALUE("R"&基本項目!$B$3&"."&FI$12&".1"),0)<$K13,"",DATEDIF($K13-1,EOMONTH(VALUE("R"&基本項目!$B$3&"."&FI$12&".1")-1,1),"Y")),$U13)) ->  | HL13: =IF($R13="","",IF($U13="",IF(EOMONTH(VALUE("R"&基本項目!$B$3&"."&FL$12&".1"),0)<$K13,"",DATEDIF($K13-1,EOMONTH(VALUE("R"&基本項目!$B$3&"."&FL$12&".1")-1,1),"Y")),$U13)) ->  | HO13: =IF($R13="","",IF($U13="",IF(EOMONTH(VALUE("R"&基本項目!$B$3&"."&FO$12&".1"),0)<$K13,"",DATEDIF($K13-1,EOMONTH(VALUE("R"&基本項目!$B$3&"."&FO$12&".1")-1,1),"Y")),$U13)) ->  | HR13: =IF($R13="","",IF($U13="",IF(EOMONTH(VALUE("R"&基本項目!$B$3&"."&FR$12&".1"),0)<$K13,"",DATEDIF($K13-1,EOMONTH(VALUE("R"&基本項目!$B$3&"."&FR$12&".1")-1,1),"Y")),$U13)) ->  | HU13: =IF($R13="","",IF($U13="",IF(EOMONTH(VALUE("R"&基本項目!$B$3+1&"."&FU$12&".1"),0)<$K13,"",DATEDIF($K13-1,EOMONTH(VALUE("R"&基本項目!$B$3+1&"."&FU$12&".1")-1,1),"Y")),$U13)) ->  | HX13: =IF($R13="","",IF($U13="",IF(EOMONTH(VALUE("R"&基本項目!$B$3+1&"."&FX$12&".1"),0)<$K13,"",DATEDIF($K13-1,EOMONTH(VALUE("R"&基本項目!$B$3+1&"."&FX$12&".1")-1,1),"Y")),$U13)) ->  | IA13: =IF($R13="","",IF($U13="",IF(EOMONTH(VALUE("R"&基本項目!$B$3+1&"."&GA$12&".1"),0)<$K13,"",DATEDIF($K13-1,EOMONTH(VALUE("R"&基本項目!$B$3+1&"."&GA$12&".1")-1,1),"Y")),$U13)) ->  | ID13: =IF($R13="","",SUMPRODUCT(($GT13:$IC13<65)*($GT13:$IC13>=40))) ->  | IH13: =IF($R13="","",COUNTIF($GT13:$IC13,"<75")) ->  | IN13: =IF($R13="","",IF($U13="",IF(EOMONTH(VALUE("R"&基本項目!$B$3&"."&ET$12&".1"),0)<$K13,"",DATEDIF($K13,EOMONTH(VALUE("R"&基本項目!$B$3&"."&ET$12&".1")-1,1),"Y")),$U13)) ->  | IQ13: =IF($R13="","",IF($U13="",IF(EOMONTH(VALUE("R"&基本項目!$B$3&"."&EW$12&".1"),0)<$K13,"",DATEDIF($K13,EOMONTH(VALUE("R"&基本項目!$B$3&"."&EW$12&".1")-1,1),"Y")),$U13)) ->  | IT13: =IF($R13="","",IF($U13="",IF(EOMONTH(VALUE("R"&基本項目!$B$3&"."&EZ$12&".1"),0)<$K13,"",DATEDIF($K13,EOMONTH(VALUE("R"&基本項目!$B$3&"."&EZ$12&".1")-1,1),"Y")),$U13)) ->  | IW13: =IF($R13="","",IF($U13="",IF(EOMONTH(VALUE("R"&基本項目!$B$3&"."&FC$12&".1"),0)<$K13,"",DATEDIF($K13,EOMONTH(VALUE("R"&基本項目!$B$3&"."&FC$12&".1")-1,1),"Y")),$U13)) ->  | IZ13: =IF($R13="","",IF($U13="",IF(EOMONTH(VALUE("R"&基本項目!$B$3&"."&FF$12&".1"),0)<$K13,"",DATEDIF($K13,EOMONTH(VALUE("R"&基本項目!$B$3&"."&FF$12&".1")-1,1),"Y")),$U13)) ->  | JC13: =IF($R13="","",IF($U13="",IF(EOMONTH(VALUE("R"&基本項目!$B$3&"."&FI$12&".1"),0)<$K13,"",DATEDIF($K13,EOMONTH(VALUE("R"&基本項目!$B$3&"."&FI$12&".1")-1,1),"Y")),$U13)) ->  | JF13: =IF($R13="","",IF($U13="",IF(EOMONTH(VALUE("R"&基本項目!$B$3&"."&FL$12&".1"),0)<$K13,"",DATEDIF($K13,EOMONTH(VALUE("R"&基本項目!$B$3&"."&FL$12&".1")-1,1),"Y")),$U13)) ->  | JI13: =IF($R13="","",IF($U13="",IF(EOMONTH(VALUE("R"&基本項目!$B$3&"."&FO$12&".1"),0)<$K13,"",DATEDIF($K13,EOMONTH(VALUE("R"&基本項目!$B$3&"."&FO$12&".1")-1,1),"Y")),$U13)) ->  | JL13: =IF($R13="","",IF($U13="",IF(EOMONTH(VALUE("R"&基本項目!$B$3&"."&FR$12&".1"),0)<$K13,"",DATEDIF($K13,EOMONTH(VALUE("R"&基本項目!$B$3&"."&FR$12&".1")-1,1),"Y")),$U13)) ->  | JO13: =IF($R13="","",IF($U13="",IF(EOMONTH(VALUE("R"&基本項目!$B$3+1&"."&FU$12&".1"),0)<$K13,"",DATEDIF($K13,EOMONTH(VALUE("R"&基本項目!$B$3+1&"."&FU$12&".1")-1,1),"Y")),$U13)) ->  | JR13: =IF($R13="","",IF($U13="",IF(EOMONTH(VALUE("R"&基本項目!$B$3+1&"."&FX$12&".1"),0)<$K13,"",DATEDIF($K13,EOMONTH(VALUE("R"&基本項目!$B$3+1&"."&FX$12&".1")-1,1),"Y")),$U13)) ->  | JU13: =IF($R13="","",IF($U13="",IF(EOMONTH(VALUE("R"&基本項目!$B$3+1&"."&GA$12&".1"),0)<$K13,"",DATEDIF($K13,EOMONTH(VALUE("R"&基本項目!$B$3+1&"."&GA$12&".1")-1,1),"Y")),$U13)) ->  | JX13: =IF($R13="","",COUNTIF($IN13:$JW13,">=75")) ->  | KB13: =IF($R13="","",COUNTIF($IN13:$JW13,"<75")) ->  | KH13: =IF(SUM($GD13)=12,GT13,IF(SUM($GD13)=0,"",IF(ET13="","",GT13))) ->  | KK13: =IF(SUM($GD13)=12,GW13,IF(SUM($GD13)=0,"",IF(EW13="","",GW13))) ->  | KN13: =IF(SUM($GD13)=12,GZ13,IF(SUM($GD13)=0,"",IF(EZ13="","",GZ13))) ->  | KQ13: =IF(SUM($GD13)=12,HC13,IF(SUM($GD13)=0,"",IF(FC13="","",HC13))) ->  | KT13: =IF(SUM($GD13)=12,HF13,IF(SUM($GD13)=0,"",IF(FF13="","",HF13))) ->  | KW13: =IF(SUM($GD13)=12,HI13,IF(SUM($GD13)=0,"",IF(FI13="","",HI13))) ->  | KZ13: =IF(SUM($GD13)=12,HL13,IF(SUM($GD13)=0,"",IF(FL13="","",HL13))) ->  | LC13: =IF(SUM($GD13)=12,HO13,IF(SUM($GD13)=0,"",IF(FO13="","",HO13))) ->  | LF13: =IF(SUM($GD13)=12,HR13,IF(SUM($GD13)=0,"",IF(FR13="","",HR13))) ->  | LI13: =IF(SUM($GD13)=12,HU13,IF(SUM($GD13)=0,"",IF(FU13="","",HU13))) ->  | LL13: =IF(SUM($GD13)=12,HX13,IF(SUM($GD13)=0,"",IF(FX13="","",HX13))) ->  | LO13: =IF(SUM($GD13)=12,IA13,IF(SUM($GD13)=0,"",IF(GA13="","",IA13))) ->  | LR13: =IF($R13="","",SUMPRODUCT(($KH13:$LQ13<65)*($KH13:$LQ13>=40))) ->  | LV13: =IF($R13="","",COUNTIF($KH13:$LQ13,"<75")) ->  | LZ13: =IF(GL13="","",IF(AND(GL13>=1,GL13<=3),GL13+12,GL13)) ->  | ME13: =IF(SUM($GD13)=12,IN13,IF(SUM($GD13)=0,"",IF(ET13="","",IN13))) ->  | MH13: =IF(SUM($GD13)=12,IQ13,IF(SUM($GD13)=0,"",IF(EW13="","",IQ13))) ->  | MK13: =IF(SUM($GD13)=12,IT13,IF(SUM($GD13)=0,"",IF(EZ13="","",IT13))) ->  | MN13: =IF(SUM($GD13)=12,IW13,IF(SUM($GD13)=0,"",IF(FC13="","",IW13))) ->  | MQ13: =IF(SUM($GD13)=12,IZ13,IF(SUM($GD13)=0,"",IF(FF13="","",IZ13))) ->  | MT13: =IF(SUM($GD13)=12,JC13,IF(SUM($GD13)=0,"",IF(FI13="","",JC13))) ->  | MW13: =IF(SUM($GD13)=12,JF13,IF(SUM($GD13)=0,"",IF(FL13="","",JF13))) ->  | MZ13: =IF(SUM($GD13)=12,JI13,IF(SUM($GD13)=0,"",IF(FO13="","",JI13))) ->  | NC13: =IF(SUM($GD13)=12,JL13,IF(SUM($GD13)=0,"",IF(FR13="","",JL13))) ->  | NF13: =IF(SUM($GD13)=12,JO13,IF(SUM($GD13)=0,"",IF(FU13="","",JO13))) ->  | NI13: =IF(SUM($GD13)=12,JR13,IF(SUM($GD13)=0,"",IF(FX13="","",JR13))) ->  | NL13: =IF(SUM($GD13)=12,JU13,IF(SUM($GD13)=0,"",IF(GA13="","",JU13))) ->  | NO13: =IF($R13="","",COUNTIF($ME13:$NN13,">=75")) ->  | NS13: =IF($R13="","",COUNTIF($ME13:$NN13,"<75")) ->  | NW13: =IF(GL13="","",IF(AND(GL13>=1,GL13<=3),GL13+12,GL13)) ->  | OA13: =IF(SUM($GD13)=12,SUM($EL13),"") ->  | OB13: =IF(OR(GD13=12,ET13="○"),SUM($EL13),"") ->  | OE13: =IF(EW13="○",SUM($EL13),"") ->  | OH13: =IF(EZ13="○",SUM($EL13),"") ->  | OK13: =IF(FC13="○",SUM($EL13),"") ->  | ON13: =IF(FF13="○",SUM($EL13),"") ->  | OQ13: =IF(FI13="○",SUM($EL13),"") ->  | OT13: =IF(FL13="○",SUM($EL13),"") ->  | OW13: =IF(FO13="○",SUM($EL13),"") ->  | OZ13: =IF(FR13="○",SUM($EL13),"") ->  | PC13: =IF(FU13="○",SUM($EL13),"") ->  | PF13: =IF(FX13="○",SUM($EL13),"") ->  | PI13: =IF(GA13="○",SUM($EL13),"") -> 
B14: 2 | R14: =IF(AND($U14="",$K14=""),"",IF($U14="",所得計算!$I7,$U14)) ->  | AE14: =IF(所得計算!AJ$4="","",所得計算!AJ$4) ->  | BF14: =IF(所得計算!AJ$23="","",所得計算!AJ$23) ->  | DY14: =IF(OR(AND(SUM($AL14)=1,SUM($X14)<=8500000),AND(SUM($AL14)=1,SUM($X14)>8500000,SUM($BF14)>0)),"所得金額調整控除１？",IF(OR(AND(SUM($AL14)=2,OR(SUM(所得計算!$BF$5:$BF$15)=0,SUM($BF14)=0)),AND(SUM($AL14)=2,OR(SUM($X14)>8500000,SUM($BF14)=0))),"所得金額調整控除２？",IF(AND(SUM($AL14)=3,OR(SUM($X14)<=8500000,SUM($BF14)=0)),"所得金額調整控除３？",IF(AND($AL14="",OR(SUM($X14)>8500000,AND(SUM(所得計算!$BF$5:$BF$15)>0,SUM($BF14)>0))),"所得金額調整控除サイン不要？","")))) ->  | EL14: =IF(SUM(DC14,CH14,CV14)=0,0,SUM(DC14,CH14,CV14)-SUM(所得計算!$AU$4)-SUM(所得計算!$AJ$36)) -> 0 | EO14: =IF(OR(SUM(AE14)>0,SUM(BF14)>0),1,"") ->  | ER14: 2 | GO14: =IF($GL14="","",IF(HLOOKUP($GL14,$GT$12:$IC$22,3,FALSE)>=65,"","65未到達")) ->  | GT14: =IF($R14="","",IF($U14="",IF(EOMONTH(VALUE("R"&基本項目!$B$3&"."&ET$12&".1"),0)<$K14,"",DATEDIF($K14-1,EOMONTH(VALUE("R"&基本項目!$B$3&"."&ET$12&".1")-1,1),"Y")),$U14)) ->  | GW14: =IF($R14="","",IF($U14="",IF(EOMONTH(VALUE("R"&基本項目!$B$3&"."&EW$12&".1"),0)<$K14,"",DATEDIF($K14-1,EOMONTH(VALUE("R"&基本項目!$B$3&"."&EW$12&".1")-1,1),"Y")),$U14)) ->  | GZ14: =IF($R14="","",IF($U14="",IF(EOMONTH(VALUE("R"&基本項目!$B$3&"."&EZ$12&".1"),0)<$K14,"",DATEDIF($K14-1,EOMONTH(VALUE("R"&基本項目!$B$3&"."&EZ$12&".1")-1,1),"Y")),$U14)) ->  | HC14: =IF($R14="","",IF($U14="",IF(EOMONTH(VALUE("R"&基本項目!$B$3&"."&FC$12&".1"),0)<$K14,"",DATEDIF($K14-1,EOMONTH(VALUE("R"&基本項目!$B$3&"."&FC$12&".1")-1,1),"Y")),$U14)) ->  | HF14: =IF($R14="","",IF($U14="",IF(EOMONTH(VALUE("R"&基本項目!$B$3&"."&FF$12&".1"),0)<$K14,"",DATEDIF($K14-1,EOMONTH(VALUE("R"&基本項目!$B$3&"."&FF$12&".1")-1,1),"Y")),$U14)) ->  | HI14: =IF($R14="","",IF($U14="",IF(EOMONTH(VALUE("R"&基本項目!$B$3&"."&FI$12&".1"),0)<$K14,"",DATEDIF($K14-1,EOMONTH(VALUE("R"&基本項目!$B$3&"."&FI$12&".1")-1,1),"Y")),$U14)) ->  | HL14: =IF($R14="","",IF($U14="",IF(EOMONTH(VALUE("R"&基本項目!$B$3&"."&FL$12&".1"),0)<$K14,"",DATEDIF($K14-1,EOMONTH(VALUE("R"&基本項目!$B$3&"."&FL$12&".1")-1,1),"Y")),$U14)) ->  | HO14: =IF($R14="","",IF($U14="",IF(EOMONTH(VALUE("R"&基本項目!$B$3&"."&FO$12&".1"),0)<$K14,"",DATEDIF($K14-1,EOMONTH(VALUE("R"&基本項目!$B$3&"."&FO$12&".1")-1,1),"Y")),$U14)) ->  | HR14: =IF($R14="","",IF($U14="",IF(EOMONTH(VALUE("R"&基本項目!$B$3&"."&FR$12&".1"),0)<$K14,"",DATEDIF($K14-1,EOMONTH(VALUE("R"&基本項目!$B$3&"."&FR$12&".1")-1,1),"Y")),$U14)) ->  | HU14: =IF($R14="","",IF($U14="",IF(EOMONTH(VALUE("R"&基本項目!$B$3+1&"."&FU$12&".1"),0)<$K14,"",DATEDIF($K14-1,EOMONTH(VALUE("R"&基本項目!$B$3+1&"."&FU$12&".1")-1,1),"Y")),$U14)) ->  | HX14: =IF($R14="","",IF($U14="",IF(EOMONTH(VALUE("R"&基本項目!$B$3+1&"."&FX$12&".1"),0)<$K14,"",DATEDIF($K14-1,EOMONTH(VALUE("R"&基本項目!$B$3+1&"."&FX$12&".1")-1,1),"Y")),$U14)) ->  | IA14: =IF($R14="","",IF($U14="",IF(EOMONTH(VALUE("R"&基本項目!$B$3+1&"."&GA$12&".1"),0)<$K14,"",DATEDIF($K14-1,EOMONTH(VALUE("R"&基本項目!$B$3+1&"."&GA$12&".1")-1,1),"Y")),$U14)) ->  | IN14: =IF($R14="","",IF($U14="",IF(EOMONTH(VALUE("R"&基本項目!$B$3&"."&ET$12&".1"),0)<$K14,"",DATEDIF($K14,EOMONTH(VALUE("R"&基本項目!$B$3&"."&ET$12&".1")-1,1),"Y")),$U14)) ->  | IQ14: =IF($R14="","",IF($U14="",IF(EOMONTH(VALUE("R"&基本項目!$B$3&"."&EW$12&".1"),0)<$K14,"",DATEDIF($K14,EOMONTH(VALUE("R"&基本項目!$B$3&"."&EW$12&".1")-1,1),"Y")),$U14)) ->  | IT14: =IF($R14="","",IF($U14="",IF(EOMONTH(VALUE("R"&基本項目!$B$3&"."&EZ$12&".1"),0)<$K14,"",DATEDIF($K14,EOMONTH(VALUE("R"&基本項目!$B$3&"."&EZ$12&".1")-1,1),"Y")),$U14)) ->  | IW14: =IF($R14="","",IF($U14="",IF(EOMONTH(VALUE("R"&基本項目!$B$3&"."&FC$12&".1"),0)<$K14,"",DATEDIF($K14,EOMONTH(VALUE("R"&基本項目!$B$3&"."&FC$12&".1")-1,1),"Y")),$U14)) ->  | IZ14: =IF($R14="","",IF($U14="",IF(EOMONTH(VALUE("R"&基本項目!$B$3&"."&FF$12&".1"),0)<$K14,"",DATEDIF($K14,EOMONTH(VALUE("R"&基本項目!$B$3&"."&FF$12&".1")-1,1),"Y")),$U14)) ->  | JC14: =IF($R14="","",IF($U14="",IF(EOMONTH(VALUE("R"&基本項目!$B$3&"."&FI$12&".1"),0)<$K14,"",DATEDIF($K14,EOMONTH(VALUE("R"&基本項目!$B$3&"."&FI$12&".1")-1,1),"Y")),$U14)) ->  | JF14: =IF($R14="","",IF($U14="",IF(EOMONTH(VALUE("R"&基本項目!$B$3&"."&FL$12&".1"),0)<$K14,"",DATEDIF($K14,EOMONTH(VALUE("R"&基本項目!$B$3&"."&FL$12&".1")-1,1),"Y")),$U14)) ->  | JI14: =IF($R14="","",IF($U14="",IF(EOMONTH(VALUE("R"&基本項目!$B$3&"."&FO$12&".1"),0)<$K14,"",DATEDIF($K14,EOMONTH(VALUE("R"&基本項目!$B$3&"."&FO$12&".1")-1,1),"Y")),$U14)) ->  | JL14: =IF($R14="","",IF($U14="",IF(EOMONTH(VALUE("R"&基本項目!$B$3&"."&FR$12&".1"),0)<$K14,"",DATEDIF($K14,EOMONTH(VALUE("R"&基本項目!$B$3&"."&FR$12&".1")-1,1),"Y")),$U14)) ->  | JO14: =IF($R14="","",IF($U14="",IF(EOMONTH(VALUE("R"&基本項目!$B$3+1&"."&FU$12&".1"),0)<$K14,"",DATEDIF($K14,EOMONTH(VALUE("R"&基本項目!$B$3+1&"."&FU$12&".1")-1,1),"Y")),$U14)) ->  | JR14: =IF($R14="","",IF($U14="",IF(EOMONTH(VALUE("R"&基本項目!$B$3+1&"."&FX$12&".1"),0)<$K14,"",DATEDIF($K14,EOMONTH(VALUE("R"&基本項目!$B$3+1&"."&FX$12&".1")-1,1),"Y")),$U14)) ->  | JU14: =IF($R14="","",IF($U14="",IF(EOMONTH(VALUE("R"&基本項目!$B$3+1&"."&GA$12&".1"),0)<$K14,"",DATEDIF($K14,EOMONTH(VALUE("R"&基本項目!$B$3+1&"."&GA$12&".1")-1,1),"Y")),$U14)) ->  | OB14: =IF(OR(GD14=12,ET14="○"),SUM($EL14),"") ->  | OE14: =IF(EW14="○",SUM($EL14),"") -> 
B15: 3 | R15: =IF(AND($U15="",$K15=""),"",IF($U15="",所得計算!$I8,$U15)) ->  | AE15: =IF(所得計算!AK$4="","",所得計算!AK$4) ->  | BF15: =IF(所得計算!AK$23="","",所得計算!AK$23) ->  | DY15: =IF(OR(AND(SUM($AL15)=1,SUM($X15)<=8500000),AND(SUM($AL15)=1,SUM($X15)>8500000,SUM($BF15)>0)),"所得金額調整控除１？",IF(OR(AND(SUM($AL15)=2,OR(SUM(所得計算!$BG$5:$BG$15)=0,SUM($BF15)=0)),AND(SUM($AL15)=2,OR(SUM($X15)>8500000,SUM($BF15)=0))),"所得金額調整控除２？",IF(AND(SUM($AL15)=3,OR(SUM($X15)<=8500000,SUM($BF15)=0)),"所得金額調整控除３？",IF(AND($AL15="",OR(SUM($X15)>8500000,AND(SUM(所得計算!$BG$5:$BG$15)>0,SUM($BF15)>0))),"所得金額調整控除サイン不要？","")))) ->  | EL15: =IF(SUM(DC15,CH15,CV15)=0,0,SUM(DC15,CH15,CV15)-SUM(所得計算!$AV$4)-SUM(所得計算!$AK$36)) -> 0 | ER15: 3 | GO15: =IF($GL15="","",IF(HLOOKUP($GL15,$GT$12:$IC$22,4,FALSE)>=65,"","65未到達")) ->  | GT15: =IF($R15="","",IF($U15="",IF(EOMONTH(VALUE("R"&基本項目!$B$3&"."&ET$12&".1"),0)<$K15,"",DATEDIF($K15-1,EOMONTH(VALUE("R"&基本項目!$B$3&"."&ET$12&".1")-1,1),"Y")),$U15)) ->  | GW15: =IF($R15="","",IF($U15="",IF(EOMONTH(VALUE("R"&基本項目!$B$3&"."&EW$12&".1"),0)<$K15,"",DATEDIF($K15-1,EOMONTH(VALUE("R"&基本項目!$B$3&"."&EW$12&".1")-1,1),"Y")),$U15)) ->  | GZ15: =IF($R15="","",IF($U15="",IF(EOMONTH(VALUE("R"&基本項目!$B$3&"."&EZ$12&".1"),0)<$K15,"",DATEDIF($K15-1,EOMONTH(VALUE("R"&基本項目!$B$3&"."&EZ$12&".1")-1,1),"Y")),$U15)) ->  | HC15: =IF($R15="","",IF($U15="",IF(EOMONTH(VALUE("R"&基本項目!$B$3&"."&FC$12&".1"),0)<$K15,"",DATEDIF($K15-1,EOMONTH(VALUE("R"&基本項目!$B$3&"."&FC$12&".1")-1,1),"Y")),$U15)) ->  | HF15: =IF($R15="","",IF($U15="",IF(EOMONTH(VALUE("R"&基本項目!$B$3&"."&FF$12&".1"),0)<$K15,"",DATEDIF($K15-1,EOMONTH(VALUE("R"&基本項目!$B$3&"."&FF$12&".1")-1,1),"Y")),$U15)) ->  | HI15: =IF($R15="","",IF($U15="",IF(EOMONTH(VALUE("R"&基本項目!$B$3&"."&FI$12&".1"),0)<$K15,"",DATEDIF($K15-1,EOMONTH(VALUE("R"&基本項目!$B$3&"."&FI$12&".1")-1,1),"Y")),$U15)) ->  | HL15: =IF($R15="","",IF($U15="",IF(EOMONTH(VALUE("R"&基本項目!$B$3&"."&FL$12&".1"),0)<$K15,"",DATEDIF($K15-1,EOMONTH(VALUE("R"&基本項目!$B$3&"."&FL$12&".1")-1,1),"Y")),$U15)) ->  | HO15: =IF($R15="","",IF($U15="",IF(EOMONTH(VALUE("R"&基本項目!$B$3&"."&FO$12&".1"),0)<$K15,"",DATEDIF($K15-1,EOMONTH(VALUE("R"&基本項目!$B$3&"."&FO$12&".1")-1,1),"Y")),$U15)) ->  | HR15: =IF($R15="","",IF($U15="",IF(EOMONTH(VALUE("R"&基本項目!$B$3&"."&FR$12&".1"),0)<$K15,"",DATEDIF($K15-1,EOMONTH(VALUE("R"&基本項目!$B$3&"."&FR$12&".1")-1,1),"Y")),$U15)) ->  | HU15: =IF($R15="","",IF($U15="",IF(EOMONTH(VALUE("R"&基本項目!$B$3+1&"."&FU$12&".1"),0)<$K15,"",DATEDIF($K15-1,EOMONTH(VALUE("R"&基本項目!$B$3+1&"."&FU$12&".1")-1,1),"Y")),$U15)) ->  | HX15: =IF($R15="","",IF($U15="",IF(EOMONTH(VALUE("R"&基本項目!$B$3+1&"."&FX$12&".1"),0)<$K15,"",DATEDIF($K15-1,EOMONTH(VALUE("R"&基本項目!$B$3+1&"."&FX$12&".1")-1,1),"Y")),$U15)) ->  | IA15: =IF($R15="","",IF($U15="",IF(EOMONTH(VALUE("R"&基本項目!$B$3+1&"."&GA$12&".1"),0)<$K15,"",DATEDIF($K15-1,EOMONTH(VALUE("R"&基本項目!$B$3+1&"."&GA$12&".1")-1,1),"Y")),$U15)) ->  | IN15: =IF($R15="","",IF($U15="",IF(EOMONTH(VALUE("R"&基本項目!$B$3&"."&ET$12&".1"),0)<$K15,"",DATEDIF($K15,EOMONTH(VALUE("R"&基本項目!$B$3&"."&ET$12&".1")-1,1),"Y")),$U15)) ->  | IQ15: =IF($R15="","",IF($U15="",IF(EOMONTH(VALUE("R"&基本項目!$B$3&"."&EW$12&".1"),0)<$K15,"",DATEDIF($K15,EOMONTH(VALUE("R"&基本項目!$B$3&"."&EW$12&".1")-1,1),"Y")),$U15)) ->  | IT15: =IF($R15="","",IF($U15="",IF(EOMONTH(VALUE("R"&基本項目!$B$3&"."&EZ$12&".1"),0)<$K15,"",DATEDIF($K15,EOMONTH(VALUE("R"&基本項目!$B$3&"."&EZ$12&".1")-1,1),"Y")),$U15)) ->  | IW15: =IF($R15="","",IF($U15="",IF(EOMONTH(VALUE("R"&基本項目!$B$3&"."&FC$12&".1"),0)<$K15,"",DATEDIF($K15,EOMONTH(VALUE("R"&基本項目!$B$3&"."&FC$12&".1")-1,1),"Y")),$U15)) ->  | IZ15: =IF($R15="","",IF($U15="",IF(EOMONTH(VALUE("R"&基本項目!$B$3&"."&FF$12&".1"),0)<$K15,"",DATEDIF($K15,EOMONTH(VALUE("R"&基本項目!$B$3&"."&FF$12&".1")-1,1),"Y")),$U15)) ->  | JC15: =IF($R15="","",IF($U15="",IF(EOMONTH(VALUE("R"&基本項目!$B$3&"."&FI$12&".1"),0)<$K15,"",DATEDIF($K15,EOMONTH(VALUE("R"&基本項目!$B$3&"."&FI$12&".1")-1,1),"Y")),$U15)) ->  | JF15: =IF($R15="","",IF($U15="",IF(EOMONTH(VALUE("R"&基本項目!$B$3&"."&FL$12&".1"),0)<$K15,"",DATEDIF($K15,EOMONTH(VALUE("R"&基本項目!$B$3&"."&FL$12&".1")-1,1),"Y")),$U15)) ->  | JI15: =IF($R15="","",IF($U15="",IF(EOMONTH(VALUE("R"&基本項目!$B$3&"."&FO$12&".1"),0)<$K15,"",DATEDIF($K15,EOMONTH(VALUE("R"&基本項目!$B$3&"."&FO$12&".1")-1,1),"Y")),$U15)) ->  | JL15: =IF($R15="","",IF($U15="",IF(EOMONTH(VALUE("R"&基本項目!$B$3&"."&FR$12&".1"),0)<$K15,"",DATEDIF($K15,EOMONTH(VALUE("R"&基本項目!$B$3&"."&FR$12&".1")-1,1),"Y")),$U15)) ->  | JO15: =IF($R15="","",IF($U15="",IF(EOMONTH(VALUE("R"&基本項目!$B$3+1&"."&FU$12&".1"),0)<$K15,"",DATEDIF($K15,EOMONTH(VALUE("R"&基本項目!$B$3+1&"."&FU$12&".1")-1,1),"Y")),$U15)) ->  | JR15: =IF($R15="","",IF($U15="",IF(EOMONTH(VALUE("R"&基本項目!$B$3+1&"."&FX$12&".1"),0)<$K15,"",DATEDIF($K15,EOMONTH(VALUE("R"&基本項目!$B$3+1&"."&FX$12&".1")-1,1),"Y")),$U15)) ->  | JU15: =IF($R15="","",IF($U15="",IF(EOMONTH(VALUE("R"&基本項目!$B$3+1&"."&GA$12&".1"),0)<$K15,"",DATEDIF($K15,EOMONTH(VALUE("R"&基本項目!$B$3+1&"."&GA$12&".1")-1,1),"Y")),$U15)) -> 
B16: 4 | R16: =IF(AND($U16="",$K16=""),"",IF($U16="",所得計算!$I9,$U16)) ->  | AE16: =IF(所得計算!AL$4="","",所得計算!AL$4) ->  | BF16: =IF(所得計算!AL$23="","",所得計算!AL$23) ->  | DY16: =IF(OR(AND(SUM($AL16)=1,SUM($X16)<=8500000),AND(SUM($AL16)=1,SUM($X16)>8500000,SUM($BF16)>0)),"所得金額調整控除１？",IF(OR(AND(SUM($AL16)=2,OR(SUM(所得計算!$BH$5:$BH$15)=0,SUM($BF16)=0)),AND(SUM($AL16)=2,OR(SUM($X16)>8500000,SUM($BF16)=0))),"所得金額調整控除２？",IF(AND(SUM($AL16)=3,OR(SUM($X16)<=8500000,SUM($BF16)=0)),"所得金額調整控除３？",IF(AND($AL16="",OR(SUM($X16)>8500000,AND(SUM(所得計算!$BH$5:$BH$15)>0,SUM($BF16)>0))),"所得金額調整控除サイン不要？","")))) ->  | EL16: =IF(SUM(DC16,CH16,CV16)=0,0,SUM(DC16,CH16,CV16)-SUM(所得計算!$AW$4)-SUM(所得計算!$AL$36)) -> 0 | ER16: 4 | GO16: =IF($GL16="","",IF(HLOOKUP($GL16,$GT$12:$IC$22,5,FALSE)>=65,"","65未到達")) ->  | GT16: =IF($R16="","",IF($U16="",IF(EOMONTH(VALUE("R"&基本項目!$B$3&"."&ET$12&".1"),0)<$K16,"",DATEDIF($K16-1,EOMONTH(VALUE("R"&基本項目!$B$3&"."&ET$12&".1")-1,1),"Y")),$U16)) ->  | GW16: =IF($R16="","",IF($U16="",IF(EOMONTH(VALUE("R"&基本項目!$B$3&"."&EW$12&".1"),0)<$K16,"",DATEDIF($K16-1,EOMONTH(VALUE("R"&基本項目!$B$3&"."&EW$12&".1")-1,1),"Y")),$U16)) ->  | GZ16: =IF($R16="","",IF($U16="",IF(EOMONTH(VALUE("R"&基本項目!$B$3&"."&EZ$12&".1"),0)<$K16,"",DATEDIF($K16-1,EOMONTH(VALUE("R"&基本項目!$B$3&"."&EZ$12&".1")-1,1),"Y")),$U16)) ->  | HC16: =IF($R16="","",IF($U16="",IF(EOMONTH(VALUE("R"&基本項目!$B$3&"."&FC$12&".1"),0)<$K16,"",DATEDIF($K16-1,EOMONTH(VALUE("R"&基本項目!$B$3&"."&FC$12&".1")-1,1),"Y")),$U16)) ->  | HF16: =IF($R16="","",IF($U16="",IF(EOMONTH(VALUE("R"&基本項目!$B$3&"."&FF$12&".1"),0)<$K16,"",DATEDIF($K16-1,EOMONTH(VALUE("R"&基本項目!$B$3&"."&FF$12&".1")-1,1),"Y")),$U16)) ->  | HI16: =IF($R16="","",IF($U16="",IF(EOMONTH(VALUE("R"&基本項目!$B$3&"."&FI$12&".1"),0)<$K16,"",DATEDIF($K16-1,EOMONTH(VALUE("R"&基本項目!$B$3&"."&FI$12&".1")-1,1),"Y")),$U16)) ->  | HL16: =IF($R16="","",IF($U16="",IF(EOMONTH(VALUE("R"&基本項目!$B$3&"."&FL$12&".1"),0)<$K16,"",DATEDIF($K16-1,EOMONTH(VALUE("R"&基本項目!$B$3&"."&FL$12&".1")-1,1),"Y")),$U16)) ->  | HO16: =IF($R16="","",IF($U16="",IF(EOMONTH(VALUE("R"&基本項目!$B$3&"."&FO$12&".1"),0)<$K16,"",DATEDIF($K16-1,EOMONTH(VALUE("R"&基本項目!$B$3&"."&FO$12&".1")-1,1),"Y")),$U16)) ->  | HR16: =IF($R16="","",IF($U16="",IF(EOMONTH(VALUE("R"&基本項目!$B$3&"."&FR$12&".1"),0)<$K16,"",DATEDIF($K16-1,EOMONTH(VALUE("R"&基本項目!$B$3&"."&FR$12&".1")-1,1),"Y")),$U16)) ->  | HU16: =IF($R16="","",IF($U16="",IF(EOMONTH(VALUE("R"&基本項目!$B$3+1&"."&FU$12&".1"),0)<$K16,"",DATEDIF($K16-1,EOMONTH(VALUE("R"&基本項目!$B$3+1&"."&FU$12&".1")-1,1),"Y")),$U16)) ->  | HX16: =IF($R16="","",IF($U16="",IF(EOMONTH(VALUE("R"&基本項目!$B$3+1&"."&FX$12&".1"),0)<$K16,"",DATEDIF($K16-1,EOMONTH(VALUE("R"&基本項目!$B$3+1&"."&FX$12&".1")-1,1),"Y")),$U16)) ->  | IA16: =IF($R16="","",IF($U16="",IF(EOMONTH(VALUE("R"&基本項目!$B$3+1&"."&GA$12&".1"),0)<$K16,"",DATEDIF($K16-1,EOMONTH(VALUE("R"&基本項目!$B$3+1&"."&GA$12&".1")-1,1),"Y")),$U16)) ->  | IN16: =IF($R16="","",IF($U16="",IF(EOMONTH(VALUE("R"&基本項目!$B$3&"."&ET$12&".1"),0)<$K16,"",DATEDIF($K16,EOMONTH(VALUE("R"&基本項目!$B$3&"."&ET$12&".1")-1,1),"Y")),$U16)) ->  | IQ16: =IF($R16="","",IF($U16="",IF(EOMONTH(VALUE("R"&基本項目!$B$3&"."&EW$12&".1"),0)<$K16,"",DATEDIF($K16,EOMONTH(VALUE("R"&基本項目!$B$3&"."&EW$12&".1")-1,1),"Y")),$U16)) ->  | IT16: =IF($R16="","",IF($U16="",IF(EOMONTH(VALUE("R"&基本項目!$B$3&"."&EZ$12&".1"),0)<$K16,"",DATEDIF($K16,EOMONTH(VALUE("R"&基本項目!$B$3&"."&EZ$12&".1")-1,1),"Y")),$U16)) ->  | IW16: =IF($R16="","",IF($U16="",IF(EOMONTH(VALUE("R"&基本項目!$B$3&"."&FC$12&".1"),0)<$K16,"",DATEDIF($K16,EOMONTH(VALUE("R"&基本項目!$B$3&"."&FC$12&".1")-1,1),"Y")),$U16)) ->  | IZ16: =IF($R16="","",IF($U16="",IF(EOMONTH(VALUE("R"&基本項目!$B$3&"."&FF$12&".1"),0)<$K16,"",DATEDIF($K16,EOMONTH(VALUE("R"&基本項目!$B$3&"."&FF$12&".1")-1,1),"Y")),$U16)) ->  | JC16: =IF($R16="","",IF($U16="",IF(EOMONTH(VALUE("R"&基本項目!$B$3&"."&FI$12&".1"),0)<$K16,"",DATEDIF($K16,EOMONTH(VALUE("R"&基本項目!$B$3&"."&FI$12&".1")-1,1),"Y")),$U16)) ->  | JF16: =IF($R16="","",IF($U16="",IF(EOMONTH(VALUE("R"&基本項目!$B$3&"."&FL$12&".1"),0)<$K16,"",DATEDIF($K16,EOMONTH(VALUE("R"&基本項目!$B$3&"."&FL$12&".1")-1,1),"Y")),$U16)) ->  | JI16: =IF($R16="","",IF($U16="",IF(EOMONTH(VALUE("R"&基本項目!$B$3&"."&FO$12&".1"),0)<$K16,"",DATEDIF($K16,EOMONTH(VALUE("R"&基本項目!$B$3&"."&FO$12&".1")-1,1),"Y")),$U16)) ->  | JL16: =IF($R16="","",IF($U16="",IF(EOMONTH(VALUE("R"&基本項目!$B$3&"."&FR$12&".1"),0)<$K16,"",DATEDIF($K16,EOMONTH(VALUE("R"&基本項目!$B$3&"."&FR$12&".1")-1,1),"Y")),$U16)) ->  | JO16: =IF($R16="","",IF($U16="",IF(EOMONTH(VALUE("R"&基本項目!$B$3+1&"."&FU$12&".1"),0)<$K16,"",DATEDIF($K16,EOMONTH(VALUE("R"&基本項目!$B$3+1&"."&FU$12&".1")-1,1),"Y")),$U16)) ->  | JR16: =IF($R16="","",IF($U16="",IF(EOMONTH(VALUE("R"&基本項目!$B$3+1&"."&FX$12&".1"),0)<$K16,"",DATEDIF($K16,EOMONTH(VALUE("R"&基本項目!$B$3+1&"."&FX$12&".1")-1,1),"Y")),$U16)) ->  | JU16: =IF($R16="","",IF($U16="",IF(EOMONTH(VALUE("R"&基本項目!$B$3+1&"."&GA$12&".1"),0)<$K16,"",DATEDIF($K16,EOMONTH(VALUE("R"&基本項目!$B$3+1&"."&GA$12&".1")-1,1),"Y")),$U16)) -> 
B17: 5 | R17: =IF(AND($U17="",$K17=""),"",IF($U17="",所得計算!$I10,$U17)) ->  | AE17: =IF(所得計算!AM$4="","",所得計算!AM$4) ->  | BF17: =IF(所得計算!AM$23="","",所得計算!AM$23) ->  | DY17: =IF(OR(AND(SUM($AL17)=1,SUM($X17)<=8500000),AND(SUM($AL17)=1,SUM($X17)>8500000,SUM($BF17)>0)),"所得金額調整控除１？",IF(OR(AND(SUM($AL17)=2,OR(SUM(所得計算!$BI$5:$BI$15)=0,SUM($BF17)=0)),AND(SUM($AL17)=2,OR(SUM($X17)>8500000,SUM($BF17)=0))),"所得金額調整控除２？",IF(AND(SUM($AL17)=3,OR(SUM($X17)<=8500000,SUM($BF17)=0)),"所得金額調整控除３？",IF(AND($AL17="",OR(SUM($X17)>8500000,AND(SUM(所得計算!$BI$5:$BI$15)>0,SUM($BF17)>0))),"所得金額調整控除サイン不要？","")))) ->  | EL17: =IF(SUM(DC17,CH17,CV17)=0,0,SUM(DC17,CH17,CV17)-SUM(所得計算!$AX$4)-SUM(所得計算!$AM$36)) -> 0 | ER17: 5 | GO17: =IF($GL17="","",IF(HLOOKUP($GL17,$GT$12:$IC$22,6,FALSE)>=65,"","65未到達")) ->  | GT17: =IF($R17="","",IF($U17="",IF(EOMONTH(VALUE("R"&基本項目!$B$3&"."&ET$12&".1"),0)<$K17,"",DATEDIF($K17-1,EOMONTH(VALUE("R"&基本項目!$B$3&"."&ET$12&".1")-1,1),"Y")),$U17)) ->  | GW17: =IF($R17="","",IF($U17="",IF(EOMONTH(VALUE("R"&基本項目!$B$3&"."&EW$12&".1"),0)<$K17,"",DATEDIF($K17-1,EOMONTH(VALUE("R"&基本項目!$B$3&"."&EW$12&".1")-1,1),"Y")),$U17)) ->  | GZ17: =IF($R17="","",IF($U17="",IF(EOMONTH(VALUE("R"&基本項目!$B$3&"."&EZ$12&".1"),0)<$K17,"",DATEDIF($K17-1,EOMONTH(VALUE("R"&基本項目!$B$3&"."&EZ$12&".1")-1,1),"Y")),$U17)) ->  | HC17: =IF($R17="","",IF($U17="",IF(EOMONTH(VALUE("R"&基本項目!$B$3&"."&FC$12&".1"),0)<$K17,"",DATEDIF($K17-1,EOMONTH(VALUE("R"&基本項目!$B$3&"."&FC$12&".1")-1,1),"Y")),$U17)) ->  | HF17: =IF($R17="","",IF($U17="",IF(EOMONTH(VALUE("R"&基本項目!$B$3&"."&FF$12&".1"),0)<$K17,"",DATEDIF($K17-1,EOMONTH(VALUE("R"&基本項目!$B$3&"."&FF$12&".1")-1,1),"Y")),$U17)) ->  | HI17: =IF($R17="","",IF($U17="",IF(EOMONTH(VALUE("R"&基本項目!$B$3&"."&FI$12&".1"),0)<$K17,"",DATEDIF($K17-1,EOMONTH(VALUE("R"&基本項目!$B$3&"."&FI$12&".1")-1,1),"Y")),$U17)) ->  | HL17: =IF($R17="","",IF($U17="",IF(EOMONTH(VALUE("R"&基本項目!$B$3&"."&FL$12&".1"),0)<$K17,"",DATEDIF($K17-1,EOMONTH(VALUE("R"&基本項目!$B$3&"."&FL$12&".1")-1,1),"Y")),$U17)) ->  | HO17: =IF($R17="","",IF($U17="",IF(EOMONTH(VALUE("R"&基本項目!$B$3&"."&FO$12&".1"),0)<$K17,"",DATEDIF($K17-1,EOMONTH(VALUE("R"&基本項目!$B$3&"."&FO$12&".1")-1,1),"Y")),$U17)) ->  | HR17: =IF($R17="","",IF($U17="",IF(EOMONTH(VALUE("R"&基本項目!$B$3&"."&FR$12&".1"),0)<$K17,"",DATEDIF($K17-1,EOMONTH(VALUE("R"&基本項目!$B$3&"."&FR$12&".1")-1,1),"Y")),$U17)) ->  | HU17: =IF($R17="","",IF($U17="",IF(EOMONTH(VALUE("R"&基本項目!$B$3+1&"."&FU$12&".1"),0)<$K17,"",DATEDIF($K17-1,EOMONTH(VALUE("R"&基本項目!$B$3+1&"."&FU$12&".1")-1,1),"Y")),$U17)) ->  | HX17: =IF($R17="","",IF($U17="",IF(EOMONTH(VALUE("R"&基本項目!$B$3+1&"."&FX$12&".1"),0)<$K17,"",DATEDIF($K17-1,EOMONTH(VALUE("R"&基本項目!$B$3+1&"."&FX$12&".1")-1,1),"Y")),$U17)) ->  | IA17: =IF($R17="","",IF($U17="",IF(EOMONTH(VALUE("R"&基本項目!$B$3+1&"."&GA$12&".1"),0)<$K17,"",DATEDIF($K17-1,EOMONTH(VALUE("R"&基本項目!$B$3+1&"."&GA$12&".1")-1,1),"Y")),$U17)) ->  | IN17: =IF($R17="","",IF($U17="",IF(EOMONTH(VALUE("R"&基本項目!$B$3&"."&ET$12&".1"),0)<$K17,"",DATEDIF($K17,EOMONTH(VALUE("R"&基本項目!$B$3&"."&ET$12&".1")-1,1),"Y")),$U17)) ->  | IQ17: =IF($R17="","",IF($U17="",IF(EOMONTH(VALUE("R"&基本項目!$B$3&"."&EW$12&".1"),0)<$K17,"",DATEDIF($K17,EOMONTH(VALUE("R"&基本項目!$B$3&"."&EW$12&".1")-1,1),"Y")),$U17)) ->  | IT17: =IF($R17="","",IF($U17="",IF(EOMONTH(VALUE("R"&基本項目!$B$3&"."&EZ$12&".1"),0)<$K17,"",DATEDIF($K17,EOMONTH(VALUE("R"&基本項目!$B$3&"."&EZ$12&".1")-1,1),"Y")),$U17)) ->  | IW17: =IF($R17="","",IF($U17="",IF(EOMONTH(VALUE("R"&基本項目!$B$3&"."&FC$12&".1"),0)<$K17,"",DATEDIF($K17,EOMONTH(VALUE("R"&基本項目!$B$3&"."&FC$12&".1")-1,1),"Y")),$U17)) ->  | IZ17: =IF($R17="","",IF($U17="",IF(EOMONTH(VALUE("R"&基本項目!$B$3&"."&FF$12&".1"),0)<$K17,"",DATEDIF($K17,EOMONTH(VALUE("R"&基本項目!$B$3&"."&FF$12&".1")-1,1),"Y")),$U17)) ->  | JC17: =IF($R17="","",IF($U17="",IF(EOMONTH(VALUE("R"&基本項目!$B$3&"."&FI$12&".1"),0)<$K17,"",DATEDIF($K17,EOMONTH(VALUE("R"&基本項目!$B$3&"."&FI$12&".1")-1,1),"Y")),$U17)) ->  | JF17: =IF($R17="","",IF($U17="",IF(EOMONTH(VALUE("R"&基本項目!$B$3&"."&FL$12&".1"),0)<$K17,"",DATEDIF($K17,EOMONTH(VALUE("R"&基本項目!$B$3&"."&FL$12&".1")-1,1),"Y")),$U17)) ->  | JI17: =IF($R17="","",IF($U17="",IF(EOMONTH(VALUE("R"&基本項目!$B$3&"."&FO$12&".1"),0)<$K17,"",DATEDIF($K17,EOMONTH(VALUE("R"&基本項目!$B$3&"."&FO$12&".1")-1,1),"Y")),$U17)) ->  | JL17: =IF($R17="","",IF($U17="",IF(EOMONTH(VALUE("R"&基本項目!$B$3&"."&FR$12&".1"),0)<$K17,"",DATEDIF($K17,EOMONTH(VALUE("R"&基本項目!$B$3&"."&FR$12&".1")-1,1),"Y")),$U17)) ->  | JO17: =IF($R17="","",IF($U17="",IF(EOMONTH(VALUE("R"&基本項目!$B$3+1&"."&FU$12&".1"),0)<$K17,"",DATEDIF($K17,EOMONTH(VALUE("R"&基本項目!$B$3+1&"."&FU$12&".1")-1,1),"Y")),$U17)) ->  | JR17: =IF($R17="","",IF($U17="",IF(EOMONTH(VALUE("R"&基本項目!$B$3+1&"."&FX$12&".1"),0)<$K17,"",DATEDIF($K17,EOMONTH(VALUE("R"&基本項目!$B$3+1&"."&FX$12&".1")-1,1),"Y")),$U17)) ->  | JU17: =IF($R17="","",IF($U17="",IF(EOMONTH(VALUE("R"&基本項目!$B$3+1&"."&GA$12&".1"),0)<$K17,"",DATEDIF($K17,EOMONTH(VALUE("R"&基本項目!$B$3+1&"."&GA$12&".1")-1,1),"Y")),$U17)) -> 
B18: 6 | R18: =IF(AND($U18="",$K18=""),"",IF($U18="",所得計算!$I11,$U18)) ->  | AE18: =IF(所得計算!AN$4="","",所得計算!AN$4) ->  | BF18: =IF(所得計算!AN$23="","",所得計算!AN$23) ->  | DY18: =IF(OR(AND(SUM($AL18)=1,SUM($X18)<=8500000),AND(SUM($AL18)=1,SUM($X18)>8500000,SUM($BF18)>0)),"所得金額調整控除１？",IF(OR(AND(SUM($AL18)=2,OR(SUM(所得計算!$BJ$5:$BJ$15)=0,SUM($BF18)=0)),AND(SUM($AL18)=2,OR(SUM($X18)>8500000,SUM($BF18)=0))),"所得金額調整控除２？",IF(AND(SUM($AL18)=3,OR(SUM($X18)<=8500000,SUM($BF18)=0)),"所得金額調整控除３？",IF(AND($AL18="",OR(SUM($X18)>8500000,AND(SUM(所得計算!$BJ$5:$BJ$15)>0,SUM($BF18)>0))),"所得金額調整控除サイン不要？","")))) ->  | EL18: =IF(SUM(DC18,CH18,CV18)=0,0,SUM(DC18,CH18,CV18)-SUM(所得計算!$AY$4)-SUM(所得計算!$AN$36)) -> 0 | ER18: 6 | GO18: =IF($GL18="","",IF(HLOOKUP($GL18,$GT$12:$IC$22,7,FALSE)>=65,"","65未到達")) ->  | GT18: =IF($R18="","",IF($U18="",IF(EOMONTH(VALUE("R"&基本項目!$B$3&"."&ET$12&".1"),0)<$K18,"",DATEDIF($K18-1,EOMONTH(VALUE("R"&基本項目!$B$3&"."&ET$12&".1")-1,1),"Y")),$U18)) ->  | GW18: =IF($R18="","",IF($U18="",IF(EOMONTH(VALUE("R"&基本項目!$B$3&"."&EW$12&".1"),0)<$K18,"",DATEDIF($K18-1,EOMONTH(VALUE("R"&基本項目!$B$3&"."&EW$12&".1")-1,1),"Y")),$U18)) ->  | GZ18: =IF($R18="","",IF($U18="",IF(EOMONTH(VALUE("R"&基本項目!$B$3&"."&EZ$12&".1"),0)<$K18,"",DATEDIF($K18-1,EOMONTH(VALUE("R"&基本項目!$B$3&"."&EZ$12&".1")-1,1),"Y")),$U18)) ->  | HC18: =IF($R18="","",IF($U18="",IF(EOMONTH(VALUE("R"&基本項目!$B$3&"."&FC$12&".1"),0)<$K18,"",DATEDIF($K18-1,EOMONTH(VALUE("R"&基本項目!$B$3&"."&FC$12&".1")-1,1),"Y")),$U18)) ->  | HF18: =IF($R18="","",IF($U18="",IF(EOMONTH(VALUE("R"&基本項目!$B$3&"."&FF$12&".1"),0)<$K18,"",DATEDIF($K18-1,EOMONTH(VALUE("R"&基本項目!$B$3&"."&FF$12&".1")-1,1),"Y")),$U18)) ->  | HI18: =IF($R18="","",IF($U18="",IF(EOMONTH(VALUE("R"&基本項目!$B$3&"."&FI$12&".1"),0)<$K18,"",DATEDIF($K18-1,EOMONTH(VALUE("R"&基本項目!$B$3&"."&FI$12&".1")-1,1),"Y")),$U18)) ->  | HL18: =IF($R18="","",IF($U18="",IF(EOMONTH(VALUE("R"&基本項目!$B$3&"."&FL$12&".1"),0)<$K18,"",DATEDIF($K18-1,EOMONTH(VALUE("R"&基本項目!$B$3&"."&FL$12&".1")-1,1),"Y")),$U18)) ->  | HO18: =IF($R18="","",IF($U18="",IF(EOMONTH(VALUE("R"&基本項目!$B$3&"."&FO$12&".1"),0)<$K18,"",DATEDIF($K18-1,EOMONTH(VALUE("R"&基本項目!$B$3&"."&FO$12&".1")-1,1),"Y")),$U18)) ->  | HR18: =IF($R18="","",IF($U18="",IF(EOMONTH(VALUE("R"&基本項目!$B$3&"."&FR$12&".1"),0)<$K18,"",DATEDIF($K18-1,EOMONTH(VALUE("R"&基本項目!$B$3&"."&FR$12&".1")-1,1),"Y")),$U18)) ->  | HU18: =IF($R18="","",IF($U18="",IF(EOMONTH(VALUE("R"&基本項目!$B$3+1&"."&FU$12&".1"),0)<$K18,"",DATEDIF($K18-1,EOMONTH(VALUE("R"&基本項目!$B$3+1&"."&FU$12&".1")-1,1),"Y")),$U18)) ->  | HX18: =IF($R18="","",IF($U18="",IF(EOMONTH(VALUE("R"&基本項目!$B$3+1&"."&FX$12&".1"),0)<$K18,"",DATEDIF($K18-1,EOMONTH(VALUE("R"&基本項目!$B$3+1&"."&FX$12&".1")-1,1),"Y")),$U18)) ->  | IA18: =IF($R18="","",IF($U18="",IF(EOMONTH(VALUE("R"&基本項目!$B$3+1&"."&GA$12&".1"),0)<$K18,"",DATEDIF($K18-1,EOMONTH(VALUE("R"&基本項目!$B$3+1&"."&GA$12&".1")-1,1),"Y")),$U18)) ->  | IN18: =IF($R18="","",IF($U18="",IF(EOMONTH(VALUE("R"&基本項目!$B$3&"."&ET$12&".1"),0)<$K18,"",DATEDIF($K18,EOMONTH(VALUE("R"&基本項目!$B$3&"."&ET$12&".1")-1,1),"Y")),$U18)) ->  | IQ18: =IF($R18="","",IF($U18="",IF(EOMONTH(VALUE("R"&基本項目!$B$3&"."&EW$12&".1"),0)<$K18,"",DATEDIF($K18,EOMONTH(VALUE("R"&基本項目!$B$3&"."&EW$12&".1")-1,1),"Y")),$U18)) ->  | IT18: =IF($R18="","",IF($U18="",IF(EOMONTH(VALUE("R"&基本項目!$B$3&"."&EZ$12&".1"),0)<$K18,"",DATEDIF($K18,EOMONTH(VALUE("R"&基本項目!$B$3&"."&EZ$12&".1")-1,1),"Y")),$U18)) ->  | IW18: =IF($R18="","",IF($U18="",IF(EOMONTH(VALUE("R"&基本項目!$B$3&"."&FC$12&".1"),0)<$K18,"",DATEDIF($K18,EOMONTH(VALUE("R"&基本項目!$B$3&"."&FC$12&".1")-1,1),"Y")),$U18)) ->  | IZ18: =IF($R18="","",IF($U18="",IF(EOMONTH(VALUE("R"&基本項目!$B$3&"."&FF$12&".1"),0)<$K18,"",DATEDIF($K18,EOMONTH(VALUE("R"&基本項目!$B$3&"."&FF$12&".1")-1,1),"Y")),$U18)) ->  | JC18: =IF($R18="","",IF($U18="",IF(EOMONTH(VALUE("R"&基本項目!$B$3&"."&FI$12&".1"),0)<$K18,"",DATEDIF($K18,EOMONTH(VALUE("R"&基本項目!$B$3&"."&FI$12&".1")-1,1),"Y")),$U18)) ->  | JF18: =IF($R18="","",IF($U18="",IF(EOMONTH(VALUE("R"&基本項目!$B$3&"."&FL$12&".1"),0)<$K18,"",DATEDIF($K18,EOMONTH(VALUE("R"&基本項目!$B$3&"."&FL$12&".1")-1,1),"Y")),$U18)) ->  | JI18: =IF($R18="","",IF($U18="",IF(EOMONTH(VALUE("R"&基本項目!$B$3&"."&FO$12&".1"),0)<$K18,"",DATEDIF($K18,EOMONTH(VALUE("R"&基本項目!$B$3&"."&FO$12&".1")-1,1),"Y")),$U18)) ->  | JL18: =IF($R18="","",IF($U18="",IF(EOMONTH(VALUE("R"&基本項目!$B$3&"."&FR$12&".1"),0)<$K18,"",DATEDIF($K18,EOMONTH(VALUE("R"&基本項目!$B$3&"."&FR$12&".1")-1,1),"Y")),$U18)) ->  | JO18: =IF($R18="","",IF($U18="",IF(EOMONTH(VALUE("R"&基本項目!$B$3+1&"."&FU$12&".1"),0)<$K18,"",DATEDIF($K18,EOMONTH(VALUE("R"&基本項目!$B$3+1&"."&FU$12&".1")-1,1),"Y")),$U18)) ->  | JR18: =IF($R18="","",IF($U18="",IF(EOMONTH(VALUE("R"&基本項目!$B$3+1&"."&FX$12&".1"),0)<$K18,"",DATEDIF($K18,EOMONTH(VALUE("R"&基本項目!$B$3+1&"."&FX$12&".1")-1,1),"Y")),$U18)) ->  | JU18: =IF($R18="","",IF($U18="",IF(EOMONTH(VALUE("R"&基本項目!$B$3+1&"."&GA$12&".1"),0)<$K18,"",DATEDIF($K18,EOMONTH(VALUE("R"&基本項目!$B$3+1&"."&GA$12&".1")-1,1),"Y")),$U18)) -> 
B19: 7 | R19: =IF(AND($U19="",$K19=""),"",IF($U19="",所得計算!$I12,$U19)) ->  | AE19: =IF(所得計算!AO$4="","",所得計算!AO$4) ->  | BF19: =IF(所得計算!AO$23="","",所得計算!AO$23) ->  | DY19: =IF(OR(AND(SUM($AL19)=1,SUM($X19)<=8500000),AND(SUM($AL19)=1,SUM($X19)>8500000,SUM($BF19)>0)),"所得金額調整控除１？",IF(OR(AND(SUM($AL19)=2,OR(SUM(所得計算!$BK$5:$BK$15)=0,SUM($BF19)=0)),AND(SUM($AL19)=2,OR(SUM($X19)>8500000,SUM($BF19)=0))),"所得金額調整控除２？",IF(AND(SUM($AL19)=3,OR(SUM($X19)<=8500000,SUM($BF19)=0)),"所得金額調整控除３？",IF(AND($AL19="",OR(SUM($X19)>8500000,AND(SUM(所得計算!$BK$5:$BK$15)>0,SUM($BF19)>0))),"所得金額調整控除サイン不要？","")))) ->  | EL19: =IF(SUM(DC19,CH19,CV19)=0,0,SUM(DC19,CH19,CV19)-SUM(所得計算!$AZ$4)-SUM(所得計算!$AO$36)) -> 0 | ER19: 7 | GO19: =IF($GL19="","",IF(HLOOKUP($GL19,$GT$12:$IC$22,8,FALSE)>=65,"","65未到達")) ->  | GT19: =IF($R19="","",IF($U19="",IF(EOMONTH(VALUE("R"&基本項目!$B$3&"."&ET$12&".1"),0)<$K19,"",DATEDIF($K19-1,EOMONTH(VALUE("R"&基本項目!$B$3&"."&ET$12&".1")-1,1),"Y")),$U19)) ->  | GW19: =IF($R19="","",IF($U19="",IF(EOMONTH(VALUE("R"&基本項目!$B$3&"."&EW$12&".1"),0)<$K19,"",DATEDIF($K19-1,EOMONTH(VALUE("R"&基本項目!$B$3&"."&EW$12&".1")-1,1),"Y")),$U19)) ->  | GZ19: =IF($R19="","",IF($U19="",IF(EOMONTH(VALUE("R"&基本項目!$B$3&"."&EZ$12&".1"),0)<$K19,"",DATEDIF($K19-1,EOMONTH(VALUE("R"&基本項目!$B$3&"."&EZ$12&".1")-1,1),"Y")),$U19)) ->  | HC19: =IF($R19="","",IF($U19="",IF(EOMONTH(VALUE("R"&基本項目!$B$3&"."&FC$12&".1"),0)<$K19,"",DATEDIF($K19-1,EOMONTH(VALUE("R"&基本項目!$B$3&"."&FC$12&".1")-1,1),"Y")),$U19)) ->  | HF19: =IF($R19="","",IF($U19="",IF(EOMONTH(VALUE("R"&基本項目!$B$3&"."&FF$12&".1"),0)<$K19,"",DATEDIF($K19-1,EOMONTH(VALUE("R"&基本項目!$B$3&"."&FF$12&".1")-1,1),"Y")),$U19)) ->  | HI19: =IF($R19="","",IF($U19="",IF(EOMONTH(VALUE("R"&基本項目!$B$3&"."&FI$12&".1"),0)<$K19,"",DATEDIF($K19-1,EOMONTH(VALUE("R"&基本項目!$B$3&"."&FI$12&".1")-1,1),"Y")),$U19)) ->  | HL19: =IF($R19="","",IF($U19="",IF(EOMONTH(VALUE("R"&基本項目!$B$3&"."&FL$12&".1"),0)<$K19,"",DATEDIF($K19-1,EOMONTH(VALUE("R"&基本項目!$B$3&"."&FL$12&".1")-1,1),"Y")),$U19)) ->  | HO19: =IF($R19="","",IF($U19="",IF(EOMONTH(VALUE("R"&基本項目!$B$3&"."&FO$12&".1"),0)<$K19,"",DATEDIF($K19-1,EOMONTH(VALUE("R"&基本項目!$B$3&"."&FO$12&".1")-1,1),"Y")),$U19)) ->  | HR19: =IF($R19="","",IF($U19="",IF(EOMONTH(VALUE("R"&基本項目!$B$3&"."&FR$12&".1"),0)<$K19,"",DATEDIF($K19-1,EOMONTH(VALUE("R"&基本項目!$B$3&"."&FR$12&".1")-1,1),"Y")),$U19)) ->  | HU19: =IF($R19="","",IF($U19="",IF(EOMONTH(VALUE("R"&基本項目!$B$3+1&"."&FU$12&".1"),0)<$K19,"",DATEDIF($K19-1,EOMONTH(VALUE("R"&基本項目!$B$3+1&"."&FU$12&".1")-1,1),"Y")),$U19)) ->  | HX19: =IF($R19="","",IF($U19="",IF(EOMONTH(VALUE("R"&基本項目!$B$3+1&"."&FX$12&".1"),0)<$K19,"",DATEDIF($K19-1,EOMONTH(VALUE("R"&基本項目!$B$3+1&"."&FX$12&".1")-1,1),"Y")),$U19)) ->  | IA19: =IF($R19="","",IF($U19="",IF(EOMONTH(VALUE("R"&基本項目!$B$3+1&"."&GA$12&".1"),0)<$K19,"",DATEDIF($K19-1,EOMONTH(VALUE("R"&基本項目!$B$3+1&"."&GA$12&".1")-1,1),"Y")),$U19)) ->  | IN19: =IF($R19="","",IF($U19="",IF(EOMONTH(VALUE("R"&基本項目!$B$3&"."&ET$12&".1"),0)<$K19,"",DATEDIF($K19,EOMONTH(VALUE("R"&基本項目!$B$3&"."&ET$12&".1")-1,1),"Y")),$U19)) ->  | IQ19: =IF($R19="","",IF($U19="",IF(EOMONTH(VALUE("R"&基本項目!$B$3&"."&EW$12&".1"),0)<$K19,"",DATEDIF($K19,EOMONTH(VALUE("R"&基本項目!$B$3&"."&EW$12&".1")-1,1),"Y")),$U19)) ->  | IT19: =IF($R19="","",IF($U19="",IF(EOMONTH(VALUE("R"&基本項目!$B$3&"."&EZ$12&".1"),0)<$K19,"",DATEDIF($K19,EOMONTH(VALUE("R"&基本項目!$B$3&"."&EZ$12&".1")-1,1),"Y")),$U19)) ->  | IW19: =IF($R19="","",IF($U19="",IF(EOMONTH(VALUE("R"&基本項目!$B$3&"."&FC$12&".1"),0)<$K19,"",DATEDIF($K19,EOMONTH(VALUE("R"&基本項目!$B$3&"."&FC$12&".1")-1,1),"Y")),$U19)) ->  | IZ19: =IF($R19="","",IF($U19="",IF(EOMONTH(VALUE("R"&基本項目!$B$3&"."&FF$12&".1"),0)<$K19,"",DATEDIF($K19,EOMONTH(VALUE("R"&基本項目!$B$3&"."&FF$12&".1")-1,1),"Y")),$U19)) ->  | JC19: =IF($R19="","",IF($U19="",IF(EOMONTH(VALUE("R"&基本項目!$B$3&"."&FI$12&".1"),0)<$K19,"",DATEDIF($K19,EOMONTH(VALUE("R"&基本項目!$B$3&"."&FI$12&".1")-1,1),"Y")),$U19)) ->  | JF19: =IF($R19="","",IF($U19="",IF(EOMONTH(VALUE("R"&基本項目!$B$3&"."&FL$12&".1"),0)<$K19,"",DATEDIF($K19,EOMONTH(VALUE("R"&基本項目!$B$3&"."&FL$12&".1")-1,1),"Y")),$U19)) ->  | JI19: =IF($R19="","",IF($U19="",IF(EOMONTH(VALUE("R"&基本項目!$B$3&"."&FO$12&".1"),0)<$K19,"",DATEDIF($K19,EOMONTH(VALUE("R"&基本項目!$B$3&"."&FO$12&".1")-1,1),"Y")),$U19)) ->  | JL19: =IF($R19="","",IF($U19="",IF(EOMONTH(VALUE("R"&基本項目!$B$3&"."&FR$12&".1"),0)<$K19,"",DATEDIF($K19,EOMONTH(VALUE("R"&基本項目!$B$3&"."&FR$12&".1")-1,1),"Y")),$U19)) ->  | JO19: =IF($R19="","",IF($U19="",IF(EOMONTH(VALUE("R"&基本項目!$B$3+1&"."&FU$12&".1"),0)<$K19,"",DATEDIF($K19,EOMONTH(VALUE("R"&基本項目!$B$3+1&"."&FU$12&".1")-1,1),"Y")),$U19)) ->  | JR19: =IF($R19="","",IF($U19="",IF(EOMONTH(VALUE("R"&基本項目!$B$3+1&"."&FX$12&".1"),0)<$K19,"",DATEDIF($K19,EOMONTH(VALUE("R"&基本項目!$B$3+1&"."&FX$12&".1")-1,1),"Y")),$U19)) ->  | JU19: =IF($R19="","",IF($U19="",IF(EOMONTH(VALUE("R"&基本項目!$B$3+1&"."&GA$12&".1"),0)<$K19,"",DATEDIF($K19,EOMONTH(VALUE("R"&基本項目!$B$3+1&"."&GA$12&".1")-1,1),"Y")),$U19)) -> 
B20: 8 | R20: =IF(AND($U20="",$K20=""),"",IF($U20="",所得計算!$I13,$U20)) ->  | AE20: =IF(所得計算!AP$4="","",所得計算!AP$4) ->  | BF20: =IF(所得計算!AP$23="","",所得計算!AP$23) ->  | DY20: =IF(OR(AND(SUM($AL20)=1,SUM($X20)<=8500000),AND(SUM($AL20)=1,SUM($X20)>8500000,SUM($BF20)>0)),"所得金額調整控除１？",IF(OR(AND(SUM($AL20)=2,OR(SUM(所得計算!$BL$5:$BL$15)=0,SUM($BF20)=0)),AND(SUM($AL20)=2,OR(SUM($X20)>8500000,SUM($BF20)=0))),"所得金額調整控除２？",IF(AND(SUM($AL20)=3,OR(SUM($X20)<=8500000,SUM($BF20)=0)),"所得金額調整控除３？",IF(AND($AL20="",OR(SUM($X20)>8500000,AND(SUM(所得計算!$BL$5:$BL$15)>0,SUM($BF20)>0))),"所得金額調整控除サイン不要？","")))) ->  | EL20: =IF(SUM(DC20,CH20,CV20)=0,0,SUM(DC20,CH20,CV20)-SUM(所得計算!$BA$4)-SUM(所得計算!$AP$36)) -> 0 | ER20: 8 | GO20: =IF($GL20="","",IF(HLOOKUP($GL20,$GT$12:$IC$22,9,FALSE)>=65,"","65未到達")) ->  | GT20: =IF($R20="","",IF($U20="",IF(EOMONTH(VALUE("R"&基本項目!$B$3&"."&ET$12&".1"),0)<$K20,"",DATEDIF($K20-1,EOMONTH(VALUE("R"&基本項目!$B$3&"."&ET$12&".1")-1,1),"Y")),$U20)) ->  | GW20: =IF($R20="","",IF($U20="",IF(EOMONTH(VALUE("R"&基本項目!$B$3&"."&EW$12&".1"),0)<$K20,"",DATEDIF($K20-1,EOMONTH(VALUE("R"&基本項目!$B$3&"."&EW$12&".1")-1,1),"Y")),$U20)) ->  | GZ20: =IF($R20="","",IF($U20="",IF(EOMONTH(VALUE("R"&基本項目!$B$3&"."&EZ$12&".1"),0)<$K20,"",DATEDIF($K20-1,EOMONTH(VALUE("R"&基本項目!$B$3&"."&EZ$12&".1")-1,1),"Y")),$U20)) ->  | HC20: =IF($R20="","",IF($U20="",IF(EOMONTH(VALUE("R"&基本項目!$B$3&"."&FC$12&".1"),0)<$K20,"",DATEDIF($K20-1,EOMONTH(VALUE("R"&基本項目!$B$3&"."&FC$12&".1")-1,1),"Y")),$U20)) ->  | HF20: =IF($R20="","",IF($U20="",IF(EOMONTH(VALUE("R"&基本項目!$B$3&"."&FF$12&".1"),0)<$K20,"",DATEDIF($K20-1,EOMONTH(VALUE("R"&基本項目!$B$3&"."&FF$12&".1")-1,1),"Y")),$U20)) ->  | HI20: =IF($R20="","",IF($U20="",IF(EOMONTH(VALUE("R"&基本項目!$B$3&"."&FI$12&".1"),0)<$K20,"",DATEDIF($K20-1,EOMONTH(VALUE("R"&基本項目!$B$3&"."&FI$12&".1")-1,1),"Y")),$U20)) ->  | HL20: =IF($R20="","",IF($U20="",IF(EOMONTH(VALUE("R"&基本項目!$B$3&"."&FL$12&".1"),0)<$K20,"",DATEDIF($K20-1,EOMONTH(VALUE("R"&基本項目!$B$3&"."&FL$12&".1")-1,1),"Y")),$U20)) ->  | HO20: =IF($R20="","",IF($U20="",IF(EOMONTH(VALUE("R"&基本項目!$B$3&"."&FO$12&".1"),0)<$K20,"",DATEDIF($K20-1,EOMONTH(VALUE("R"&基本項目!$B$3&"."&FO$12&".1")-1,1),"Y")),$U20)) ->  | HR20: =IF($R20="","",IF($U20="",IF(EOMONTH(VALUE("R"&基本項目!$B$3&"."&FR$12&".1"),0)<$K20,"",DATEDIF($K20-1,EOMONTH(VALUE("R"&基本項目!$B$3&"."&FR$12&".1")-1,1),"Y")),$U20)) ->  | HU20: =IF($R20="","",IF($U20="",IF(EOMONTH(VALUE("R"&基本項目!$B$3+1&"."&FU$12&".1"),0)<$K20,"",DATEDIF($K20-1,EOMONTH(VALUE("R"&基本項目!$B$3+1&"."&FU$12&".1")-1,1),"Y")),$U20)) ->  | HX20: =IF($R20="","",IF($U20="",IF(EOMONTH(VALUE("R"&基本項目!$B$3+1&"."&FX$12&".1"),0)<$K20,"",DATEDIF($K20-1,EOMONTH(VALUE("R"&基本項目!$B$3+1&"."&FX$12&".1")-1,1),"Y")),$U20)) ->  | IA20: =IF($R20="","",IF($U20="",IF(EOMONTH(VALUE("R"&基本項目!$B$3+1&"."&GA$12&".1"),0)<$K20,"",DATEDIF($K20-1,EOMONTH(VALUE("R"&基本項目!$B$3+1&"."&GA$12&".1")-1,1),"Y")),$U20)) ->  | IN20: =IF($R20="","",IF($U20="",IF(EOMONTH(VALUE("R"&基本項目!$B$3&"."&ET$12&".1"),0)<$K20,"",DATEDIF($K20,EOMONTH(VALUE("R"&基本項目!$B$3&"."&ET$12&".1")-1,1),"Y")),$U20)) ->  | IQ20: =IF($R20="","",IF($U20="",IF(EOMONTH(VALUE("R"&基本項目!$B$3&"."&EW$12&".1"),0)<$K20,"",DATEDIF($K20,EOMONTH(VALUE("R"&基本項目!$B$3&"."&EW$12&".1")-1,1),"Y")),$U20)) ->  | IT20: =IF($R20="","",IF($U20="",IF(EOMONTH(VALUE("R"&基本項目!$B$3&"."&EZ$12&".1"),0)<$K20,"",DATEDIF($K20,EOMONTH(VALUE("R"&基本項目!$B$3&"."&EZ$12&".1")-1,1),"Y")),$U20)) ->  | IW20: =IF($R20="","",IF($U20="",IF(EOMONTH(VALUE("R"&基本項目!$B$3&"."&FC$12&".1"),0)<$K20,"",DATEDIF($K20,EOMONTH(VALUE("R"&基本項目!$B$3&"."&FC$12&".1")-1,1),"Y")),$U20)) ->  | IZ20: =IF($R20="","",IF($U20="",IF(EOMONTH(VALUE("R"&基本項目!$B$3&"."&FF$12&".1"),0)<$K20,"",DATEDIF($K20,EOMONTH(VALUE("R"&基本項目!$B$3&"."&FF$12&".1")-1,1),"Y")),$U20)) ->  | JC20: =IF($R20="","",IF($U20="",IF(EOMONTH(VALUE("R"&基本項目!$B$3&"."&FI$12&".1"),0)<$K20,"",DATEDIF($K20,EOMONTH(VALUE("R"&基本項目!$B$3&"."&FI$12&".1")-1,1),"Y")),$U20)) ->  | JF20: =IF($R20="","",IF($U20="",IF(EOMONTH(VALUE("R"&基本項目!$B$3&"."&FL$12&".1"),0)<$K20,"",DATEDIF($K20,EOMONTH(VALUE("R"&基本項目!$B$3&"."&FL$12&".1")-1,1),"Y")),$U20)) ->  | JI20: =IF($R20="","",IF($U20="",IF(EOMONTH(VALUE("R"&基本項目!$B$3&"."&FO$12&".1"),0)<$K20,"",DATEDIF($K20,EOMONTH(VALUE("R"&基本項目!$B$3&"."&FO$12&".1")-1,1),"Y")),$U20)) ->  | JL20: =IF($R20="","",IF($U20="",IF(EOMONTH(VALUE("R"&基本項目!$B$3&"."&FR$12&".1"),0)<$K20,"",DATEDIF($K20,EOMONTH(VALUE("R"&基本項目!$B$3&"."&FR$12&".1")-1,1),"Y")),$U20)) ->  | JO20: =IF($R20="","",IF($U20="",IF(EOMONTH(VALUE("R"&基本項目!$B$3+1&"."&FU$12&".1"),0)<$K20,"",DATEDIF($K20,EOMONTH(VALUE("R"&基本項目!$B$3+1&"."&FU$12&".1")-1,1),"Y")),$U20)) ->  | JR20: =IF($R20="","",IF($U20="",IF(EOMONTH(VALUE("R"&基本項目!$B$3+1&"."&FX$12&".1"),0)<$K20,"",DATEDIF($K20,EOMONTH(VALUE("R"&基本項目!$B$3+1&"."&FX$12&".1")-1,1),"Y")),$U20)) ->  | JU20: =IF($R20="","",IF($U20="",IF(EOMONTH(VALUE("R"&基本項目!$B$3+1&"."&GA$12&".1"),0)<$K20,"",DATEDIF($K20,EOMONTH(VALUE("R"&基本項目!$B$3+1&"."&GA$12&".1")-1,1),"Y")),$U20)) -> 
B21: 9 | R21: =IF(AND($U21="",$K21=""),"",IF($U21="",所得計算!$I14,$U21)) ->  | AE21: =IF(所得計算!AQ$4="","",所得計算!AQ$4) ->  | BF21: =IF(所得計算!AQ$23="","",所得計算!AQ$23) ->  | DY21: =IF(OR(AND(SUM($AL21)=1,SUM($X21)<=8500000),AND(SUM($AL21)=1,SUM($X21)>8500000,SUM($BF21)>0)),"所得金額調整控除１？",IF(OR(AND(SUM($AL21)=2,OR(SUM(所得計算!$BM$5:$BM$15)=0,SUM($BF21)=0)),AND(SUM($AL21)=2,OR(SUM($X21)>8500000,SUM($BF21)=0))),"所得金額調整控除２？",IF(AND(SUM($AL21)=3,OR(SUM($X21)<=8500000,SUM($BF21)=0)),"所得金額調整控除３？",IF(AND($AL21="",OR(SUM($X21)>8500000,AND(SUM(所得計算!$BM$5:$BM$15)>0,SUM($BF21)>0))),"所得金額調整控除サイン不要？","")))) ->  | EL21: =IF(SUM(DC21,CH21,CV21)=0,0,SUM(DC21,CH21,CV21)-SUM(所得計算!$BB$4)-SUM(所得計算!$AQ$36)) -> 0 | ER21: 9 | GO21: =IF($GL21="","",IF(HLOOKUP($GL21,$GT$12:$IC$22,10,FALSE)>=65,"","65未到達")) ->  | GT21: =IF($R21="","",IF($U21="",IF(EOMONTH(VALUE("R"&基本項目!$B$3&"."&ET$12&".1"),0)<$K21,"",DATEDIF($K21-1,EOMONTH(VALUE("R"&基本項目!$B$3&"."&ET$12&".1")-1,1),"Y")),$U21)) ->  | GW21: =IF($R21="","",IF($U21="",IF(EOMONTH(VALUE("R"&基本項目!$B$3&"."&EW$12&".1"),0)<$K21,"",DATEDIF($K21-1,EOMONTH(VALUE("R"&基本項目!$B$3&"."&EW$12&".1")-1,1),"Y")),$U21)) ->  | GZ21: =IF($R21="","",IF($U21="",IF(EOMONTH(VALUE("R"&基本項目!$B$3&"."&EZ$12&".1"),0)<$K21,"",DATEDIF($K21-1,EOMONTH(VALUE("R"&基本項目!$B$3&"."&EZ$12&".1")-1,1),"Y")),$U21)) ->  | HC21: =IF($R21="","",IF($U21="",IF(EOMONTH(VALUE("R"&基本項目!$B$3&"."&FC$12&".1"),0)<$K21,"",DATEDIF($K21-1,EOMONTH(VALUE("R"&基本項目!$B$3&"."&FC$12&".1")-1,1),"Y")),$U21)) ->  | HF21: =IF($R21="","",IF($U21="",IF(EOMONTH(VALUE("R"&基本項目!$B$3&"."&FF$12&".1"),0)<$K21,"",DATEDIF($K21-1,EOMONTH(VALUE("R"&基本項目!$B$3&"."&FF$12&".1")-1,1),"Y")),$U21)) ->  | HI21: =IF($R21="","",IF($U21="",IF(EOMONTH(VALUE("R"&基本項目!$B$3&"."&FI$12&".1"),0)<$K21,"",DATEDIF($K21-1,EOMONTH(VALUE("R"&基本項目!$B$3&"."&FI$12&".1")-1,1),"Y")),$U21)) ->  | HL21: =IF($R21="","",IF($U21="",IF(EOMONTH(VALUE("R"&基本項目!$B$3&"."&FL$12&".1"),0)<$K21,"",DATEDIF($K21-1,EOMONTH(VALUE("R"&基本項目!$B$3&"."&FL$12&".1")-1,1),"Y")),$U21)) ->  | HO21: =IF($R21="","",IF($U21="",IF(EOMONTH(VALUE("R"&基本項目!$B$3&"."&FO$12&".1"),0)<$K21,"",DATEDIF($K21-1,EOMONTH(VALUE("R"&基本項目!$B$3&"."&FO$12&".1")-1,1),"Y")),$U21)) ->  | HR21: =IF($R21="","",IF($U21="",IF(EOMONTH(VALUE("R"&基本項目!$B$3&"."&FR$12&".1"),0)<$K21,"",DATEDIF($K21-1,EOMONTH(VALUE("R"&基本項目!$B$3&"."&FR$12&".1")-1,1),"Y")),$U21)) ->  | HU21: =IF($R21="","",IF($U21="",IF(EOMONTH(VALUE("R"&基本項目!$B$3+1&"."&FU$12&".1"),0)<$K21,"",DATEDIF($K21-1,EOMONTH(VALUE("R"&基本項目!$B$3+1&"."&FU$12&".1")-1,1),"Y")),$U21)) ->  | HX21: =IF($R21="","",IF($U21="",IF(EOMONTH(VALUE("R"&基本項目!$B$3+1&"."&FX$12&".1"),0)<$K21,"",DATEDIF($K21-1,EOMONTH(VALUE("R"&基本項目!$B$3+1&"."&FX$12&".1")-1,1),"Y")),$U21)) ->  | IA21: =IF($R21="","",IF($U21="",IF(EOMONTH(VALUE("R"&基本項目!$B$3+1&"."&GA$12&".1"),0)<$K21,"",DATEDIF($K21-1,EOMONTH(VALUE("R"&基本項目!$B$3+1&"."&GA$12&".1")-1,1),"Y")),$U21)) ->  | IN21: =IF($R21="","",IF($U21="",IF(EOMONTH(VALUE("R"&基本項目!$B$3&"."&ET$12&".1"),0)<$K21,"",DATEDIF($K21,EOMONTH(VALUE("R"&基本項目!$B$3&"."&ET$12&".1")-1,1),"Y")),$U21)) ->  | IQ21: =IF($R21="","",IF($U21="",IF(EOMONTH(VALUE("R"&基本項目!$B$3&"."&EW$12&".1"),0)<$K21,"",DATEDIF($K21,EOMONTH(VALUE("R"&基本項目!$B$3&"."&EW$12&".1")-1,1),"Y")),$U21)) ->  | IT21: =IF($R21="","",IF($U21="",IF(EOMONTH(VALUE("R"&基本項目!$B$3&"."&EZ$12&".1"),0)<$K21,"",DATEDIF($K21,EOMONTH(VALUE("R"&基本項目!$B$3&"."&EZ$12&".1")-1,1),"Y")),$U21)) ->  | IW21: =IF($R21="","",IF($U21="",IF(EOMONTH(VALUE("R"&基本項目!$B$3&"."&FC$12&".1"),0)<$K21,"",DATEDIF($K21,EOMONTH(VALUE("R"&基本項目!$B$3&"."&FC$12&".1")-1,1),"Y")),$U21)) ->  | IZ21: =IF($R21="","",IF($U21="",IF(EOMONTH(VALUE("R"&基本項目!$B$3&"."&FF$12&".1"),0)<$K21,"",DATEDIF($K21,EOMONTH(VALUE("R"&基本項目!$B$3&"."&FF$12&".1")-1,1),"Y")),$U21)) ->  | JC21: =IF($R21="","",IF($U21="",IF(EOMONTH(VALUE("R"&基本項目!$B$3&"."&FI$12&".1"),0)<$K21,"",DATEDIF($K21,EOMONTH(VALUE("R"&基本項目!$B$3&"."&FI$12&".1")-1,1),"Y")),$U21)) ->  | JF21: =IF($R21="","",IF($U21="",IF(EOMONTH(VALUE("R"&基本項目!$B$3&"."&FL$12&".1"),0)<$K21,"",DATEDIF($K21,EOMONTH(VALUE("R"&基本項目!$B$3&"."&FL$12&".1")-1,1),"Y")),$U21)) ->  | JI21: =IF($R21="","",IF($U21="",IF(EOMONTH(VALUE("R"&基本項目!$B$3&"."&FO$12&".1"),0)<$K21,"",DATEDIF($K21,EOMONTH(VALUE("R"&基本項目!$B$3&"."&FO$12&".1")-1,1),"Y")),$U21)) ->  | JL21: =IF($R21="","",IF($U21="",IF(EOMONTH(VALUE("R"&基本項目!$B$3&"."&FR$12&".1"),0)<$K21,"",DATEDIF($K21,EOMONTH(VALUE("R"&基本項目!$B$3&"."&FR$12&".1")-1,1),"Y")),$U21)) ->  | JO21: =IF($R21="","",IF($U21="",IF(EOMONTH(VALUE("R"&基本項目!$B$3+1&"."&FU$12&".1"),0)<$K21,"",DATEDIF($K21,EOMONTH(VALUE("R"&基本項目!$B$3+1&"."&FU$12&".1")-1,1),"Y")),$U21)) ->  | JR21: =IF($R21="","",IF($U21="",IF(EOMONTH(VALUE("R"&基本項目!$B$3+1&"."&FX$12&".1"),0)<$K21,"",DATEDIF($K21,EOMONTH(VALUE("R"&基本項目!$B$3+1&"."&FX$12&".1")-1,1),"Y")),$U21)) ->  | JU21: =IF($R21="","",IF($U21="",IF(EOMONTH(VALUE("R"&基本項目!$B$3+1&"."&GA$12&".1"),0)<$K21,"",DATEDIF($K21,EOMONTH(VALUE("R"&基本項目!$B$3+1&"."&GA$12&".1")-1,1),"Y")),$U21)) -> 
B22: 10 | R22: =IF(AND($U22="",$K22=""),"",IF($U22="",所得計算!$I15,$U22)) ->  | AE22: =IF(所得計算!AR$4="","",所得計算!AR$4) ->  | BF22: =IF(所得計算!AR$23="","",所得計算!AR$23) ->  | DY22: =IF(OR(AND(SUM($AL22)=1,SUM($X22)<=8500000),AND(SUM($AL22)=1,SUM($X22)>8500000,SUM($BF22)>0)),"所得金額調整控除１？",IF(OR(AND(SUM($AL22)=2,OR(SUM(所得計算!$BN$5:$BN$15)=0,SUM($BF22)=0)),AND(SUM($AL22)=2,OR(SUM($X22)>8500000,SUM($BF22)=0))),"所得金額調整控除２？",IF(AND(SUM($AL22)=3,OR(SUM($X22)<=8500000,SUM($BF22)=0)),"所得金額調整控除３？",IF(AND($AL22="",OR(SUM($X22)>8500000,AND(SUM(所得計算!$BN$5:$BN$15)>0,SUM($BF22)>0))),"所得金額調整控除サイン不要？","")))) ->  | EL22: =IF(SUM(DC22,CH22,CV22)=0,0,SUM(DC22,CH22,CV22)-SUM(所得計算!$BC$4)-SUM(所得計算!$AR$36)) -> 0 | ER22: 10 | GO22: =IF($GL22="","",IF(HLOOKUP($GL22,$GT$12:$IC$22,11,FALSE)>=65,"","65未到達")) ->  | GT22: =IF($R22="","",IF($U22="",IF(EOMONTH(VALUE("R"&基本項目!$B$3&"."&ET$12&".1"),0)<$K22,"",DATEDIF($K22-1,EOMONTH(VALUE("R"&基本項目!$B$3&"."&ET$12&".1")-1,1),"Y")),$U22)) ->  | GW22: =IF($R22="","",IF($U22="",IF(EOMONTH(VALUE("R"&基本項目!$B$3&"."&EW$12&".1"),0)<$K22,"",DATEDIF($K22-1,EOMONTH(VALUE("R"&基本項目!$B$3&"."&EW$12&".1")-1,1),"Y")),$U22)) ->  | GZ22: =IF($R22="","",IF($U22="",IF(EOMONTH(VALUE("R"&基本項目!$B$3&"."&EZ$12&".1"),0)<$K22,"",DATEDIF($K22-1,EOMONTH(VALUE("R"&基本項目!$B$3&"."&EZ$12&".1")-1,1),"Y")),$U22)) ->  | HC22: =IF($R22="","",IF($U22="",IF(EOMONTH(VALUE("R"&基本項目!$B$3&"."&FC$12&".1"),0)<$K22,"",DATEDIF($K22-1,EOMONTH(VALUE("R"&基本項目!$B$3&"."&FC$12&".1")-1,1),"Y")),$U22)) ->  | HF22: =IF($R22="","",IF($U22="",IF(EOMONTH(VALUE("R"&基本項目!$B$3&"."&FF$12&".1"),0)<$K22,"",DATEDIF($K22-1,EOMONTH(VALUE("R"&基本項目!$B$3&"."&FF$12&".1")-1,1),"Y")),$U22)) ->  | HI22: =IF($R22="","",IF($U22="",IF(EOMONTH(VALUE("R"&基本項目!$B$3&"."&FI$12&".1"),0)<$K22,"",DATEDIF($K22-1,EOMONTH(VALUE("R"&基本項目!$B$3&"."&FI$12&".1")-1,1),"Y")),$U22)) ->  | HL22: =IF($R22="","",IF($U22="",IF(EOMONTH(VALUE("R"&基本項目!$B$3&"."&FL$12&".1"),0)<$K22,"",DATEDIF($K22-1,EOMONTH(VALUE("R"&基本項目!$B$3&"."&FL$12&".1")-1,1),"Y")),$U22)) ->  | HO22: =IF($R22="","",IF($U22="",IF(EOMONTH(VALUE("R"&基本項目!$B$3&"."&FO$12&".1"),0)<$K22,"",DATEDIF($K22-1,EOMONTH(VALUE("R"&基本項目!$B$3&"."&FO$12&".1")-1,1),"Y")),$U22)) ->  | HR22: =IF($R22="","",IF($U22="",IF(EOMONTH(VALUE("R"&基本項目!$B$3&"."&FR$12&".1"),0)<$K22,"",DATEDIF($K22-1,EOMONTH(VALUE("R"&基本項目!$B$3&"."&FR$12&".1")-1,1),"Y")),$U22)) ->  | HU22: =IF($R22="","",IF($U22="",IF(EOMONTH(VALUE("R"&基本項目!$B$3+1&"."&FU$12&".1"),0)<$K22,"",DATEDIF($K22-1,EOMONTH(VALUE("R"&基本項目!$B$3+1&"."&FU$12&".1")-1,1),"Y")),$U22)) ->  | HX22: =IF($R22="","",IF($U22="",IF(EOMONTH(VALUE("R"&基本項目!$B$3+1&"."&FX$12&".1"),0)<$K22,"",DATEDIF($K22-1,EOMONTH(VALUE("R"&基本項目!$B$3+1&"."&FX$12&".1")-1,1),"Y")),$U22)) ->  | IA22: =IF($R22="","",IF($U22="",IF(EOMONTH(VALUE("R"&基本項目!$B$3+1&"."&GA$12&".1"),0)<$K22,"",DATEDIF($K22-1,EOMONTH(VALUE("R"&基本項目!$B$3+1&"."&GA$12&".1")-1,1),"Y")),$U22)) ->  | IN22: =IF($R22="","",IF($U22="",IF(EOMONTH(VALUE("R"&基本項目!$B$3&"."&ET$12&".1"),0)<$K22,"",DATEDIF($K22,EOMONTH(VALUE("R"&基本項目!$B$3&"."&ET$12&".1")-1,1),"Y")),$U22)) ->  | IQ22: =IF($R22="","",IF($U22="",IF(EOMONTH(VALUE("R"&基本項目!$B$3&"."&EW$12&".1"),0)<$K22,"",DATEDIF($K22,EOMONTH(VALUE("R"&基本項目!$B$3&"."&EW$12&".1")-1,1),"Y")),$U22)) ->  | IT22: =IF($R22="","",IF($U22="",IF(EOMONTH(VALUE("R"&基本項目!$B$3&"."&EZ$12&".1"),0)<$K22,"",DATEDIF($K22,EOMONTH(VALUE("R"&基本項目!$B$3&"."&EZ$12&".1")-1,1),"Y")),$U22)) ->  | IW22: =IF($R22="","",IF($U22="",IF(EOMONTH(VALUE("R"&基本項目!$B$3&"."&FC$12&".1"),0)<$K22,"",DATEDIF($K22,EOMONTH(VALUE("R"&基本項目!$B$3&"."&FC$12&".1")-1,1),"Y")),$U22)) ->  | IZ22: =IF($R22="","",IF($U22="",IF(EOMONTH(VALUE("R"&基本項目!$B$3&"."&FF$12&".1"),0)<$K22,"",DATEDIF($K22,EOMONTH(VALUE("R"&基本項目!$B$3&"."&FF$12&".1")-1,1),"Y")),$U22)) ->  | JC22: =IF($R22="","",IF($U22="",IF(EOMONTH(VALUE("R"&基本項目!$B$3&"."&FI$12&".1"),0)<$K22,"",DATEDIF($K22,EOMONTH(VALUE("R"&基本項目!$B$3&"."&FI$12&".1")-1,1),"Y")),$U22)) ->  | JF22: =IF($R22="","",IF($U22="",IF(EOMONTH(VALUE("R"&基本項目!$B$3&"."&FL$12&".1"),0)<$K22,"",DATEDIF($K22,EOMONTH(VALUE("R"&基本項目!$B$3&"."&FL$12&".1")-1,1),"Y")),$U22)) ->  | JI22: =IF($R22="","",IF($U22="",IF(EOMONTH(VALUE("R"&基本項目!$B$3&"."&FO$12&".1"),0)<$K22,"",DATEDIF($K22,EOMONTH(VALUE("R"&基本項目!$B$3&"."&FO$12&".1")-1,1),"Y")),$U22)) ->  | JL22: =IF($R22="","",IF($U22="",IF(EOMONTH(VALUE("R"&基本項目!$B$3&"."&FR$12&".1"),0)<$K22,"",DATEDIF($K22,EOMONTH(VALUE("R"&基本項目!$B$3&"."&FR$12&".1")-1,1),"Y")),$U22)) ->  | JO22: =IF($R22="","",IF($U22="",IF(EOMONTH(VALUE("R"&基本項目!$B$3+1&"."&FU$12&".1"),0)<$K22,"",DATEDIF($K22,EOMONTH(VALUE("R"&基本項目!$B$3+1&"."&FU$12&".1")-1,1),"Y")),$U22)) ->  | JR22: =IF($R22="","",IF($U22="",IF(EOMONTH(VALUE("R"&基本項目!$B$3+1&"."&FX$12&".1"),0)<$K22,"",DATEDIF($K22,EOMONTH(VALUE("R"&基本項目!$B$3+1&"."&FX$12&".1")-1,1),"Y")),$U22)) ->  | JU22: =IF($R22="","",IF($U22="",IF(EOMONTH(VALUE("R"&基本項目!$B$3+1&"."&GA$12&".1"),0)<$K22,"",DATEDIF($K22,EOMONTH(VALUE("R"&基本項目!$B$3+1&"."&GA$12&".1")-1,1),"Y")),$U22)) -> 
ET23: =IF(SUM($GD13)=12,1,IF(ET13="○",1,0))+IF(SUM($GD14)=12,1,IF(ET14="○",1,0))+IF(SUM($GD15)=12,1,IF(ET15="○",1,0))+IF(SUM($GD16)=12,1,IF(ET16="○",1,0))+IF(SUM($GD17)=12,1,IF(ET17="○",1,0))+IF(SUM($GD18)=12,1,IF(ET18="○",1,0))+IF(SUM($GD19)=12,1,IF(ET19="○",1,0))+IF(SUM($GD20)=12,1,IF(ET20="○",1,0))+IF(SUM($GD21)=12,1,IF(ET21="○",1,0))+IF(SUM($GD22)=12,1,IF(ET22="○",1,0)) -> 0 | EW23: =IF(SUM($GD13)=12,1,IF(EW13="○",1,0))+IF(SUM($GD14)=12,1,IF(EW14="○",1,0))+IF(SUM($GD15)=12,1,IF(EW15="○",1,0))+IF(SUM($GD16)=12,1,IF(EW16="○",1,0))+IF(SUM($GD17)=12,1,IF(EW17="○",1,0))+IF(SUM($GD18)=12,1,IF(EW18="○",1,0))+IF(SUM($GD19)=12,1,IF(EW19="○",1,0))+IF(SUM($GD20)=12,1,IF(EW20="○",1,0))+IF(SUM($GD21)=12,1,IF(EW21="○",1,0))+IF(SUM($GD22)=12,1,IF(EW22="○",1,0)) -> 0 | EZ23: =IF(SUM($GD13)=12,1,IF(EZ13="○",1,0))+IF(SUM($GD14)=12,1,IF(EZ14="○",1,0))+IF(SUM($GD15)=12,1,IF(EZ15="○",1,0))+IF(SUM($GD16)=12,1,IF(EZ16="○",1,0))+IF(SUM($GD17)=12,1,IF(EZ17="○",1,0))+IF(SUM($GD18)=12,1,IF(EZ18="○",1,0))+IF(SUM($GD19)=12,1,IF(EZ19="○",1,0))+IF(SUM($GD20)=12,1,IF(EZ20="○",1,0))+IF(SUM($GD21)=12,1,IF(EZ21="○",1,0))+IF(SUM($GD22)=12,1,IF(EZ22="○",1,0)) -> 0 | FC23: =IF(SUM($GD13)=12,1,IF(FC13="○",1,0))+IF(SUM($GD14)=12,1,IF(FC14="○",1,0))+IF(SUM($GD15)=12,1,IF(FC15="○",1,0))+IF(SUM($GD16)=12,1,IF(FC16="○",1,0))+IF(SUM($GD17)=12,1,IF(FC17="○",1,0))+IF(SUM($GD18)=12,1,IF(FC18="○",1,0))+IF(SUM($GD19)=12,1,IF(FC19="○",1,0))+IF(SUM($GD20)=12,1,IF(FC20="○",1,0))+IF(SUM($GD21)=12,1,IF(FC21="○",1,0))+IF(SUM($GD22)=12,1,IF(FC22="○",1,0)) -> 0 | FF23: =IF(SUM($GD13)=12,1,IF(FF13="○",1,0))+IF(SUM($GD14)=12,1,IF(FF14="○",1,0))+IF(SUM($GD15)=12,1,IF(FF15="○",1,0))+IF(SUM($GD16)=12,1,IF(FF16="○",1,0))+IF(SUM($GD17)=12,1,IF(FF17="○",1,0))+IF(SUM($GD18)=12,1,IF(FF18="○",1,0))+IF(SUM($GD19)=12,1,IF(FF19="○",1,0))+IF(SUM($GD20)=12,1,IF(FF20="○",1,0))+IF(SUM($GD21)=12,1,IF(FF21="○",1,0))+IF(SUM($GD22)=12,1,IF(FF22="○",1,0)) -> 0 | FI23: =IF(SUM($GD13)=12,1,IF(FI13="○",1,0))+IF(SUM($GD14)=12,1,IF(FI14="○",1,0))+IF(SUM($GD15)=12,1,IF(FI15="○",1,0))+IF(SUM($GD16)=12,1,IF(FI16="○",1,0))+IF(SUM($GD17)=12,1,IF(FI17="○",1,0))+IF(SUM($GD18)=12,1,IF(FI18="○",1,0))+IF(SUM($GD19)=12,1,IF(FI19="○",1,0))+IF(SUM($GD20)=12,1,IF(FI20="○",1,0))+IF(SUM($GD21)=12,1,IF(FI21="○",1,0))+IF(SUM($GD22)=12,1,IF(FI22="○",1,0)) -> 0 | FL23: =IF(SUM($GD13)=12,1,IF(FL13="○",1,0))+IF(SUM($GD14)=12,1,IF(FL14="○",1,0))+IF(SUM($GD15)=12,1,IF(FL15="○",1,0))+IF(SUM($GD16)=12,1,IF(FL16="○",1,0))+IF(SUM($GD17)=12,1,IF(FL17="○",1,0))+IF(SUM($GD18)=12,1,IF(FL18="○",1,0))+IF(SUM($GD19)=12,1,IF(FL19="○",1,0))+IF(SUM($GD20)=12,1,IF(FL20="○",1,0))+IF(SUM($GD21)=12,1,IF(FL21="○",1,0))+IF(SUM($GD22)=12,1,IF(FL22="○",1,0)) -> 0 | FO23: =IF(SUM($GD13)=12,1,IF(FO13="○",1,0))+IF(SUM($GD14)=12,1,IF(FO14="○",1,0))+IF(SUM($GD15)=12,1,IF(FO15="○",1,0))+IF(SUM($GD16)=12,1,IF(FO16="○",1,0))+IF(SUM($GD17)=12,1,IF(FO17="○",1,0))+IF(SUM($GD18)=12,1,IF(FO18="○",1,0))+IF(SUM($GD19)=12,1,IF(FO19="○",1,0))+IF(SUM($GD20)=12,1,IF(FO20="○",1,0))+IF(SUM($GD21)=12,1,IF(FO21="○",1,0))+IF(SUM($GD22)=12,1,IF(FO22="○",1,0)) -> 0 | FR23: =IF(SUM($GD13)=12,1,IF(FR13="○",1,0))+IF(SUM($GD14)=12,1,IF(FR14="○",1,0))+IF(SUM($GD15)=12,1,IF(FR15="○",1,0))+IF(SUM($GD16)=12,1,IF(FR16="○",1,0))+IF(SUM($GD17)=12,1,IF(FR17="○",1,0))+IF(SUM($GD18)=12,1,IF(FR18="○",1,0))+IF(SUM($GD19)=12,1,IF(FR19="○",1,0))+IF(SUM($GD20)=12,1,IF(FR20="○",1,0))+IF(SUM($GD21)=12,1,IF(FR21="○",1,0))+IF(SUM($GD22)=12,1,IF(FR22="○",1,0)) -> 0 | FU23: =IF(SUM($GD13)=12,1,IF(FU13="○",1,0))+IF(SUM($GD14)=12,1,IF(FU14="○",1,0))+IF(SUM($GD15)=12,1,IF(FU15="○",1,0))+IF(SUM($GD16)=12,1,IF(FU16="○",1,0))+IF(SUM($GD17)=12,1,IF(FU17="○",1,0))+IF(SUM($GD18)=12,1,IF(FU18="○",1,0))+IF(SUM($GD19)=12,1,IF(FU19="○",1,0))+IF(SUM($GD20)=12,1,IF(FU20="○",1,0))+IF(SUM($GD21)=12,1,IF(FU21="○",1,0))+IF(SUM($GD22)=12,1,IF(FU22="○",1,0)) -> 0 | FX23: =IF(SUM($GD13)=12,1,IF(FX13="○",1,0))+IF(SUM($GD14)=12,1,IF(FX14="○",1,0))+IF(SUM($GD15)=12,1,IF(FX15="○",1,0))+IF(SUM($GD16)=12,1,IF(FX16="○",1,0))+IF(SUM($GD17)=12,1,IF(FX17="○",1,0))+IF(SUM($GD18)=12,1,IF(FX18="○",1,0))+IF(SUM($GD19)=12,1,IF(FX19="○",1,0))+IF(SUM($GD20)=12,1,IF(FX20="○",1,0))+IF(SUM($GD21)=12,1,IF(FX21="○",1,0))+IF(SUM($GD22)=12,1,IF(FX22="○",1,0)) -> 0 | GA23: =IF(SUM($GD13)=12,1,IF(GA13="○",1,0))+IF(SUM($GD14)=12,1,IF(GA14="○",1,0))+IF(SUM($GD15)=12,1,IF(GA15="○",1,0))+IF(SUM($GD16)=12,1,IF(GA16="○",1,0))+IF(SUM($GD17)=12,1,IF(GA17="○",1,0))+IF(SUM($GD18)=12,1,IF(GA18="○",1,0))+IF(SUM($GD19)=12,1,IF(GA19="○",1,0))+IF(SUM($GD20)=12,1,IF(GA20="○",1,0))+IF(SUM($GD21)=12,1,IF(GA21="○",1,0))+IF(SUM($GD22)=12,1,IF(GA22="○",1,0)) -> 0 | GD23: =COUNT(GD13:GG22) -> 0 | ME23: =IF(AND(COUNT(ME13:MG22)>1,COUNTIF(ME13:MG22,"<75")=1),1,"") ->  | MH23: =IF(SUM($ME23)>=1,1,IF(AND(COUNT(MH13:MJ22)>1,COUNTIF(MH13:MJ22,"<75")=1),1,"")) ->  | MK23: =IF(SUM($ME23:MJ23)>=1,1,IF(AND(COUNT(MK13:MM22)>1,COUNTIF(MK13:MM22,"<75")=1),1,"")) ->  | MN23: =IF(SUM($ME23:MM23)>=1,1,IF(AND(COUNT(MN13:MP22)>1,COUNTIF(MN13:MP22,"<75")=1),1,"")) ->  | MQ23: =IF(SUM($ME23:MP23)>=1,1,IF(AND(COUNT(MQ13:MS22)>1,COUNTIF(MQ13:MS22,"<75")=1),1,"")) ->  | MT23: =IF(SUM($ME23:MS23)>=1,1,IF(AND(COUNT(MT13:MV22)>1,COUNTIF(MT13:MV22,"<75")=1),1,"")) ->  | MW23: =IF(SUM($ME23:MV23)>=1,1,IF(AND(COUNT(MW13:MY22)>1,COUNTIF(MW13:MY22,"<75")=1),1,"")) ->  | MZ23: =IF(SUM($ME23:MY23)>=1,1,IF(AND(COUNT(MZ13:NB22)>1,COUNTIF(MZ13:NB22,"<75")=1),1,"")) ->  | NC23: =IF(SUM($ME23:NB23)>=1,1,IF(AND(COUNT(NC13:NE22)>1,COUNTIF(NC13:NE22,"<75")=1),1,"")) ->  | NF23: =IF(SUM($ME23:NE23)>=1,1,IF(AND(COUNT(NF13:NH22)>1,COUNTIF(NF13:NH22,"<75")=1),1,"")) ->  | NI23: =IF(SUM($ME23:NH23)>=1,1,IF(AND(COUNT(NI13:NK22)>1,COUNTIF(NI13:NK22,"<75")=1),1,"")) ->  | NL23: =IF(SUM($ME23:NK23)>=1,1,IF(AND(COUNT(NL13:NN22)>1,COUNTIF(NL13:NN22,"<75")=1),1,"")) ->  | NO23: =SUM(ME23:NN23) -> 0 | NS23: ←平等割額の軽減特例措置判定用
ET24: =IF(COUNTIF(GD13:GG22,12)>0,ET12,IF(ET23>0,ET12,"")) ->  | EW24: =IF(SUM($ET24:ET24)=0,IF(EW23>0,EW12,""),"") ->  | EZ24: =IF(SUM($ET24:EW24)=0,IF(EZ23>0,EZ12,""),"") ->  | FC24: =IF(SUM($ET24:EZ24)=0,IF(FC23>0,FC12,""),"") ->  | FF24: =IF(SUM($ET24:FC24)=0,IF(FF23>0,FF12,""),"") ->  | FI24: =IF(SUM($ET24:FF24)=0,IF(FI23>0,FI12,""),"") ->  | FL24: =IF(SUM($ET24:FI24)=0,IF(FL23>0,FL12,""),"") ->  | FO24: =IF(SUM($ET24:FL24)=0,IF(FO23>0,FO12,""),"") ->  | FR24: =IF(SUM($ET24:FO24)=0,IF(FR23>0,FR12,""),"") ->  | FU24: =IF(SUM($ET24:FR24)=0,IF(FU23>0,FU12,""),"") ->  | FX24: =IF(SUM($ET24:FU24)=0,IF(FX23>0,FX12,""),"") ->  | GA24: =IF(SUM($ET24:FX24)=0,IF(GA23>0,GA12,""),"") ->  | GD24: =SUM(ET24:GC24) -> 0 | GG24: ←世帯ができた月
B25: 医療 保険分 | K25: 所得割 | P25: 率 | U25: 7.22 | AA25: ="（前年の総所得金額－基礎控除額）×"&IF(U25="","",U25)&"％" -> （前年の総所得金額－基礎控除額）×7.22％ | ET25: =IF(AND(SUM(ET24)=4,COUNTIF(ET13:EV22,"○")=0),SUMPRODUCT((GD13:GD22=12)*1,$EO$13:$EO$22),IF(SUM(ET24)=0,"",IF(SUM(ET23)=0,"",SUMPRODUCT((ET13:EV22="○")*1,$EO$13:$EQ$22)))) ->  | EW25: =IF(SUM(EW24)=0,"",IF(SUM(EW23)=0,"",SUMPRODUCT((EW13:EY22="○")*1,$EO$13:$EQ$22))) ->  | EZ25: =IF(SUM(EZ24)=0,"",IF(SUM(EZ23)=0,"",SUMPRODUCT((EZ13:FB22="○")*1,$EO$13:$EQ$22))) ->  | FC25: =IF(SUM(FC24)=0,"",IF(SUM(FC23)=0,"",SUMPRODUCT((FC13:FE22="○")*1,$EO$13:$EQ$22))) ->  | FF25: =IF(SUM(FF24)=0,"",IF(SUM(FF23)=0,"",SUMPRODUCT((FF13:FH22="○")*1,$EO$13:$EQ$22))) ->  | FI25: =IF(SUM(FI24)=0,"",IF(SUM(FI23)=0,"",SUMPRODUCT((FI13:FK22="○")*1,$EO$13:$EQ$22))) ->  | FL25: =IF(SUM(FL24)=0,"",IF(SUM(FL23)=0,"",SUMPRODUCT((FL13:FN22="○")*1,$EO$13:$EQ$22))) ->  | FO25: =IF(SUM(FO24)=0,"",IF(SUM(FO23)=0,"",SUMPRODUCT((FO13:FQ22="○")*1,$EO$13:$EQ$22))) ->  | FR25: =IF(SUM(FR24)=0,"",IF(SUM(FR23)=0,"",SUMPRODUCT((FR13:FT22="○")*1,$EO$13:$EQ$22))) ->  | FU25: =IF(SUM(FU24)=0,"",IF(SUM(FU23)=0,"",SUMPRODUCT((FU13:FW22="○")*1,$EO$13:$EQ$22))) ->  | FX25: =IF(SUM(FX24)=0,"",IF(SUM(FX23)=0,"",SUMPRODUCT((FX13:FZ22="○")*1,$EO$13:$EQ$22))) ->  | GA25: =IF(SUM(GA24)=0,"",IF(SUM(GA23)=0,"",SUMPRODUCT((GA13:GC22="○")*1,$EO$13:$EQ$22))) ->  | GD25: =SUM(ET25:GC25) -> 0 | GG25: ←給与・年金所得あり人数（＋10万円×（給与所得者※-1）の判定用）
P26: 控除額 | U26: 基礎控除 | ET26: =IF(ET$24="","",SUM(OB13:OD22)) ->  | EW26: =IF(EW$24="","",SUM(OE13:OG22)) ->  | EZ26: =IF(EZ$24="","",SUM(OH13:OJ22)) ->  | FC26: =IF(FC$24="","",SUM(OK13:OM22)) ->  | FF26: =IF(FF$24="","",SUM(ON13:OP22)) ->  | FI26: =IF(FI$24="","",SUM(OQ13:OS22)) ->  | FL26: =IF(FL$24="","",SUM(OT13:OV22)) ->  | FO26: =IF(FO$24="","",SUM(OW13:OY22)) ->  | FR26: =IF(FR$24="","",SUM(OZ13:PB22)) ->  | FU26: =IF(FU$24="","",SUM(PC13:PE22)) ->  | FX26: =IF(FX$24="","",SUM(PF13:PH22)) ->  | GA26: =IF(GA$24="","",SUM(PI13:PK22)) ->  | GD26: =SUM(ET26:GC26,$AU$2) -> 0 | GG26: ←軽減判定用所得（特定同一世帯所属者を除く）
K27: 均等割 | U27: 22200 | AA27: ←１人当たり | ET27: =IF(SUM(ET24)=0,"",SUM(ET23)) ->  | EW27: =IF(SUM(EW24)=0,"",SUM(EW23)) ->  | EZ27: =IF(SUM(EZ24)=0,"",SUM(EZ23)) ->  | FC27: =IF(SUM(FC24)=0,"",SUM(FC23)) ->  | FF27: =IF(SUM(FF24)=0,"",SUM(FF23)) ->  | FI27: =IF(SUM(FI24)=0,"",SUM(FI23)) ->  | FL27: =IF(SUM(FL24)=0,"",SUM(FL23)) ->  | FO27: =IF(SUM(FO24)=0,"",SUM(FO23)) ->  | FR27: =IF(SUM(FR24)=0,"",SUM(FR23)) ->  | FU27: =IF(SUM(FU24)=0,"",SUM(FU23)) ->  | FX27: =IF(SUM(FX24)=0,"",SUM(FX23)) ->  | GA27: =IF(SUM(GA24)=0,"",SUM(GA23)) ->  | GD27: =SUM(ET27:GC27) -> 0 | GG27: ←軽減判定用人数※これは擬主及び特定同一世帯所属者を含んでいない。
K28: 平等割 | U28: 25200 | AA28: ←１世帯当たり
K29: 限度額 | U29: 660000 | CM29: =IF(SUM(GD45)<>0,"平等割額の軽減特例措置該当↓","") ->  | DH29: =IF(SUM($GD45)=0,""," ("&TEXT(BK34,"#,##0")&"－"&IF(SUM(BY34)=0,0,TEXT(BY34,"#,##0"))&")×1/2×"&TEXT(GD45,"#,##0")&"/12＝"&TEXT(DA30,"#,##0")&" ← "&TEXT(BK34,"#,##0")&"－"&IF(SUM(BY34)=0,0,TEXT(BY34,"#,##0"))&"－"&TEXT(DA30,"#,##0")&"＝"&TEXT(DA34,"#,##0")) -> 
BR30: =IF($AU$5="","",$AU$5) ->  | CM30: =IF(CM29="","","Ｃからこの金額を引く→") ->  | DA30: =IF(SUM($GD45)=0,"",IF(SUM(GD13:GG22)=SUM(GD34:GG43),"",ROUNDDOWN(((SUM($BK34)-SUM($BY34)))/2*SUM($GD45)/12,0))) -> 
D31: 該当者 | U31: 課税総所得金額 | AP31: 算出額（全体） | BR31: 軽減額(2･5･7割額) | CF31: 軽減後(2･5･7割後) | DH31: 月数 | DP31: 月割後
D32: 氏 名 | K32: 生年月日 | R32: 年齢 | U32: ① | AB32: ② | AI32: ③（①－②） | AP32: ="④(③×"&DBCS(U25)&"%)" -> ④(③×７．２２%) | AW32: ⑤ | BD32: ④＋⑤ | BK32: ⑥ | BR32: ⑦ | BY32: ⑧ | CF32: Ａ＝④ | CM32: Ｂ＝⑤－⑦ | CT32: Ａ＋Ｂ | DA32: Ｃ＝⑥－⑧ | DH32: 該当 月数 | DL32: 世帯 月数 | DP32: 所得割 | DW32: 均等割 | ED32: 平等割
U33: 総所得金額 | AB33: 控除額 | AI33: 課税所得 | AP33: 所得割 | AW33: 均等割 | BD33: 合 計 | BK33: 平等割 | BR33: 均等割 | BY33: 平等割 | CF33: 所得割 | CM33: 均等割 | CT33: 合 計 | DA33: 平等割 | ET33: 4 | EW33: 5 | EZ33: 6 | FC33: 7 | FF33: 8 | FI33: 9 | FL33: 10 | FO33: 11 | FR33: 12 | FU33: 1 | FX33: 2 | GA33: 3 | GD33: 月数計 | GH33: 備考 | HI33: 4 | HL33: 5 | HO33: 6 | HR33: 7 | HU33: 8 | HX33: 9 | IA33: 10 | ID33: 11 | IG33: 12 | IJ33: 13 | IM33: 14 | IP33: 15
B34: 1 | D34: =IF($DH34="","",$D13) ->  | K34: =IF($DH34="","",IF($K13="","",SUM($K13))) ->  | R34: =IF($DH34="","",IF($R13="","",SUM($R13))) ->  | U34: =IF($DH34="","",IF($DC13="","",SUM($DC13))) ->  | AB34: =IF($DH34="","",IF($U34="","",基礎控除!H3)) ->  | AI34: =IF($DH34="","",IF($U34="","",IF(SUM($U34)>SUM($AB34),SUM($U34)-SUM($AB34),0))) ->  | AP34: =IF($DH34="","",ROUNDDOWN(SUM(AI34)*SUM($U$25)/100,0)) ->  | AW34: =IF($DH34="","",SUM($U$27)) ->  | BD34: =IF(SUM(AP34:BC34)=0,"",SUM(AP34:BC34)) ->  | BK34: =IF($DL34="","",SUM($U$28)) ->  | BR34: =IF($AU$5="","",IF($DH34="","",ROUNDDOWN(SUM($U$27)*SUM(IF($AU$5="２割軽減世帯",2,IF($AU$5="５割軽減世帯",5,IF($AU$5="７割軽減世帯",7,""))))/10,0))) ->  | BY34: =IF($AU$5="","",IF($DL34="","",ROUNDDOWN(SUM($U$28)*SUM(IF($AU$5="２割軽減世帯",2,IF($AU$5="５割軽減世帯",5,IF($AU$5="７割軽減世帯",7,""))))/10,0))) ->  | CF34: =IF($DH34="","",SUM($AP34)) ->  | CM34: =IF($DH34="","",SUM($AW34)-SUM($BR34)) ->  | CT34: =IF(SUM(CF34:CS34)=0,"",SUM(CF34:CS34)) ->  | DA34: =IF($DL34="","",SUM($BK34)-SUM($BY34)-SUM(DA30)) ->  | DH34: =IF(GD34="","",SUM(GD34)) ->  | DL34: =IF($GH$13="","",SUM(GD46)) ->  | DP34: =IF($DH34="","",ROUNDDOWN(SUM($CF34)*SUM($DH34)/12,0)) ->  | DW34: =IF($DH34="","",IF(未就学児!F6="",ROUNDDOWN(SUM($CM34)*SUM($DH34)/12,0),(ROUNDDOWN(SUM($CM34)*SUM($DH34)/12,0))*0.5)) ->  | ED34: =IF($DL34="","",ROUNDDOWN(SUM($DA34)*SUM($DL34)/12,0)) ->  | EK34: =IF(未就学児!$F6=1,"←未就学児","") ->  | ET34: =IF(ME13="","",IF(ME13<75,IF(HI34="○","○",""),"")) ->  | EW34: =IF(MH13="","",IF(MH13<75,IF(HL34="○","○",""),"")) ->  | EZ34: =IF(MK13="","",IF(MK13<75,IF(HO34="○","○",""),"")) ->  | FC34: =IF(MN13="","",IF(MN13<75,IF(HR34="○","○",""),"")) ->  | FF34: =IF(MQ13="","",IF(MQ13<75,IF(HU34="○","○",""),"")) ->  | FI34: =IF(MT13="","",IF(MT13<75,IF(HX34="○","○",""),"")) ->  | FL34: =IF(MW13="","",IF(MW13<75,IF(IA34="○","○",""),"")) ->  | FO34: =IF(MZ13="","",IF(MZ13<75,IF(ID34="○","○",""),"")) ->  | FR34: =IF(NC13="","",IF(NC13<75,IF(IG34="○","○",""),"")) ->  | FU34: =IF(NF13="","",IF(NF13<75,IF(IJ34="○","○",""),"")) ->  | FX34: =IF(NI13="","",IF(NI13<75,IF(IM34="○","○",""),"")) ->  | GA34: =IF(NL13="","",IF(NL13<75,IF(IP34="○","○",""),"")) ->  | GD34: =IF(COUNTIF(ET34:GC34,"○")=0,"",COUNTIF(ET34:GC34,"○")) ->  | GH34: =IF(SUM(NO13)=12,"国保に該当しない。",IF(OR(SUM(GD13)=SUM(NS13),SUM(NO13)=0),"","年度途中から後期高齢者医療制度移行あり。")) ->  | HI34: =IF(ME13="","",IF($NW13>HI$33,"○","")) ->  | HL34: =IF(MH13="","",IF($NW13>HL$33,"○","")) ->  | HO34: =IF(MK13="","",IF($NW13>HO$33,"○","")) ->  | HR34: =IF(MN13="","",IF($NW13>HR$33,"○","")) ->  | HU34: =IF(MQ13="","",IF($NW13>HU$33,"○","")) ->  | HX34: =IF(MT13="","",IF($NW13>HX$33,"○","")) ->  | IA34: =IF(MW13="","",IF($NW13>IA$33,"○","")) ->  | ID34: =IF(MZ13="","",IF($NW13>ID$33,"○","")) ->  | IG34: =IF(NC13="","",IF($NW13>IG$33,"○","")) ->  | IJ34: =IF(NF13="","",IF($NW13>IJ$33,"○","")) ->  | IM34: =IF(NI13="","",IF($NW13>IM$33,"○","")) ->  | IP34: =IF(NL13="","",IF($NW13>IP$33,"○","")) -> 
B35: 2 | AB35: =IF($DH35="","",IF($U35="","",基礎控除!H4)) ->  | DH35: =IF(GD35="","",SUM(GD35)) ->  | DW35: =IF($DH35="","",IF(未就学児!F7="",ROUNDDOWN(SUM($CM35)*SUM($DH35)/12,0),(ROUNDDOWN(SUM($CM35)*SUM($DH35)/12,0))*0.5)) ->  | EK35: =IF(未就学児!$F7=1,"←未就学児","") ->  | ET35: =IF(ME14="","",IF(ME14<75,IF(HI35="○","○",""),"")) ->  | EW35: =IF(MH14="","",IF(MH14<75,IF(HL35="○","○",""),"")) ->  | EZ35: =IF(MK14="","",IF(MK14<75,IF(HO35="○","○",""),"")) ->  | FC35: =IF(MN14="","",IF(MN14<75,IF(HR35="○","○",""),"")) ->  | FF35: =IF(MQ14="","",IF(MQ14<75,IF(HU35="○","○",""),"")) ->  | FI35: =IF(MT14="","",IF(MT14<75,IF(HX35="○","○",""),"")) ->  | FL35: =IF(MW14="","",IF(MW14<75,IF(IA35="○","○",""),"")) ->  | FO35: =IF(MZ14="","",IF(MZ14<75,IF(ID35="○","○",""),"")) ->  | FR35: =IF(NC14="","",IF(NC14<75,IF(IG35="○","○",""),"")) ->  | FU35: =IF(NF14="","",IF(NF14<75,IF(IJ35="○","○",""),"")) ->  | FX35: =IF(NI14="","",IF(NI14<75,IF(IM35="○","○",""),"")) ->  | GA35: =IF(NL14="","",IF(NL14<75,IF(IP35="○","○",""),"")) ->  | GD35: =IF(COUNTIF(ET35:GC35,"○")=0,"",COUNTIF(ET35:GC35,"○")) ->  | HI35: =IF(ME14="","",IF($NW14>HI$33,"○","")) ->  | HL35: =IF(MH14="","",IF($NW14>HL$33,"○","")) ->  | HO35: =IF(MK14="","",IF($NW14>HO$33,"○","")) ->  | HR35: =IF(MN14="","",IF($NW14>HR$33,"○","")) ->  | HU35: =IF(MQ14="","",IF($NW14>HU$33,"○","")) ->  | HX35: =IF(MT14="","",IF($NW14>HX$33,"○","")) ->  | IA35: =IF(MW14="","",IF($NW14>IA$33,"○","")) ->  | ID35: =IF(MZ14="","",IF($NW14>ID$33,"○","")) ->  | IG35: =IF(NC14="","",IF($NW14>IG$33,"○","")) ->  | IJ35: =IF(NF14="","",IF($NW14>IJ$33,"○","")) ->  | IM35: =IF(NI14="","",IF($NW14>IM$33,"○","")) ->  | IP35: =IF(NL14="","",IF($NW14>IP$33,"○","")) -> 
B36: 3 | AB36: =IF($DH36="","",IF($U36="","",基礎控除!H5)) ->  | DH36: =IF(GD36="","",SUM(GD36)) ->  | DW36: =IF($DH36="","",IF(未就学児!F8="",ROUNDDOWN(SUM($CM36)*SUM($DH36)/12,0),(ROUNDDOWN(SUM($CM36)*SUM($DH36)/12,0))*0.5)) ->  | EK36: =IF(未就学児!$F8=1,"←未就学児","") ->  | ET36: =IF(ME15="","",IF(ME15<75,IF(HI36="○","○",""),"")) ->  | EW36: =IF(MH15="","",IF(MH15<75,IF(HL36="○","○",""),"")) ->  | EZ36: =IF(MK15="","",IF(MK15<75,IF(HO36="○","○",""),"")) ->  | FC36: =IF(MN15="","",IF(MN15<75,IF(HR36="○","○",""),"")) ->  | FF36: =IF(MQ15="","",IF(MQ15<75,IF(HU36="○","○",""),"")) ->  | FI36: =IF(MT15="","",IF(MT15<75,IF(HX36="○","○",""),"")) ->  | FL36: =IF(MW15="","",IF(MW15<75,IF(IA36="○","○",""),"")) ->  | FO36: =IF(MZ15="","",IF(MZ15<75,IF(ID36="○","○",""),"")) ->  | FR36: =IF(NC15="","",IF(NC15<75,IF(IG36="○","○",""),"")) ->  | FU36: =IF(NF15="","",IF(NF15<75,IF(IJ36="○","○",""),"")) ->  | FX36: =IF(NI15="","",IF(NI15<75,IF(IM36="○","○",""),"")) ->  | GA36: =IF(NL15="","",IF(NL15<75,IF(IP36="○","○",""),"")) ->  | GD36: =IF(COUNTIF(ET36:GC36,"○")=0,"",COUNTIF(ET36:GC36,"○")) ->  | HI36: =IF(ME15="","",IF($NW15>HI$33,"○","")) ->  | HL36: =IF(MH15="","",IF($NW15>HL$33,"○","")) ->  | HO36: =IF(MK15="","",IF($NW15>HO$33,"○","")) ->  | HR36: =IF(MN15="","",IF($NW15>HR$33,"○","")) ->  | HU36: =IF(MQ15="","",IF($NW15>HU$33,"○","")) ->  | HX36: =IF(MT15="","",IF($NW15>HX$33,"○","")) ->  | IA36: =IF(MW15="","",IF($NW15>IA$33,"○","")) ->  | ID36: =IF(MZ15="","",IF($NW15>ID$33,"○","")) ->  | IG36: =IF(NC15="","",IF($NW15>IG$33,"○","")) ->  | IJ36: =IF(NF15="","",IF($NW15>IJ$33,"○","")) ->  | IM36: =IF(NI15="","",IF($NW15>IM$33,"○","")) ->  | IP36: =IF(NL15="","",IF($NW15>IP$33,"○","")) -> 
B37: 4 | AB37: =IF($DH37="","",IF($U37="","",基礎控除!H6)) ->  | DW37: =IF($DH37="","",IF(未就学児!F9="",ROUNDDOWN(SUM($CM37)*SUM($DH37)/12,0),(ROUNDDOWN(SUM($CM37)*SUM($DH37)/12,0))*0.5)) ->  | EK37: =IF(未就学児!$F9=1,"←未就学児","") -> 
B38: 5 | AB38: =IF($DH38="","",IF($U38="","",基礎控除!H7)) ->  | DW38: =IF($DH38="","",IF(未就学児!F10="",ROUNDDOWN(SUM($CM38)*SUM($DH38)/12,0),(ROUNDDOWN(SUM($CM38)*SUM($DH38)/12,0))*0.5)) ->  | EK38: =IF(未就学児!$F10=1,"←未就学児","") -> 
B39: 6 | AB39: =IF($DH39="","",IF($U39="","",基礎控除!H8)) ->  | DW39: =IF($DH39="","",IF(未就学児!F11="",ROUNDDOWN(SUM($CM39)*SUM($DH39)/12,0),(ROUNDDOWN(SUM($CM39)*SUM($DH39)/12,0))*0.5)) ->  | EK39: =IF(未就学児!$F11=1,"←未就学児","") -> 
B40: 7 | AB40: =IF($DH40="","",IF($U40="","",基礎控除!H9)) ->  | DW40: =IF($DH40="","",IF(未就学児!F12="",ROUNDDOWN(SUM($CM40)*SUM($DH40)/12,0),(ROUNDDOWN(SUM($CM40)*SUM($DH40)/12,0))*0.5)) ->  | EK40: =IF(未就学児!$F12=1,"←未就学児","") -> 
B41: 8 | AB41: =IF($DH41="","",IF($U41="","",基礎控除!H10)) ->  | DW41: =IF($DH41="","",IF(未就学児!F13="",ROUNDDOWN(SUM($CM41)*SUM($DH41)/12,0),(ROUNDDOWN(SUM($CM41)*SUM($DH41)/12,0))*0.5)) ->  | EK41: =IF(未就学児!$F13=1,"←未就学児","") -> 
B42: 9 | AB42: =IF($DH42="","",IF($U42="","",基礎控除!H11)) ->  | DW42: =IF($DH42="","",IF(未就学児!F14="",ROUNDDOWN(SUM($CM42)*SUM($DH42)/12,0),(ROUNDDOWN(SUM($CM42)*SUM($DH42)/12,0))*0.5)) ->  | EK42: =IF(未就学児!$F14=1,"←未就学児","") -> 
B43: 10 | AB43: =IF($DH43="","",IF($U43="","",基礎控除!H12)) ->  | DW43: =IF($DH43="","",IF(未就学児!F15="",ROUNDDOWN(SUM($CM43)*SUM($DH43)/12,0),(ROUNDDOWN(SUM($CM43)*SUM($DH43)/12,0))*0.5)) ->  | EK43: =IF(未就学児!$F15=1,"←未就学児","") -> 
D44: 合計 | U44: =SUM(U34:AA43) -> 0 | AB44: ********* | AI44: =SUM(AI34:AO43) -> 0 | AP44: =SUM(AP34:AV43) -> 0 | AW44: =SUM(AW34:BC43) -> 0 | BD44: =SUM(BD34:BJ43) -> 0 | BK44: =SUM(BK34:BQ43) -> 0 | BR44: =SUM(BR34:BX43) -> 0 | BY44: =SUM(BY34:CE43) -> 0 | CF44: =SUM(CF34:CL43) -> 0 | CM44: =SUM(CM34:CS43) -> 0 | CT44: =SUM(CT34:CZ43) -> 0 | DA44: =SUM(DA34:DG43) -> 0 | DP44: =SUM(DP34:DV43) -> 0 | DW44: =SUM(DW34:EC43) -> 0 | ED44: =SUM(ED34:EJ43) -> 0 | ET44: =SUMPRODUCT((ET34:EV43="○")*1) -> 0 | EW44: =SUMPRODUCT((EW34:EY43="○")*1) -> 0 | EZ44: =SUMPRODUCT((EZ34:FB43="○")*1) -> 0 | FC44: =SUMPRODUCT((FC34:FE43="○")*1) -> 0 | FF44: =SUMPRODUCT((FF34:FH43="○")*1) -> 0 | FI44: =SUMPRODUCT((FI34:FK43="○")*1) -> 0 | FL44: =SUMPRODUCT((FL34:FN43="○")*1) -> 0 | FO44: =SUMPRODUCT((FO34:FQ43="○")*1) -> 0 | FR44: =SUMPRODUCT((FR34:FT43="○")*1) -> 0 | FU44: =SUMPRODUCT((FU34:FW43="○")*1) -> 0 | FX44: =SUMPRODUCT((FX34:FZ43="○")*1) -> 0 | GA44: =SUMPRODUCT((GA34:GC43="○")*1) -> 0 | GD44: ***
BK45: =IF(ROUNDDOWN(SUM(BD44:BQ44),-2)>SUM($U$29),SUM($U$29),ROUNDDOWN(SUM(BD44:BQ44),-2)) -> 0 | BR45: ※特例措置の軽減含む↑ | CZ45: 合計（Ａ＋Ｂ＋Ｃ）→ | DA45: =SUM(CT44:DG44) -> 0 | EC45: 合計（Ａ＋Ｂ＋Ｃ）→ | ED45: =SUM(DP44:EJ44) -> 0 | ET45: =SUM(ME23) -> 0 | EW45: =SUM(MH23) -> 0 | EZ45: =SUM(MK23) -> 0 | FC45: =SUM(MN23) -> 0 | FF45: =SUM(MQ23) -> 0 | FI45: =SUM(MT23) -> 0 | FL45: =SUM(MW23) -> 0 | FO45: =SUM(MZ23) -> 0 | FR45: =SUM(NC23) -> 0 | FU45: =SUM(NF23) -> 0 | FX45: =SUM(NI23) -> 0 | GA45: =SUM(NL23) -> 0 | GD45: =IF(SUM(GD23)=1,"",SUM(ET45:GC45)) -> 0
CZ46: Ｄ 限度額以下（百円未満切捨て）→ | DA46: =IF(ROUNDDOWN(SUM(DA45),-2)>SUM($U$29),SUM($U$29),ROUNDDOWN(SUM(DA45),-2)) -> 0 | EC46: Ｄ 限度額以下（百円未満切捨て）→ | ED46: =IF(ROUNDDOWN(SUM(ED45),-2)>SUM($U$29),SUM($U$29),ROUNDDOWN(SUM(ED45),-2)) -> 0 | ET46: =IF(SUMPRODUCT((ET34:EV43="○")*1)>0,1,"") ->  | EW46: =IF(SUMPRODUCT((EW34:EY43="○")*1)>0,1,"") ->  | EZ46: =IF(SUMPRODUCT((EZ34:FB43="○")*1)>0,1,"") ->  | FC46: =IF(SUMPRODUCT((FC34:FE43="○")*1)>0,1,"") ->  | FF46: =IF(SUMPRODUCT((FF34:FH43="○")*1)>0,1,"") ->  | FI46: =IF(SUMPRODUCT((FI34:FK43="○")*1)>0,1,"") ->  | FL46: =IF(SUMPRODUCT((FL34:FN43="○")*1)>0,1,"") ->  | FO46: =IF(SUMPRODUCT((FO34:FQ43="○")*1)>0,1,"") ->  | FR46: =IF(SUMPRODUCT((FR34:FT43="○")*1)>0,1,"") ->  | FU46: =IF(SUMPRODUCT((FU34:FW43="○")*1)>0,1,"") ->  | FX46: =IF(SUMPRODUCT((FX34:FZ43="○")*1)>0,1,"") ->  | GA46: =IF(SUMPRODUCT((GA34:GC43="○")*1)>0,1,"") ->  | GD46: =SUM(ET46:GC46) -> 0
CZ47: 限度超過額→ | DA47: =IF(ROUNDDOWN(SUM(DA45),-2)>SUM(DA46),SUM(DA45)-SUM(DA46),0) -> 0 | EC47: 限度超過額→ | ED47: =IF(ROUNDDOWN(SUM(ED45),-2)>SUM(ED46),SUM(ED45)-SUM(ED46),0) -> 0
B49: 後期高齢者 支援金分 | K49: 所得割 | P49: 率 | U49: 2.92 | AA49: ="（前年の総所得金額－基礎控除額）×"&IF(U49="","",U49)&"％" -> （前年の総所得金額－基礎控除額）×2.92％
P50: 控除額 | U50: 基礎控除
K51: 均等割 | U51: 15200 | AA51: ←１人当たり
K52: 限度額 | U52: 260000
BR53: =IF($AU$5="","",$AU$5) -> 
D54: 該当者 | U54: 課税総所得金額 | AP54: 算出額（全体） | BR54: 軽減額(2･5･7割額) | CF54: 軽減後(2･5･7割後) | DH54: 月数 | DP54: 月割後
D55: 氏 名 | K55: 生年月日 | R55: 年齢 | U55: ① | AB55: ② | AI55: ③（①－②） | AP55: ="④(③×"&DBCS(U49)&"%)" -> ④(③×２．９２%) | AW55: ⑤ | BD55: ④＋⑤ | BR55: ⑦ | CF55: Ａ＝④ | CM55: Ｂ＝⑤－⑦ | CT55: Ａ＋Ｂ | DH55: 該当 月数 | DL55: 世帯 月数 | DP55: 所得割 | DW55: 均等割
U56: 総所得金額 | AB56: 控除額 | AI56: 課税所得 | AP56: 所得割 | AW56: 均等割 | BD56: 合 計 | BR56: 均等割 | CF56: 所得割 | CM56: 均等割 | CT56: 合 計 | ET56: 4 | EW56: 5 | EZ56: 6 | FC56: 7 | FF56: 8 | FI56: 9 | FL56: 10 | FO56: 11 | FR56: 12 | FU56: 1 | FX56: 2 | GA56: 3 | GD56: 月数計 | GH56: 備考
B57: 1 | D57: =IF($DH57="","",$D13) ->  | K57: =IF($DH57="","",IF($K13="","",SUM($K13))) ->  | R57: =IF($DH57="","",IF($R13="","",SUM($R13))) ->  | U57: =IF($DH57="","",IF($DC13="","",SUM($DC13))) ->  | AB57: =IF($DH57="","",IF($U57="","",基礎控除!H3)) ->  | AI57: =IF($DH57="","",IF($U57="","",IF(SUM($U57)>SUM($AB57),SUM($U57)-SUM($AB57),0))) ->  | AP57: =IF($DH57="","",ROUNDDOWN(SUM(AI57)*SUM($U$49)/100,0)) ->  | AW57: =IF($DH57="","",SUM($U$51)) ->  | BD57: =IF(SUM(AP57:BC57)=0,"",SUM(AP57:BC57)) ->  | BR57: =IF($AU$5="","",IF($DH57="","",ROUNDDOWN(SUM($U$51)*SUM(IF($AU$5="２割軽減世帯",2,IF($AU$5="５割軽減世帯",5,IF($AU$5="７割軽減世帯",7,""))))/10,0))) ->  | CF57: =IF($DH57="","",SUM($AP57)) ->  | CM57: =IF($DH57="","",SUM($AW57)-SUM($BR57)) ->  | CT57: =IF(SUM(CF57:CS57)=0,"",SUM(CF57:CS57)) ->  | DH57: =IF(GD57="","",SUM(GD57)) ->  | DP57: =IF($DH57="","",ROUNDDOWN(SUM($CF57)*SUM($DH57)/12,0)) ->  | DW57: =IF($DH57="","",IF(未就学児!F6="",ROUNDDOWN(SUM($CM57)*SUM($DH57)/12,0),ROUNDDOWN(SUM($CM57)*SUM($DH57)/12,0)*0.5)) ->  | EK57: =IF(未就学児!$F6=1,"←未就学児","") ->  | ET57: =IF(ME13="","",IF(ME13<75,IF(HI34="○","○",""),"")) ->  | EW57: =IF(MH13="","",IF(MH13<75,IF(HL34="○","○",""),"")) ->  | EZ57: =IF(MK13="","",IF(MK13<75,IF(HO34="○","○",""),"")) ->  | FC57: =IF(MN13="","",IF(MN13<75,IF(HR34="○","○",""),"")) ->  | FF57: =IF(MQ13="","",IF(MQ13<75,IF(HU34="○","○",""),"")) ->  | FI57: =IF(MT13="","",IF(MT13<75,IF(HX34="○","○",""),"")) ->  | FL57: =IF(MW13="","",IF(MW13<75,IF(IA34="○","○",""),"")) ->  | FO57: =IF(MZ13="","",IF(MZ13<75,IF(ID34="○","○",""),"")) ->  | FR57: =IF(NC13="","",IF(NC13<75,IF(IG34="○","○",""),"")) ->  | FU57: =IF(NF13="","",IF(NF13<75,IF(IJ34="○","○",""),"")) ->  | FX57: =IF(NI13="","",IF(NI13<75,IF(IM34="○","○",""),"")) ->  | GA57: =IF(NL13="","",IF(NL13<75,IF(IP34="○","○",""),"")) ->  | GD57: =IF(COUNTIF(ET57:GC57,"○")=0,"",COUNTIF(ET57:GC57,"○")) ->  | GH57: =IF(SUM(NO13)=12,"国保に該当しない。",IF(OR(SUM(GD13)=SUM(NS13),SUM(NO13)=0),"","年度途中から後期高齢者医療制度移行あり。")) -> 
B58: 2 | AB58: =IF($DH58="","",IF($U58="","",基礎控除!H4)) ->  | DH58: =IF(GD58="","",SUM(GD58)) ->  | DW58: =IF($DH58="","",IF(未就学児!F7="",ROUNDDOWN(SUM($CM58)*SUM($DH58)/12,0),ROUNDDOWN(SUM($CM58)*SUM($DH58)/12,0)*0.5)) ->  | EK58: =IF(未就学児!$F7=1,"←未就学児","") ->  | ET58: =IF(ME14="","",IF(ME14<75,IF(HI35="○","○",""),"")) ->  | EW58: =IF(MH14="","",IF(MH14<75,IF(HL35="○","○",""),"")) ->  | EZ58: =IF(MK14="","",IF(MK14<75,IF(HO35="○","○",""),"")) ->  | FC58: =IF(MN14="","",IF(MN14<75,IF(HR35="○","○",""),"")) ->  | FF58: =IF(MQ14="","",IF(MQ14<75,IF(HU35="○","○",""),"")) ->  | FI58: =IF(MT14="","",IF(MT14<75,IF(HX35="○","○",""),"")) ->  | FL58: =IF(MW14="","",IF(MW14<75,IF(IA35="○","○",""),"")) ->  | FO58: =IF(MZ14="","",IF(MZ14<75,IF(ID35="○","○",""),"")) ->  | FR58: =IF(NC14="","",IF(NC14<75,IF(IG35="○","○",""),"")) ->  | FU58: =IF(NF14="","",IF(NF14<75,IF(IJ35="○","○",""),"")) ->  | FX58: =IF(NI14="","",IF(NI14<75,IF(IM35="○","○",""),"")) ->  | GA58: =IF(NL14="","",IF(NL14<75,IF(IP35="○","○",""),"")) ->  | GD58: =IF(COUNTIF(ET58:GC58,"○")=0,"",COUNTIF(ET58:GC58,"○")) -> 
B59: 3 | AB59: =IF($DH59="","",IF($U59="","",基礎控除!H5)) ->  | DH59: =IF(GD59="","",SUM(GD59)) ->  | DW59: =IF($DH59="","",IF(未就学児!F8="",ROUNDDOWN(SUM($CM59)*SUM($DH59)/12,0),ROUNDDOWN(SUM($CM59)*SUM($DH59)/12,0)*0.5)) ->  | EK59: =IF(未就学児!$F8=1,"←未就学児","") ->  | ET59: =IF(ME15="","",IF(ME15<75,IF(HI36="○","○",""),"")) ->  | EW59: =IF(MH15="","",IF(MH15<75,IF(HL36="○","○",""),"")) ->  | EZ59: =IF(MK15="","",IF(MK15<75,IF(HO36="○","○",""),"")) ->  | FC59: =IF(MN15="","",IF(MN15<75,IF(HR36="○","○",""),"")) ->  | FF59: =IF(MQ15="","",IF(MQ15<75,IF(HU36="○","○",""),"")) ->  | FI59: =IF(MT15="","",IF(MT15<75,IF(HX36="○","○",""),"")) ->  | FL59: =IF(MW15="","",IF(MW15<75,IF(IA36="○","○",""),"")) ->  | FO59: =IF(MZ15="","",IF(MZ15<75,IF(ID36="○","○",""),"")) ->  | FR59: =IF(NC15="","",IF(NC15<75,IF(IG36="○","○",""),"")) ->  | FU59: =IF(NF15="","",IF(NF15<75,IF(IJ36="○","○",""),"")) ->  | FX59: =IF(NI15="","",IF(NI15<75,IF(IM36="○","○",""),"")) ->  | GA59: =IF(NL15="","",IF(NL15<75,IF(IP36="○","○",""),"")) ->  | GD59: =IF(COUNTIF(ET59:GC59,"○")=0,"",COUNTIF(ET59:GC59,"○")) -> 
B60: 4 | AB60: =IF($DH60="","",IF($U60="","",基礎控除!H6)) ->  | DW60: =IF($DH60="","",IF(未就学児!F9="",ROUNDDOWN(SUM($CM60)*SUM($DH60)/12,0),ROUNDDOWN(SUM($CM60)*SUM($DH60)/12,0)*0.5)) ->  | EK60: =IF(未就学児!$F9=1,"←未就学児","") -> 
B61: 5 | AB61: =IF($DH61="","",IF($U61="","",基礎控除!H7)) ->  | DW61: =IF($DH61="","",IF(未就学児!F10="",ROUNDDOWN(SUM($CM61)*SUM($DH61)/12,0),ROUNDDOWN(SUM($CM61)*SUM($DH61)/12,0)*0.5)) ->  | EK61: =IF(未就学児!$F10=1,"←未就学児","") -> 
B62: 6 | AB62: =IF($DH62="","",IF($U62="","",基礎控除!H8)) ->  | DW62: =IF($DH62="","",IF(未就学児!F11="",ROUNDDOWN(SUM($CM62)*SUM($DH62)/12,0),ROUNDDOWN(SUM($CM62)*SUM($DH62)/12,0)*0.5)) ->  | EK62: =IF(未就学児!$F11=1,"←未就学児","") -> 
B63: 7 | AB63: =IF($DH63="","",IF($U63="","",基礎控除!H9)) ->  | DW63: =IF($DH63="","",IF(未就学児!F12="",ROUNDDOWN(SUM($CM63)*SUM($DH63)/12,0),ROUNDDOWN(SUM($CM63)*SUM($DH63)/12,0)*0.5)) ->  | EK63: =IF(未就学児!$F12=1,"←未就学児","") -> 
B64: 8 | AB64: =IF($DH64="","",IF($U64="","",基礎控除!H10)) ->  | DW64: =IF($DH64="","",IF(未就学児!F13="",ROUNDDOWN(SUM($CM64)*SUM($DH64)/12,0),ROUNDDOWN(SUM($CM64)*SUM($DH64)/12,0)*0.5)) ->  | EK64: =IF(未就学児!$F13=1,"←未就学児","") -> 
B65: 9 | AB65: =IF($DH65="","",IF($U65="","",基礎控除!H11)) ->  | DW65: =IF($DH65="","",IF(未就学児!F14="",ROUNDDOWN(SUM($CM65)*SUM($DH65)/12,0),ROUNDDOWN(SUM($CM65)*SUM($DH65)/12,0)*0.5)) ->  | EK65: =IF(未就学児!$F14=1,"←未就学児","") -> 
B66: 10 | AB66: =IF($DH66="","",IF($U66="","",基礎控除!H12)) ->  | DW66: =IF($DH66="","",IF(未就学児!F15="",ROUNDDOWN(SUM($CM66)*SUM($DH66)/12,0),ROUNDDOWN(SUM($CM66)*SUM($DH66)/12,0)*0.5)) ->  | EK66: =IF(未就学児!$F15=1,"←未就学児","") -> 
D67: 合計 | U67: =SUM(U57:AA66) -> 0 | AB67: ********* | AI67: =SUM(AI57:AO66) -> 0 | AP67: =SUM(AP57:AV66) -> 0 | AW67: =SUM(AW57:BC66) -> 0 | BD67: =SUM(BD57:BJ66) -> 0 | BR67: =SUM(BR57:BX66) -> 0 | CF67: =SUM(CF57:CL66) -> 0 | CM67: =SUM(CM57:CS66) -> 0 | CT67: =SUM(CT57:CZ66) -> 0 | DP67: =SUM(DP57:DV66) -> 0 | DW67: =SUM(DW57:EC66) -> 0 | ET67: =SUMPRODUCT((ET57:ET66="○")*1) -> 0 | EW67: =SUMPRODUCT((EW57:EW66="○")*1) -> 0 | EZ67: =SUMPRODUCT((EZ57:EZ66="○")*1) -> 0 | FC67: =SUMPRODUCT((FC57:FC66="○")*1) -> 0 | FF67: =SUMPRODUCT((FF57:FF66="○")*1) -> 0 | FI67: =SUMPRODUCT((FI57:FI66="○")*1) -> 0 | FL67: =SUMPRODUCT((FL57:FL66="○")*1) -> 0 | FO67: =SUMPRODUCT((FO57:FO66="○")*1) -> 0 | FR67: =SUMPRODUCT((FR57:FR66="○")*1) -> 0 | FU67: =SUMPRODUCT((FU57:FU66="○")*1) -> 0 | FX67: =SUMPRODUCT((FX57:FX66="○")*1) -> 0 | GA67: =SUMPRODUCT((GA57:GA66="○")*1) -> 0 | GD67: ***
BK68: =IF(ROUNDDOWN(SUM(BD67:BQ67),-2)>SUM($U$52),SUM($U$52),ROUNDDOWN(SUM(BD67:BQ67),-2)) -> 0 | CZ68: 合計（Ａ＋Ｂ＋Ｃ）→ | DA68: =SUM(CT67:DG67) -> 0 | EC68: 合計（Ａ＋Ｂ＋Ｃ）→ | ED68: =SUM(DP67:EJ67) -> 0
CZ69: Ｄ 限度額以下（百円未満切捨て）→ | DA69: =IF(ROUNDDOWN(SUM(DA68),-2)>SUM($U$52),SUM($U$52),ROUNDDOWN(SUM(DA68),-2)) -> 0 | EC69: Ｄ 限度額以下（百円未満切捨て）→ | ED69: =IF(ROUNDDOWN(SUM(ED68),-2)>SUM($U$52),SUM($U$52),ROUNDDOWN(SUM(ED68),-2)) -> 0
CZ70: 限度超過額→ | DA70: =IF(ROUNDDOWN(SUM(DA68),-2)>SUM(DA69),SUM(DA68)-SUM(DA69),0) -> 0 | EC70: 限度超過額→ | ED70: =IF(ROUNDDOWN(SUM(ED68),-2)>SUM(ED69),SUM(ED68)-SUM(ED69),0) -> 0
B72: 介護保険分 | K72: 所得割 | P72: 率 | U72: 2.45 | AA72: ="（前年の総所得金額－基礎控除額）×"&IF(U72="","",U72)&"％" -> （前年の総所得金額－基礎控除額）×2.45％
P73: 控除額 | U73: 基礎控除
K74: 均等割 | U74: 16800 | AA74: ←１人当たり
K75: 限度額 | U75: 170000
BR76: =IF($AU$5="","",$AU$5) -> 
D77: 該当者 | U77: 課税総所得金額 | AP77: 算出額（全体） | BR77: 軽減額(2･5･7割額) | CF77: 軽減後(2･5･7割後) | DH77: 月数 | DP77: 月割後
D78: 氏 名 | K78: 生年月日 | R78: 年齢 | U78: ① | AB78: ② | AI78: ③（①－②） | AP78: ="④(③×"&DBCS(U72)&"%)" -> ④(③×２．４５%) | AW78: ⑤ | BD78: ④＋⑤ | BR78: ⑦ | CF78: Ａ＝④ | CM78: Ｂ＝⑤－⑦ | CT78: Ａ＋Ｂ | DH78: 該当 月数 | DL78: 世帯 月数 | DP78: 所得割 | DW78: 均等割
U79: 総所得金額 | AB79: 控除額 | AI79: 課税所得 | AP79: 所得割 | AW79: 均等割 | BD79: 合 計 | BR79: 均等割 | CF79: 所得割 | CM79: 均等割 | CT79: 合 計 | ET79: 4 | EW79: 5 | EZ79: 6 | FC79: 7 | FF79: 8 | FI79: 9 | FL79: 10 | FO79: 11 | FR79: 12 | FU79: 1 | FX79: 2 | GA79: 3 | GD79: 月数計 | GH79: 備考
B80: 1 | D80: =IF($DH80="","",$D13) ->  | K80: =IF($DH80="","",IF($K13="","",SUM($K13))) ->  | R80: =IF($DH80="","",IF($R13="","",SUM($R13))) ->  | U80: =IF($DH80="","",IF($DC13="","",SUM($DC13))) ->  | AB80: =IF($DH80="","",IF($U80="","",基礎控除!H3)) ->  | AI80: =IF($DH80="","",IF($U80="","",IF(SUM($U80)>SUM($AB80),SUM($U80)-SUM($AB80),0))) ->  | AP80: =IF($DH80="","",ROUNDDOWN(SUM(AI80)*SUM($U$72)/100,0)) ->  | AW80: =IF($DH80="","",SUM($U$74)) ->  | BD80: =IF(SUM(AP80:BC80)=0,"",SUM(AP80:BC80)) ->  | BR80: =IF($AU$5="","",IF($DH80="","",ROUNDDOWN(SUM($U$74)*SUM(IF($AU$5="２割軽減世帯",2,IF($AU$5="５割軽減世帯",5,IF($AU$5="７割軽減世帯",7,""))))/10,0))) ->  | CF80: =IF($DH80="","",SUM($AP80)) ->  | CM80: =IF($DH80="","",SUM($AW80)-SUM($BR80)) ->  | CT80: =IF(SUM(CF80:CS80)=0,"",SUM(CF80:CS80)) ->  | DH80: =IF(GD80="","",SUM(GD80)) ->  | DP80: =IF($DH80="","",ROUNDDOWN(SUM($CF80)*SUM($DH80)/12,0)) ->  | DW80: =IF($DH80="","",ROUNDDOWN(SUM($CM80)*SUM($DH80)/12,0)) ->  | ET80: =IF(KH13="","",IF(AND(KH13>=40,KH13<65),IF(HI34="○","○",""),"")) ->  | EW80: =IF(KK13="","",IF(AND(KK13>=40,KK13<65),IF(HL34="○","○",""),"")) ->  | EZ80: =IF(KN13="","",IF(AND(KN13>=40,KN13<65),IF(HO34="○","○",""),"")) ->  | FC80: =IF(KQ13="","",IF(AND(KQ13>=40,KQ13<65),IF(HR34="○","○",""),"")) ->  | FF80: =IF(KT13="","",IF(AND(KT13>=40,KT13<65),IF(HU34="○","○",""),"")) ->  | FI80: =IF(KW13="","",IF(AND(KW13>=40,KW13<65),IF(HX34="○","○",""),"")) ->  | FL80: =IF(KZ13="","",IF(AND(KZ13>=40,KZ13<65),IF(IA34="○","○",""),"")) ->  | FO80: =IF(LC13="","",IF(AND(LC13>=40,LC13<65),IF(ID34="○","○",""),"")) ->  | FR80: =IF(LF13="","",IF(AND(LF13>=40,LF13<65),IF(IG34="○","○",""),"")) ->  | FU80: =IF(LI13="","",IF(AND(LI13>=40,LI13<65),IF(IJ34="○","○",""),"")) ->  | FX80: =IF(LL13="","",IF(AND(LL13>=40,LL13<65),IF(IM34="○","○",""),"")) ->  | GA80: =IF(LO13="","",IF(AND(LO13>=40,LO13<65),IF(IP34="○","○",""),"")) ->  | GD80: =IF(COUNTIF(ET80:GC80,"○")=0,"",COUNTIF(ET80:GC80,"○")) ->  | GH80: =IF(AND(SUM(GD13)<>0,SUM(GD80)=0),"介護該当なし。",IF(AND(COUNTIF(KH13:LQ13,">=40")>0,COUNTIF(KH13:LQ13,">=40")<12),"年度途中から介護保険料該当。",IF(SUM(GD13)=SUM(GD80),"","年度途中から介護保険料は別に納める。"))) -> 
B81: 2 | AB81: =IF($DH81="","",IF($U81="","",基礎控除!H4)) ->  | DH81: =IF(GD81="","",SUM(GD81)) ->  | ET81: =IF(KH14="","",IF(AND(KH14>=40,KH14<65),IF(HI35="○","○",""),"")) ->  | EW81: =IF(KK14="","",IF(AND(KK14>=40,KK14<65),IF(HL35="○","○",""),"")) ->  | EZ81: =IF(KN14="","",IF(AND(KN14>=40,KN14<65),IF(HO35="○","○",""),"")) ->  | FC81: =IF(KQ14="","",IF(AND(KQ14>=40,KQ14<65),IF(HR35="○","○",""),"")) ->  | FF81: =IF(KT14="","",IF(AND(KT14>=40,KT14<65),IF(HU35="○","○",""),"")) ->  | FI81: =IF(KW14="","",IF(AND(KW14>=40,KW14<65),IF(HX35="○","○",""),"")) ->  | FL81: =IF(KZ14="","",IF(AND(KZ14>=40,KZ14<65),IF(IA35="○","○",""),"")) ->  | FO81: =IF(LC14="","",IF(AND(LC14>=40,LC14<65),IF(ID35="○","○",""),"")) ->  | FR81: =IF(LF14="","",IF(AND(LF14>=40,LF14<65),IF(IG35="○","○",""),"")) ->  | FU81: =IF(LI14="","",IF(AND(LI14>=40,LI14<65),IF(IJ35="○","○",""),"")) ->  | FX81: =IF(LL14="","",IF(AND(LL14>=40,LL14<65),IF(IM35="○","○",""),"")) ->  | GA81: =IF(LO14="","",IF(AND(LO14>=40,LO14<65),IF(IP35="○","○",""),"")) ->  | GD81: =IF(COUNTIF(ET81:GC81,"○")=0,"",COUNTIF(ET81:GC81,"○")) -> 
B82: 3 | AB82: =IF($DH82="","",IF($U82="","",基礎控除!H5)) ->  | DH82: =IF(GD82="","",SUM(GD82)) ->  | ET82: =IF(KH15="","",IF(AND(KH15>=40,KH15<65),IF(HI36="○","○",""),"")) ->  | EW82: =IF(KK15="","",IF(AND(KK15>=40,KK15<65),IF(HL36="○","○",""),"")) ->  | EZ82: =IF(KN15="","",IF(AND(KN15>=40,KN15<65),IF(HO36="○","○",""),"")) ->  | FC82: =IF(KQ15="","",IF(AND(KQ15>=40,KQ15<65),IF(HR36="○","○",""),"")) ->  | FF82: =IF(KT15="","",IF(AND(KT15>=40,KT15<65),IF(HU36="○","○",""),"")) ->  | FI82: =IF(KW15="","",IF(AND(KW15>=40,KW15<65),IF(HX36="○","○",""),"")) ->  | FL82: =IF(KZ15="","",IF(AND(KZ15>=40,KZ15<65),IF(IA36="○","○",""),"")) ->  | FO82: =IF(LC15="","",IF(AND(LC15>=40,LC15<65),IF(ID36="○","○",""),"")) ->  | FR82: =IF(LF15="","",IF(AND(LF15>=40,LF15<65),IF(IG36="○","○",""),"")) ->  | FU82: =IF(LI15="","",IF(AND(LI15>=40,LI15<65),IF(IJ36="○","○",""),"")) ->  | FX82: =IF(LL15="","",IF(AND(LL15>=40,LL15<65),IF(IM36="○","○",""),"")) ->  | GA82: =IF(LO15="","",IF(AND(LO15>=40,LO15<65),IF(IP36="○","○",""),"")) ->  | GD82: =IF(COUNTIF(ET82:GC82,"○")=0,"",COUNTIF(ET82:GC82,"○")) -> 
B83: 4 | AB83: =IF($DH83="","",IF($U83="","",基礎控除!H6)) -> 
B84: 5 | AB84: =IF($DH84="","",IF($U84="","",基礎控除!H7)) -> 
B85: 6 | AB85: =IF($DH85="","",IF($U85="","",基礎控除!H8)) -> 
B86: 7 | AB86: =IF($DH86="","",IF($U86="","",基礎控除!H9)) -> 
B87: 8 | AB87: =IF($DH87="","",IF($U87="","",基礎控除!H10)) -> 
B88: 9 | AB88: =IF($DH88="","",IF($U88="","",基礎控除!H11)) -> 
B89: 10 | AB89: =IF($DH89="","",IF($U89="","",基礎控除!H12)) -> 
D90: 合計 | U90: =SUM(U80:AA89) -> 0 | AB90: ********* | AI90: =SUM(AI80:AO89) -> 0 | AP90: =SUM(AP80:AV89) -> 0 | AW90: =SUM(AW80:BC89) -> 0 | BD90: =SUM(BD80:BJ89) -> 0 | BR90: =SUM(BR80:BX89) -> 0 | CF90: =SUM(CF80:CL89) -> 0 | CM90: =SUM(CM80:CS89) -> 0 | CT90: =SUM(CT80:CZ89) -> 0 | DP90: =SUM(DP80:DV89) -> 0 | DW90: =SUM(DW80:EC89) -> 0 | ET90: =SUMPRODUCT((ET80:ET89="○")*1) -> 0 | EW90: =SUMPRODUCT((EW80:EW89="○")*1) -> 0 | EZ90: =SUMPRODUCT((EZ80:EZ89="○")*1) -> 0 | FC90: =SUMPRODUCT((FC80:FC89="○")*1) -> 0 | FF90: =SUMPRODUCT((FF80:FF89="○")*1) -> 0 | FI90: =SUMPRODUCT((FI80:FI89="○")*1) -> 0 | FL90: =SUMPRODUCT((FL80:FL89="○")*1) -> 0 | FO90: =SUMPRODUCT((FO80:FO89="○")*1) -> 0 | FR90: =SUMPRODUCT((FR80:FR89="○")*1) -> 0 | FU90: =SUMPRODUCT((FU80:FU89="○")*1) -> 0 | FX90: =SUMPRODUCT((FX80:FX89="○")*1) -> 0 | GA90: =SUMPRODUCT((GA80:GA89="○")*1) -> 0 | GD90: ***
BK91: =IF(ROUNDDOWN(SUM(BD90:BQ90),-2)>SUM($U$75),SUM($U$75),ROUNDDOWN(SUM(BD90:BQ90),-2)) -> 0 | CZ91: 合計（Ａ＋Ｂ＋Ｃ）→ | DA91: =SUM(CT90:DG90) -> 0 | EC91: 合計（Ａ＋Ｂ＋Ｃ）→ | ED91: =SUM(DP90:EJ90) -> 0
CZ92: Ｄ 限度額以下（百円未満切捨て）→ | DA92: =IF(ROUNDDOWN(SUM(DA91),-2)>SUM($U$75),SUM($U$75),ROUNDDOWN(SUM(DA91),-2)) -> 0 | EC92: Ｄ 限度額以下（百円未満切捨て）→ | ED92: =IF(ROUNDDOWN(SUM(ED91),-2)>SUM($U$75),SUM($U$75),ROUNDDOWN(SUM(ED91),-2)) -> 0
CZ93: 限度超過額→ | DA93: =IF(ROUNDDOWN(SUM(DA91),-2)>SUM(DA92),SUM(DA91)-SUM(DA92),0) -> 0 | EC93: 限度超過額→ | ED93: =IF(ROUNDDOWN(SUM(ED91),-2)>SUM(ED92),SUM(ED91)-SUM(ED92),0) -> 0
D97: ="令和"&DBCS(基本項目!$B$3)&"年度 国民健康保険税 簡易計算（概算）" -> 令和７年度 国民健康保険税 簡易計算（概算）
D99: 医療 保険分 | Z99: 後期高齢者 支援金分 | AV99: 介護保険分 | BR99: 合計 | CP99: 試算した結果は、実際の保険料額を保証するものではございません。 参考としてご利用ください。
D103: =SUM(入力!ED46) -> 0 | Z103: =SUM(入力!ED69) -> 0 | AV103: =SUM(入力!ED92) -> 0 | BR103: =SUM(D103:BQ104) -> 0
D106: 納期 | P106: 保険税 | AB106: 納期限 | AV106: 納期 | BH106: 保険税 | BT106: 納期限
D108: 第１期 | P108: =IF(印刷用【簡易版】!BC4="","",印刷用【簡易版】!BC4) ->  | AB108: =IF(印刷用【簡易版】!BK4="","",印刷用【簡易版】!BK4) ->  | AV108: 第６期 | BH108: =IF(印刷用【簡易版】!CD4="","",印刷用【簡易版】!CD4) ->  | BT108: =IF(印刷用【簡易版】!CL4="","",印刷用【簡易版】!CL4) -> 
D110: 第２期 | P110: =IF(印刷用【簡易版】!BC5="","",印刷用【簡易版】!BC5) ->  | AB110: =IF(印刷用【簡易版】!BK5="","",印刷用【簡易版】!BK5) ->  | AV110: 第７期 | BH110: =IF(印刷用【簡易版】!CD5="","",印刷用【簡易版】!CD5) ->  | BT110: =IF(印刷用【簡易版】!CL5="","",印刷用【簡易版】!CL5) -> 
D112: 第３期 | P112: =IF(印刷用【簡易版】!BC6="","",印刷用【簡易版】!BC6) ->  | AB112: =IF(印刷用【簡易版】!BK6="","",印刷用【簡易版】!BK6) ->  | AV112: 第８期 | BH112: =IF(印刷用【簡易版】!CD6="","",印刷用【簡易版】!CD6) ->  | BT112: =IF(印刷用【簡易版】!CL6="","",印刷用【簡易版】!CL6) -> 
D114: 第４期 | P114: =IF(印刷用【簡易版】!BC7="","",印刷用【簡易版】!BC7) ->  | AB114: =IF(印刷用【簡易版】!BK7="","",印刷用【簡易版】!BK7) ->  | AV114: 随時期 | BH114: =IF(印刷用【簡易版】!CD7="","",印刷用【簡易版】!CD7) ->  | BT114: =IF(印刷用【簡易版】!CL7="","",印刷用【簡易版】!CL7) -> 
D116: 第５期 | P116: =IF(印刷用【簡易版】!BC8="","",印刷用【簡易版】!BC8) ->  | AB116: =IF(印刷用【簡易版】!BK8="","",印刷用【簡易版】!BK8) ->  | AV116: 合 計 | BH116: =IF(AND(COUNT(P108:AA117,BH108:BS115)=0,SUM(P108:AA117,BH108:BS115)=0),"",SUM(P108:AA117,BH108:BS115)) -> 

Sheet 印刷用【簡易版】 (hidden)
B1: ="令和"&DBCS(基本項目!$B$3)&"年度 国民健康保険税 簡易計算（概算）" -> 令和７年度 国民健康保険税 簡易計算（概算）
C2: 《税率等》
D3: 区分 | Z3: 医療保険分 | AG3: 後期高齢者 支援金分 | AN3: 医療保険分 | AV3: 納期 | BC3: 保険税 | BK3: 納期限 | BW3: 納期 | CD3: 保険税 | CL3: 納期限
D4: 所得割(％) ※（前年の総所得金額－基礎控除額）×率 | Z4: =IF(入力!U25="","",入力!U25) -> 7.22 | AG4: =IF(入力!U49="","",入力!U49) -> 2.92 | AN4: =IF(入力!U72="","",入力!U72) -> 2.45 | AV4: 第１期 | BC4: =IF(基本項目!$M3="","",SUM(基本項目!$M3)) ->  | BK4: =IF($BC4="","",IF(基本項目!$H3="","",基本項目!$H3)) ->  | BW4: 第６期 | CD4: =IF(基本項目!$M8="","",SUM(基本項目!$M8)) ->  | CL4: =IF($CD4="","",IF(基本項目!$H8="","",基本項目!$H8)) -> 
D5: 均等割(円) ※１人当たり | Z5: =IF(入力!U27="","",入力!U27) -> 22200 | AG5: =IF(入力!U51="","",入力!U51) -> 15200 | AN5: =IF(入力!U74="","",入力!U74) -> 16800 | AV5: 第２期 | BC5: =IF(基本項目!$M4="","",SUM(基本項目!$M4)) ->  | BK5: =IF($BC5="","",IF(基本項目!$H4="","",基本項目!$H4)) ->  | BW5: 第７期 | CD5: =IF(基本項目!$M9="","",SUM(基本項目!$M9)) ->  | CL5: =IF($CD5="","",IF(基本項目!$H9="","",基本項目!$H9)) -> 
D6: 平等割(円) ※１世帯当たり | Z6: =IF(入力!U28="","",入力!U28) -> 25200 | AV6: 第３期 | BC6: =IF(基本項目!$M5="","",SUM(基本項目!$M5)) ->  | BK6: =IF($BC6="","",IF(基本項目!$H5="","",基本項目!$H5)) ->  | BW6: 第８期 | CD6: =IF(基本項目!$M10="","",SUM(基本項目!$M10)) ->  | CL6: =IF($CD6="","",IF(基本項目!$H10="","",基本項目!$H10)) -> 
D7: 限度額(円) | Z7: =IF(入力!U29="","",入力!U29) -> 660000 | AG7: =IF(入力!U52="","",入力!U52) -> 260000 | AN7: =IF(入力!U75="","",入力!U75) -> 170000 | AV7: 第４期 | BC7: =IF(基本項目!$M6="","",SUM(基本項目!$M6)) ->  | BK7: =IF($BC7="","",IF(基本項目!$H6="","",基本項目!$H6)) ->  | BW7: 随時期 | CD7: =IF(基本項目!$M11="",IF(基本項目!$M12="","",SUM(基本項目!$M12)),SUM(基本項目!$M11)) ->  | CL7: =IF($CD7="","",IF(基本項目!$M11="",IF(基本項目!$M12="","",基本項目!$H12),基本項目!$H11)) -> 
D8: 限度額合計(円) | Z8: =SUM(Z7:AT7) -> 1090000 | AV8: 第５期 | BC8: =IF(基本項目!$M7="","",SUM(基本項目!$M7)) ->  | BK8: =IF($BC8="","",IF(基本項目!$H7="","",基本項目!$H7)) ->  | BW8: 合 計 | CD8: =IF(AND(COUNT(BC4:BJ8,CD4:CK7)=0,SUM(BC4:BJ8,CD4:CK7)=0),"",SUM(BC4:BJ8,CD4:CK7)) -> 
C10: 《軽減及び月割後》
D11: 氏 名 | L11: 年齢 | P11: 医療保険分 | AO11: 後期高齢者支援金分 | BG11: 介護保険分 | BY11: 備考
P12: 月数 | T12: 所得割 | AA12: 均等割 | AH12: 平等割 | AO12: 月数 | AS12: 所得割 | AZ12: 均等割 | BG12: 月数 | BK12: 所得割 | BR12: 均等割
B13: 1 | D13: =IF(入力!$D13="","",入力!$D13) ->  | L13: =IF(入力!$R13="","",入力!$R13) ->  | P13: =IF(入力!$DH34="","",入力!$DH34) ->  | T13: =IF(入力!$DP34="","",入力!$DP34) ->  | AA13: =IF(入力!$DW34="","",入力!$DW34) ->  | AH13: =IF(入力!$ED34="","",入力!$ED34) ->  | AO13: =IF(入力!$DH57="","",入力!$DH57) ->  | AS13: =IF(入力!$DP57="","",入力!$DP57) ->  | AZ13: =IF(入力!$DW57="","",入力!$DW57) ->  | BG13: =IF(入力!$DH80="","",入力!$DH80) ->  | BK13: =IF(入力!$DP80="","",入力!$DP80) ->  | BR13: =IF(入力!$DW80="","",入力!$DW80) ->  | BY13: =IF(入力!GH34="",IF(入力!GH80="","",入力!GH80),入力!GH34) -> 
B14: 2 | D14: =IF(入力!$D14="","",入力!$D14) ->  | L14: =IF(入力!$R14="","",入力!$R14) ->  | P14: =IF(入力!$DH35="","",入力!$DH35) ->  | T14: =IF(入力!$DP35="","",入力!$DP35) ->  | AA14: =IF(入力!$DW35="","",入力!$DW35) ->  | AO14: =IF(入力!$DH58="","",入力!$DH58) ->  | AS14: =IF(入力!$DP58="","",入力!$DP58) ->  | AZ14: =IF(入力!$DW58="","",入力!$DW58) ->  | BG14: =IF(入力!$DH81="","",入力!$DH81) ->  | BK14: =IF(入力!$DP81="","",入力!$DP81) ->  | BR14: =IF(入力!$DW81="","",入力!$DW81) ->  | BY14: =IF(入力!GH35="",IF(入力!GH81="","",入力!GH81),入力!GH35) -> 
B15: 3 | D15: =IF(入力!$D15="","",入力!$D15) ->  | L15: =IF(入力!$R15="","",入力!$R15) ->  | P15: =IF(入力!$DH36="","",入力!$DH36) ->  | T15: =IF(入力!$DP36="","",入力!$DP36) ->  | AA15: =IF(入力!$DW36="","",入力!$DW36) ->  | AO15: =IF(入力!$DH59="","",入力!$DH59) ->  | AS15: =IF(入力!$DP59="","",入力!$DP59) ->  | AZ15: =IF(入力!$DW59="","",入力!$DW59) ->  | BG15: =IF(入力!$DH82="","",入力!$DH82) ->  | BK15: =IF(入力!$DP82="","",入力!$DP82) ->  | BR15: =IF(入力!$DW82="","",入力!$DW82) ->  | BY15: =IF(入力!GH36="",IF(入力!GH82="","",入力!GH82),入力!GH36) -> 
B16: 4 | D16: =IF(入力!$D16="","",入力!$D16) ->  | L16: =IF(入力!$R16="","",入力!$R16) ->  | P16: =IF(入力!$DH37="","",入力!$DH37) ->  | T16: =IF(入力!$DP37="","",入力!$DP37) ->  | AA16: =IF(入力!$DW37="","",入力!$DW37) ->  | AO16: =IF(入力!$DH60="","",入力!$DH60) ->  | AS16: =IF(入力!$DP60="","",入力!$DP60) ->  | AZ16: =IF(入力!$DW60="","",入力!$DW60) ->  | BG16: =IF(入力!$DH83="","",入力!$DH83) ->  | BK16: =IF(入力!$DP83="","",入力!$DP83) ->  | BR16: =IF(入力!$DW83="","",入力!$DW83) ->  | BY16: =IF(入力!GH37="",IF(入力!GH83="","",入力!GH83),入力!GH37) -> 
B17: 5 | D17: =IF(入力!$D17="","",入力!$D17) ->  | L17: =IF(入力!$R17="","",入力!$R17) ->  | P17: =IF(入力!$DH38="","",入力!$DH38) ->  | T17: =IF(入力!$DP38="","",入力!$DP38) ->  | AA17: =IF(入力!$DW38="","",入力!$DW38) ->  | AO17: =IF(入力!$DH61="","",入力!$DH61) ->  | AS17: =IF(入力!$DP61="","",入力!$DP61) ->  | AZ17: =IF(入力!$DW61="","",入力!$DW61) ->  | BG17: =IF(入力!$DH84="","",入力!$DH84) ->  | BK17: =IF(入力!$DP84="","",入力!$DP84) ->  | BR17: =IF(入力!$DW84="","",入力!$DW84) ->  | BY17: =IF(入力!GH38="",IF(入力!GH84="","",入力!GH84),入力!GH38) -> 
B18: 6 | D18: =IF(入力!$D18="","",入力!$D18) ->  | L18: =IF(入力!$R18="","",入力!$R18) ->  | P18: =IF(入力!$DH39="","",入力!$DH39) ->  | T18: =IF(入力!$DP39="","",入力!$DP39) ->  | AA18: =IF(入力!$DW39="","",入力!$DW39) ->  | AO18: =IF(入力!$DH62="","",入力!$DH62) ->  | AS18: =IF(入力!$DP62="","",入力!$DP62) ->  | AZ18: =IF(入力!$DW62="","",入力!$DW62) ->  | BG18: =IF(入力!$DH85="","",入力!$DH85) ->  | BK18: =IF(入力!$DP85="","",入力!$DP85) ->  | BR18: =IF(入力!$DW85="","",入力!$DW85) ->  | BY18: =IF(入力!GH39="",IF(入力!GH85="","",入力!GH85),入力!GH39) -> 
B19: 7 | D19: =IF(入力!$D19="","",入力!$D19) ->  | L19: =IF(入力!$R19="","",入力!$R19) ->  | P19: =IF(入力!$DH40="","",入力!$DH40) ->  | T19: =IF(入力!$DP40="","",入力!$DP40) ->  | AA19: =IF(入力!$DW40="","",入力!$DW40) ->  | AO19: =IF(入力!$DH63="","",入力!$DH63) ->  | AS19: =IF(入力!$DP63="","",入力!$DP63) ->  | AZ19: =IF(入力!$DW63="","",入力!$DW63) ->  | BG19: =IF(入力!$DH86="","",入力!$DH86) ->  | BK19: =IF(入力!$DP86="","",入力!$DP86) ->  | BR19: =IF(入力!$DW86="","",入力!$DW86) ->  | BY19: =IF(入力!GH40="",IF(入力!GH86="","",入力!GH86),入力!GH40) -> 
B20: 8 | D20: =IF(入力!$D20="","",入力!$D20) ->  | L20: =IF(入力!$R20="","",入力!$R20) ->  | P20: =IF(入力!$DH41="","",入力!$DH41) ->  | T20: =IF(入力!$DP41="","",入力!$DP41) ->  | AA20: =IF(入力!$DW41="","",入力!$DW41) ->  | AO20: =IF(入力!$DH64="","",入力!$DH64) ->  | AS20: =IF(入力!$DP64="","",入力!$DP64) ->  | AZ20: =IF(入力!$DW64="","",入力!$DW64) ->  | BG20: =IF(入力!$DH87="","",入力!$DH87) ->  | BK20: =IF(入力!$DP87="","",入力!$DP87) ->  | BR20: =IF(入力!$DW87="","",入力!$DW87) ->  | BY20: =IF(入力!GH41="",IF(入力!GH87="","",入力!GH87),入力!GH41) -> 
B21: 9 | D21: =IF(入力!$D21="","",入力!$D21) ->  | L21: =IF(入力!$R21="","",入力!$R21) ->  | P21: =IF(入力!$DH42="","",入力!$DH42) ->  | T21: =IF(入力!$DP42="","",入力!$DP42) ->  | AA21: =IF(入力!$DW42="","",入力!$DW42) ->  | AO21: =IF(入力!$DH65="","",入力!$DH65) ->  | AS21: =IF(入力!$DP65="","",入力!$DP65) ->  | AZ21: =IF(入力!$DW65="","",入力!$DW65) ->  | BG21: =IF(入力!$DH88="","",入力!$DH88) ->  | BK21: =IF(入力!$DP88="","",入力!$DP88) ->  | BR21: =IF(入力!$DW88="","",入力!$DW88) ->  | BY21: =IF(入力!GH42="",IF(入力!GH88="","",入力!GH88),入力!GH42) -> 
B22: 10 | D22: =IF(入力!$D22="","",入力!$D22) ->  | L22: =IF(入力!$R22="","",入力!$R22) ->  | P22: =IF(入力!$DH43="","",入力!$DH43) ->  | T22: =IF(入力!$DP43="","",入力!$DP43) ->  | AA22: =IF(入力!$DW43="","",入力!$DW43) ->  | AO22: =IF(入力!$DH66="","",入力!$DH66) ->  | AS22: =IF(入力!$DP66="","",入力!$DP66) ->  | AZ22: =IF(入力!$DW66="","",入力!$DW66) ->  | BG22: =IF(入力!$DH89="","",入力!$DH89) ->  | BK22: =IF(入力!$DP89="","",入力!$DP89) ->  | BR22: =IF(入力!$DW89="","",入力!$DW89) ->  | BY22: =IF(入力!GH43="",IF(入力!GH89="","",入力!GH89),入力!GH43) -> 
D23: 合計 | T23: =SUM(T13:Z22) -> 0 | AA23: =SUM(AA13:AG22) -> 0 | AH23: =SUM(AH13:AN22) -> 0 | AS23: =SUM(AS13:AY22) -> 0 | AZ23: =SUM(AZ13:BF22) -> 0 | BK23: =SUM(BK13:BQ22) -> 0 | BR23: =SUM(BR13:BX22) -> 0 | BY23: ←それぞれの金額は，軽減及び月割り後 の金額です。
T24: =SUM(T23:AN23) -> 0 | AS24: =SUM(AS23:BF23) -> 0 | BK24: =SUM(BK23:BX23) -> 0
D25: 税額 (限度・端数調整後) | P25: =SUM(入力!ED46) -> 0 | AO25: =SUM(入力!ED69) -> 0 | BG25: =SUM(入力!ED92) -> 0
D26: 総合計 | P26: =SUM(P25:BX25) -> 0

Sheet 国民健康保険税軽減早見表H26から (hidden)
C2: 軽減判定基準額の求め方
C3: ※１：判定となる世帯の所得金額とは，擬主を含む世帯主，被保険者及び特定同一世帯所属者数の所得の合計額
C4: ※２：特定同一世帯所属者とは，国民健康保険から後期高齢者医療制度に移行した方
C5: ※３：一定の給与所得者（給与収入55万円超）又は公的年金等の支給（60万円超（65歳未満）又は110万円超（65歳以上））を受ける者
C6: ●２割軽減基準額 世帯の所得金額の合計が
F7: 430000 | L7: 円＋｛（被保険者＋特定同一世帯所属者数）× | AM7: 560000 | AS7: 円｝
U8: ＋10万円×（給与所得者※-1） | AT8: 円
C9: ●５割軽減基準額 世帯の所得の合計が，
F10: 430000 | L10: 円＋｛（被保険者＋特定同一世帯所属者数）× | AM10: 305000 | AS10: 円｝
U11: ＋10万円×（給与所得者※-1） | AT11: 円
C12: ●７割軽減基準額 世帯の所得の合計が，
F13: 430000 | L13: 円 | O13: ＋10万円×（給与所得者※-1） | AN13: 円
C15: 軽減判定基準額表 | Q15: ※３の人数 | AO15: =SUM(入力!GD25) -> 0 | AU15: 人
C16: ※世帯の所得合計金額 ＝ 擬主を含む世帯主 ＋ 被保険者 ＋ 特定同一世帯所属者数
AN17: 入力シートから
E18: 世帯の軽減判定所得 | AN18: =SUM(入力!AU4) -> 0
E19: 被保険者数＋特定同一世帯所属者数 | AN19: =SUM(入力!P5) -> 0
E20: 判定結果 | AN20: =IF(SUM(AN19)=0,"",VLOOKUP(SUM(AN19),$E$26:$AM$35,29,FALSE)) -> 
E21: ※基準額は以下で判定
E22: 被保険者数 ＋ 特定同一世帯 所属者数 | L22: ２割軽減世帯 | S22: ５割軽減世帯 | Z22: ７割軽減世帯 | AG22: 入力 シートの判定
S23: 被保険者又は特定同一世帯所属者に世帯主がいない場合
E26: 1 | L26: =$F$7+$E26*$AM$7+IF(SUM($AO$15)<=1,0,100000*($AO$15-1)) -> 990000 | S26: =$F$10+$E26*$AM$10+IF(SUM($AO$15)<=1,0,100000*($AO$15-1)) -> 735000 | Z26: =$F$13+IF(SUM($AO$15)<=0,0,100000*($AO$15-1)) -> 430000 | AG26: =IF($AN$19=$E26,IF($AN$18>$L26,"",IF($AN$18<=$Z26,$Z$22,IF($AN$18<=$S26,$S$22,IF($AN$18<=$L26,$L$22,"")))),"") -> 
E27: 2 | L27: =$F$7+$E27*$AM$7+IF(SUM($AO$15)<=1,0,100000*($AO$15-1)) -> 1550000 | S27: =$F$10+$E27*$AM$10+IF(SUM($AO$15)<=1,0,100000*($AO$15-1)) -> 1040000 | Z27: =$F$13+IF(SUM($AO$15)<=0,0,100000*($AO$15-1)) -> 430000
E28: 3 | L28: 2110000 | S28: 1345000 | Z28: 430000
E29: 4 | L29: 2670000 | S29: 1650000 | Z29: 430000
E30: 5 | L30: 3230000 | S30: 1955000 | Z30: 430000
E31: 6 | L31: 3790000 | S31: 2260000 | Z31: 430000
E32: 7 | L32: 4350000 | S32: 2565000 | Z32: 430000
E33: 8 | L33: 4910000 | S33: 2870000 | Z33: 430000
E34: 9 | L34: 5470000 | S34: 3175000 | Z34: 430000
E35: 10 | L35: 6030000 | S35: 3480000 | Z35: 430000
E36: 以下１人増 すごとに加算 | L36: =SUM($AM$7) -> 560000 | S36: =SUM($AM$10) -> 305000 | Z36: 加算なし | AG36: ***********

Sheet 所得計算 (hidden)
AB2: 給与所得計算 | AI2: 1 | AJ2: 2 | AK2: 3 | AL2: 4 | AM2: 5 | AN2: 6 | AO2: 7 | AP2: 8 | AQ2: 9 | AR2: 10 | AT2: 専給1 | AU2: 専給2 | AV2: 専給3 | AW2: 専給4 | AX2: 専給5 | AY2: 専給6 | AZ2: 専給7 | BA2: 専給8 | BB2: 専給9 | BC2: 専給10
B3: 年齢計算 | AB3: 給与収入金額 | AD3: 所得金額 の計算 | AI3: =IF(入力!$X13="","",SUM(入力!$X13)) ->  | AJ3: =IF(入力!$X14="","",SUM(入力!$X14)) ->  | AK3: =IF(入力!$X15="","",SUM(入力!$X15)) ->  | AL3: =IF(入力!$X16="","",SUM(入力!$X16)) ->  | AM3: =IF(入力!$X17="","",SUM(入力!$X17)) ->  | AN3: =IF(入力!$X18="","",SUM(入力!$X18)) ->  | AO3: =IF(入力!$X19="","",SUM(入力!$X19)) ->  | AP3: =IF(入力!$X20="","",SUM(入力!$X20)) ->  | AQ3: =IF(入力!$X21="","",SUM(入力!$X21)) ->  | AR3: =IF(入力!$X22="","",SUM(入力!$X22)) ->  | AT3: =IF(入力!$BT13="","",SUM(入力!$BT13)) ->  | AU3: =IF(入力!$BT14="","",SUM(入力!$BT14)) ->  | AV3: =IF(入力!$BT15="","",SUM(入力!$BT15)) ->  | AW3: =IF(入力!$BT16="","",SUM(入力!$BT16)) ->  | AX3: =IF(入力!$BT17="","",SUM(入力!$BT17)) ->  | AY3: =IF(入力!$BT18="","",SUM(入力!$BT18)) ->  | AZ3: =IF(入力!$BT19="","",SUM(入力!$BT19)) ->  | BA3: =IF(入力!$BT20="","",SUM(入力!$BT20)) ->  | BB3: =IF(入力!$BT21="","",SUM(入力!$BT21)) ->  | BC3: =IF(入力!$BT22="","",SUM(入力!$BT22)) ->  | BE3: 給与所得控除後の給与所得 | BP3: 給与所得控除後の給与所得（専従者給与）
B4: 生年月日 | I4: 今日現在 | P4: 年金基準日 | W4: 年金 判定 | AB4: から | AC4: まで | AI4: =IF(AI$3="","",IF(SUM(AI$5:AI$15)=0,"",SUM(AI$5:AI$15))) ->  | AJ4: =IF(AJ$3="","",IF(SUM(AJ$5:AJ$15)=0,"",SUM(AJ$5:AJ$15))) ->  | AT4: =IF(AT$3="","",IF(SUM(AT$5:AT$15)=0,"",SUM(AT$5:AT$15))) ->  | AU4: =IF(AU$3="","",IF(SUM(AU$5:AU$15)=0,"",SUM(AU$5:AU$15))) ->  | BE4: 1 | BF4: 2 | BG4: 3 | BH4: 4 | BI4: 5 | BJ4: 6 | BK4: 7 | BL4: 8 | BM4: 9 | BN4: 10 | BP4: 1 | BQ4: 2 | BR4: 3 | BS4: 4 | BT4: 5 | BU4: 6 | BV4: 7 | BW4: 8 | BX4: 9 | BY4: 10
I5: =TODAY() -> 2025-02-03 | P5: =VALUE("R"&基本項目!$B$3&".1.1") -> 2025-01-01 | AB5: 0 | AC5: 550000 | AD5: 0円 | AI5: =IF(AI$3="","",IF(BE5="","",SUM(BE5)-SUM(BE$16))) ->  | AK5: =IF(AK$3="","",IF(BG5="","",SUM(BG5)-SUM(BG$16))) ->  | AL5: =IF(AL$3="","",IF(BH5="","",SUM(BH5)-SUM(BH$16))) ->  | AM5: =IF(AM$3="","",IF(BI5="","",SUM(BI5)-SUM(BI$16))) ->  | AN5: =IF(AN$3="","",IF(BJ5="","",SUM(BJ5)-SUM(BJ$16))) ->  | AO5: =IF(AO$3="","",IF(BK5="","",SUM(BK5)-SUM(BK$16))) ->  | AP5: =IF(AP$3="","",IF(BL5="","",SUM(BL5)-SUM(BL$16))) ->  | AQ5: =IF(AQ$3="","",IF(BM5="","",SUM(BM5)-SUM(BM$16))) ->  | AR5: =IF(AR$3="","",IF(BN5="","",SUM(BN5)-SUM(BN$16))) ->  | AT5: =IF(AT$3="","",IF(BP5="","",SUM(BP5)-SUM(BP$16))) ->  | AU5: =IF(AU$3="","",IF(BQ5="","",SUM(BQ5)-SUM(BQ$16))) ->  | BE5: =IF(AI$3="","",IF(AND(AI$3>=$AB$5,AI$3<=$AC$5),0,"")) ->  | BF5: =IF(AJ$3="","",IF(AND(AJ$3>=$AB$5,AJ$3<=$AC$5),0,"")) ->  | BP5: =IF(AT$3="","",IF(AND(AT$3>=$AB$5,AT$3<=$AC$5),0,"")) ->  | BQ5: =IF(AU$3="","",IF(AND(AU$3>=$AB$5,AU$3<=$AC$5),0,"")) ->  | BR5: =IF(AV$3="","",IF(AND(AV$3>=$AB$5,AV$3<=$AC$5),0,"")) ->  | BS5: =IF(AW$3="","",IF(AND(AW$3>=$AB$5,AW$3<=$AC$5),0,"")) ->  | BT5: =IF(AX$3="","",IF(AND(AX$3>=$AB$5,AX$3<=$AC$5),0,"")) ->  | BU5: =IF(AY$3="","",IF(AND(AY$3>=$AB$5,AY$3<=$AC$5),0,"")) ->  | BV5: =IF(AZ$3="","",IF(AND(AZ$3>=$AB$5,AZ$3<=$AC$5),0,"")) ->  | BW5: =IF(BA$3="","",IF(AND(BA$3>=$AB$5,BA$3<=$AC$5),0,"")) ->  | BX5: =IF(BB$3="","",IF(AND(BB$3>=$AB$5,BB$3<=$AC$5),0,"")) ->  | BY5: =IF(BC$3="","",IF(AND(BC$3>=$AB$5,BC$3<=$AC$5),0,"")) -> 
B6: =IF(入力!$K13="","",入力!$K13) ->  | I6: =IF($B6="","",IF($B6>I$5,"",DATEDIF($B6,I$5,"Y"))) ->  | P6: =IF(P$5="","",IF($B6="","",IF($B6>P$5,0,DATEDIF($B6,P$5,"Y")))) ->  | W6: =IF(AND(入力!R13="",P6=""),"",IF(入力!R13="",P6,入力!R13)) ->  | AB6: =AC5+1 -> 550001 | AC6: 1618999 | AD6: 給与の収入金額から550,000円を控除した金額 | BE6: =IF(AI$3="","",IF(AND(AI$3>=$AB$6,AI$3<=$AC$6),AI$3-550000,"")) ->  | BF6: =IF(AJ$3="","",IF(AND(AJ$3>=$AB$6,AJ$3<=$AC$6),AJ$3-550000,"")) ->  | BP6: =IF(AT$3="","",IF(AND(AT$3>=$AB$6,AT$3<=$AC$6),AT$3-550000,"")) ->  | BQ6: =IF(AU$3="","",IF(AND(AU$3>=$AB$6,AU$3<=$AC$6),AU$3-550000,"")) ->  | BR6: =IF(AV$3="","",IF(AND(AV$3>=$AB$6,AV$3<=$AC$6),AV$3-550000,"")) ->  | BS6: =IF(AW$3="","",IF(AND(AW$3>=$AB$6,AW$3<=$AC$6),AW$3-550000,"")) ->  | BT6: =IF(AX$3="","",IF(AND(AX$3>=$AB$6,AX$3<=$AC$6),AX$3-550000,"")) ->  | BU6: =IF(AY$3="","",IF(AND(AY$3>=$AB$6,AY$3<=$AC$6),AY$3-550000,"")) ->  | BV6: =IF(AZ$3="","",IF(AND(AZ$3>=$AB$6,AZ$3<=$AC$6),AZ$3-550000,"")) ->  | BW6: =IF(BA$3="","",IF(AND(BA$3>=$AB$6,BA$3<=$AC$6),BA$3-550000,"")) ->  | BX6: =IF(BB$3="","",IF(AND(BB$3>=$AB$6,BB$3<=$AC$6),BB$3-550000,"")) ->  | BY6: =IF(BC$3="","",IF(AND(BC$3>=$AB$6,BC$3<=$AC$6),BC$3-550000,"")) -> 
B7: =IF(入力!$K14="","",入力!$K14) ->  | I7: =IF($B7="","",IF($B7>I$5,"",DATEDIF($B7,I$5,"Y"))) ->  | P7: =IF(P$5="","",IF($B7="","",IF($B7>P$5,0,DATEDIF($B7,P$5,"Y")))) ->  | W7: =IF(AND(入力!R14="",P7=""),"",IF(入力!R14="",P7,入力!R14)) ->  | AB7: =AC6+1 -> 1619000 | AC7: 1619999 | AD7: 1,069,000円 | BE7: =IF(AI$3="","",IF(AND(AI$3>=$AB$7,AI$3<=$AC$7),1069000,"")) ->  | BF7: =IF(AJ$3="","",IF(AND(AJ$3>=$AB$7,AJ$3<=$AC$7),1069000,"")) ->  | BP7: =IF(AT$3="","",IF(AND(AT$3>=$AB$7,AT$3<=$AC$7),1069000,"")) ->  | BQ7: =IF(AU$3="","",IF(AND(AU$3>=$AB$7,AU$3<=$AC$7),1069000,"")) ->  | BR7: =IF(AV$3="","",IF(AND(AV$3>=$AB$7,AV$3<=$AC$7),1069000,"")) ->  | BS7: =IF(AW$3="","",IF(AND(AW$3>=$AB$7,AW$3<=$AC$7),1069000,"")) ->  | BT7: =IF(AX$3="","",IF(AND(AX$3>=$AB$7,AX$3<=$AC$7),1069000,"")) ->  | BU7: =IF(AY$3="","",IF(AND(AY$3>=$AB$7,AY$3<=$AC$7),1069000,"")) ->  | BV7: =IF(AZ$3="","",IF(AND(AZ$3>=$AB$7,AZ$3<=$AC$7),1069000,"")) ->  | BW7: =IF(BA$3="","",IF(AND(BA$3>=$AB$7,BA$3<=$AC$7),1069000,"")) ->  | BX7: =IF(BB$3="","",IF(AND(BB$3>=$AB$7,BB$3<=$AC$7),1069000,"")) ->  | BY7: =IF(BC$3="","",IF(AND(BC$3>=$AB$7,BC$3<=$AC$7),1069000,"")) -> 
B8: =IF(入力!$K15="","",入力!$K15) ->  | I8: =IF($B8="","",IF($B8>I$5,"",DATEDIF($B8,I$5,"Y"))) ->  | P8: =IF(P$5="","",IF($B8="","",IF($B8>P$5,0,DATEDIF($B8,P$5,"Y")))) ->  | W8: =IF(AND(入力!R15="",P8=""),"",IF(入力!R15="",P8,入力!R15)) ->  | AB8: 1620000 | AC8: 1621999 | AD8: 1,070,000円 | BE8: =IF(AI$3="","",IF(AND(AI$3>=$AB$8,AI$3<=$AC$8),1070000,"")) ->  | BF8: =IF(AJ$3="","",IF(AND(AJ$3>=$AB$8,AJ$3<=$AC$8),1070000,"")) ->  | BP8: =IF(AT$3="","",IF(AND(AT$3>=$AB$8,AT$3<=$AC$8),1070000,"")) ->  | BQ8: =IF(AU$3="","",IF(AND(AU$3>=$AB$8,AU$3<=$AC$8),1070000,"")) ->  | BR8: =IF(AV$3="","",IF(AND(AV$3>=$AB$8,AV$3<=$AC$8),1070000,"")) ->  | BS8: =IF(AW$3="","",IF(AND(AW$3>=$AB$8,AW$3<=$AC$8),1070000,"")) ->  | BT8: =IF(AX$3="","",IF(AND(AX$3>=$AB$8,AX$3<=$AC$8),1070000,"")) ->  | BU8: =IF(AY$3="","",IF(AND(AY$3>=$AB$8,AY$3<=$AC$8),1070000,"")) ->  | BV8: =IF(AZ$3="","",IF(AND(AZ$3>=$AB$8,AZ$3<=$AC$8),1070000,"")) ->  | BW8: =IF(BA$3="","",IF(AND(BA$3>=$AB$8,BA$3<=$AC$8),1070000,"")) ->  | BX8: =IF(BB$3="","",IF(AND(BB$3>=$AB$8,BB$3<=$AC$8),1070000,"")) ->  | BY8: =IF(BC$3="","",IF(AND(BC$3>=$AB$8,BC$3<=$AC$8),1070000,"")) -> 
B9: =IF(入力!$K16="","",入力!$K16) ->  | I9: =IF($B9="","",IF($B9>I$5,"",DATEDIF($B9,I$5,"Y"))) ->  | W9: =IF(AND(入力!R16="",P9=""),"",IF(入力!R16="",P9,入力!R16)) ->  | AB9: 1622000 | AC9: 1623999 | AD9: 1,072,000円 | BE9: =IF(AI$3="","",IF(AND(AI$3>=$AB$9,AI$3<=$AC$9),1072000,"")) ->  | BF9: =IF(AJ$3="","",IF(AND(AJ$3>=$AB$9,AJ$3<=$AC$9),1072000,"")) ->  | BP9: =IF(AT$3="","",IF(AND(AT$3>=$AB$9,AT$3<=$AC$9),1072000,"")) ->  | BQ9: =IF(AU$3="","",IF(AND(AU$3>=$AB$9,AU$3<=$AC$9),1072000,"")) ->  | BR9: =IF(AV$3="","",IF(AND(AV$3>=$AB$9,AV$3<=$AC$9),1072000,"")) ->  | BS9: =IF(AW$3="","",IF(AND(AW$3>=$AB$9,AW$3<=$AC$9),1072000,"")) ->  | BT9: =IF(AX$3="","",IF(AND(AX$3>=$AB$9,AX$3<=$AC$9),1072000,"")) ->  | BU9: =IF(AY$3="","",IF(AND(AY$3>=$AB$9,AY$3<=$AC$9),1072000,"")) ->  | BV9: =IF(AZ$3="","",IF(AND(AZ$3>=$AB$9,AZ$3<=$AC$9),1072000,"")) ->  | BW9: =IF(BA$3="","",IF(AND(BA$3>=$AB$9,BA$3<=$AC$9),1072000,"")) ->  | BX9: =IF(BB$3="","",IF(AND(BB$3>=$AB$9,BB$3<=$AC$9),1072000,"")) ->  | BY9: =IF(BC$3="","",IF(AND(BC$3>=$AB$9,BC$3<=$AC$9),1072000,"")) -> 
B10: =IF(入力!$K17="","",入力!$K17) ->  | W10: =IF(AND(入力!R17="",P10=""),"",IF(入力!R17="",P10,入力!R17)) ->  | AB10: 1624000 | AC10: 1627999 | AD10: 1,074,000円 | BE10: =IF(AI$3="","",IF(AND(AI$3>=$AB$10,AI$3<=$AC$10),1074000,"")) ->  | BF10: =IF(AJ$3="","",IF(AND(AJ$3>=$AB$10,AJ$3<=$AC$10),1074000,"")) ->  | BP10: =IF(AT$3="","",IF(AND(AT$3>=$AB$10,AT$3<=$AC$10),1074000,"")) ->  | BQ10: =IF(AU$3="","",IF(AND(AU$3>=$AB$10,AU$3<=$AC$10),1074000,"")) ->  | BR10: =IF(AV$3="","",IF(AND(AV$3>=$AB$10,AV$3<=$AC$10),1074000,"")) ->  | BS10: =IF(AW$3="","",IF(AND(AW$3>=$AB$10,AW$3<=$AC$10),1074000,"")) ->  | BT10: =IF(AX$3="","",IF(AND(AX$3>=$AB$10,AX$3<=$AC$10),1074000,"")) ->  | BU10: =IF(AY$3="","",IF(AND(AY$3>=$AB$10,AY$3<=$AC$10),1074000,"")) ->  | BV10: =IF(AZ$3="","",IF(AND(AZ$3>=$AB$10,AZ$3<=$AC$10),1074000,"")) ->  | BW10: =IF(BA$3="","",IF(AND(BA$3>=$AB$10,BA$3<=$AC$10),1074000,"")) ->  | BX10: =IF(BB$3="","",IF(AND(BB$3>=$AB$10,BB$3<=$AC$10),1074000,"")) ->  | BY10: =IF(BC$3="","",IF(AND(BC$3>=$AB$10,BC$3<=$AC$10),1074000,"")) -> 
B11: =IF(入力!$K18="","",入力!$K18) ->  | W11: =IF(AND(入力!R18="",P11=""),"",IF(入力!R18="",P11,入力!R18)) ->  | AB11: 1628000 | AC11: 1799999 | AD11: 給与の収入金額を４で割り千円未満の端数切捨て（Ａ） | AF11: Ａ×2.4＋100,000で求めた金額 | BE11: =IF(AI$3="","",IF(AND(AI$3>=$AB$11,AI$3<=$AC$11),ROUNDDOWN(ROUNDDOWN(AI$3/4,-3)*2.4,0)+100000,"")) ->  | BF11: =IF(AJ$3="","",IF(AND(AJ$3>=$AB$11,AJ$3<=$AC$11),ROUNDDOWN(ROUNDDOWN(AJ$3/4,-3)*2.4,0)+100000,"")) ->  | BP11: =IF(AT$3="","",IF(AND(AT$3>=$AB$11,AT$3<=$AC$11),ROUNDDOWN(ROUNDDOWN(AT$3/4,-3)*2.4,0)+100000,"")) ->  | BQ11: =IF(AU$3="","",IF(AND(AU$3>=$AB$11,AU$3<=$AC$11),ROUNDDOWN(ROUNDDOWN(AU$3/4,-3)*2.4,0)+100000,"")) ->  | BR11: =IF(AV$3="","",IF(AND(AV$3>=$AB$11,AV$3<=$AC$11),ROUNDDOWN(ROUNDDOWN(AV$3/4,-3)*2.4,0)+100000,"")) ->  | BS11: =IF(AW$3="","",IF(AND(AW$3>=$AB$11,AW$3<=$AC$11),ROUNDDOWN(ROUNDDOWN(AW$3/4,-3)*2.4,0)+100000,"")) ->  | BT11: =IF(AX$3="","",IF(AND(AX$3>=$AB$11,AX$3<=$AC$11),ROUNDDOWN(ROUNDDOWN(AX$3/4,-3)*2.4,0)+100000,"")) ->  | BU11: =IF(AY$3="","",IF(AND(AY$3>=$AB$11,AY$3<=$AC$11),ROUNDDOWN(ROUNDDOWN(AY$3/4,-3)*2.4,0)+100000,"")) ->  | BV11: =IF(AZ$3="","",IF(AND(AZ$3>=$AB$11,AZ$3<=$AC$11),ROUNDDOWN(ROUNDDOWN(AZ$3/4,-3)*2.4,0)+100000,"")) ->  | BW11: =IF(BA$3="","",IF(AND(BA$3>=$AB$11,BA$3<=$AC$11),ROUNDDOWN(ROUNDDOWN(BA$3/4,-3)*2.4,0)+100000,"")) ->  | BX11: =IF(BB$3="","",IF(AND(BB$3>=$AB$11,BB$3<=$AC$11),ROUNDDOWN(ROUNDDOWN(BB$3/4,-3)*2.4,0)+100000,"")) ->  | BY11: =IF(BC$3="","",IF(AND(BC$3>=$AB$11,BC$3<=$AC$11),ROUNDDOWN(ROUNDDOWN(BC$3/4,-3)*2.4,0)+100000,"")) -> 
B12: =IF(入力!$K19="","",入力!$K19) ->  | W12: =IF(AND(入力!R19="",P12=""),"",IF(入力!R19="",P12,入力!R19)) ->  | AB12: 1800000 | AC12: 3599999 | AF12: Ａ×2.8－80,000円で求めた金額 | BE12: =IF(AI$3="","",IF(AND(AI$3>=$AB$12,AI$3<=$AC$12),ROUNDDOWN(ROUNDDOWN(AI$3/4,-3)*2.8,0)-80000,"")) ->  | BF12: =IF(AJ$3="","",IF(AND(AJ$3>=$AB$12,AJ$3<=$AC$12),ROUNDDOWN(ROUNDDOWN(AJ$3/4,-3)*2.8,0)-80000,"")) ->  | BP12: =IF(AT$3="","",IF(AND(AT$3>=$AB$12,AT$3<=$AC$12),ROUNDDOWN(ROUNDDOWN(AT$3/4,-3)*2.8,0)-80000,"")) ->  | BQ12: =IF(AU$3="","",IF(AND(AU$3>=$AB$12,AU$3<=$AC$12),ROUNDDOWN(ROUNDDOWN(AU$3/4,-3)*2.8,0)-80000,"")) ->  | BR12: =IF(AV$3="","",IF(AND(AV$3>=$AB$12,AV$3<=$AC$12),ROUNDDOWN(ROUNDDOWN(AV$3/4,-3)*2.8,0)-80000,"")) ->  | BS12: =IF(AW$3="","",IF(AND(AW$3>=$AB$12,AW$3<=$AC$12),ROUNDDOWN(ROUNDDOWN(AW$3/4,-3)*2.8,0)-80000,"")) ->  | BT12: =IF(AX$3="","",IF(AND(AX$3>=$AB$12,AX$3<=$AC$12),ROUNDDOWN(ROUNDDOWN(AX$3/4,-3)*2.8,0)-80000,"")) ->  | BU12: =IF(AY$3="","",IF(AND(AY$3>=$AB$12,AY$3<=$AC$12),ROUNDDOWN(ROUNDDOWN(AY$3/4,-3)*2.8,0)-80000,"")) ->  | BV12: =IF(AZ$3="","",IF(AND(AZ$3>=$AB$12,AZ$3<=$AC$12),ROUNDDOWN(ROUNDDOWN(AZ$3/4,-3)*2.8,0)-80000,"")) ->  | BW12: =IF(BA$3="","",IF(AND(BA$3>=$AB$12,BA$3<=$AC$12),ROUNDDOWN(ROUNDDOWN(BA$3/4,-3)*2.8,0)-80000,"")) ->  | BX12: =IF(BB$3="","",IF(AND(BB$3>=$AB$12,BB$3<=$AC$12),ROUNDDOWN(ROUNDDOWN(BB$3/4,-3)*2.8,0)-80000,"")) ->  | BY12: =IF(BC$3="","",IF(AND(BC$3>=$AB$12,BC$3<=$AC$12),ROUNDDOWN(ROUNDDOWN(BC$3/4,-3)*2.8,0)-80000,"")) -> 
B13: =IF(入力!$K20="","",入力!$K20) ->  | W13: =IF(AND(入力!R20="",P13=""),"",IF(入力!R20="",P13,入力!R20)) ->  | AB13: 3600000 | AC13: 6599999 | AF13: Ａ×3.2－440,000円で求めた金額 | BE13: =IF(AI$3="","",IF(AND(AI$3>=$AB$13,AI$3<=$AC$13),ROUNDDOWN(ROUNDDOWN(AI$3/4,-3)*3.2,0)-440000,"")) ->  | BF13: =IF(AJ$3="","",IF(AND(AJ$3>=$AB$13,AJ$3<=$AC$13),ROUNDDOWN(ROUNDDOWN(AJ$3/4,-3)*3.2,0)-440000,"")) ->  | BP13: =IF(AT$3="","",IF(AND(AT$3>=$AB$13,AT$3<=$AC$13),ROUNDDOWN(ROUNDDOWN(AT$3/4,-3)*3.2,0)-440000,"")) ->  | BQ13: =IF(AU$3="","",IF(AND(AU$3>=$AB$13,AU$3<=$AC$13),ROUNDDOWN(ROUNDDOWN(AU$3/4,-3)*3.2,0)-440000,"")) ->  | BR13: =IF(AV$3="","",IF(AND(AV$3>=$AB$13,AV$3<=$AC$13),ROUNDDOWN(ROUNDDOWN(AV$3/4,-3)*3.2,0)-440000,"")) ->  | BS13: =IF(AW$3="","",IF(AND(AW$3>=$AB$13,AW$3<=$AC$13),ROUNDDOWN(ROUNDDOWN(AW$3/4,-3)*3.2,0)-440000,"")) ->  | BT13: =IF(AX$3="","",IF(AND(AX$3>=$AB$13,AX$3<=$AC$13),ROUNDDOWN(ROUNDDOWN(AX$3/4,-3)*3.2,0)-440000,"")) ->  | BU13: =IF(AY$3="","",IF(AND(AY$3>=$AB$13,AY$3<=$AC$13),ROUNDDOWN(ROUNDDOWN(AY$3/4,-3)*3.2,0)-440000,"")) ->  | BV13: =IF(AZ$3="","",IF(AND(AZ$3>=$AB$13,AZ$3<=$AC$13),ROUNDDOWN(ROUNDDOWN(AZ$3/4,-3)*3.2,0)-440000,"")) ->  | BW13: =IF(BA$3="","",IF(AND(BA$3>=$AB$13,BA$3<=$AC$13),ROUNDDOWN(ROUNDDOWN(BA$3/4,-3)*3.2,0)-440000,"")) ->  | BX13: =IF(BB$3="","",IF(AND(BB$3>=$AB$13,BB$3<=$AC$13),ROUNDDOWN(ROUNDDOWN(BB$3/4,-3)*3.2,0)-440000,"")) ->  | BY13: =IF(BC$3="","",IF(AND(BC$3>=$AB$13,BC$3<=$AC$13),ROUNDDOWN(ROUNDDOWN(BC$3/4,-3)*3.2,0)-440000,"")) -> 
B14: =IF(入力!$K21="","",入力!$K21) ->  | W14: =IF(AND(入力!R21="",P14=""),"",IF(入力!R21="",P14,入力!R21)) ->  | AB14: 6600000 | AC14: 8499999 | AD14: 給与の収入金額×0.9－1,100,000円で求めた金額 | BE14: =IF(AI$3="","",IF(AND(AI$3>=$AB$14,AI$3<=$AC$14),ROUNDDOWN(AI$3*0.9,0)-1100000,"")) ->  | BF14: =IF(AJ$3="","",IF(AND(AJ$3>=$AB$14,AJ$3<=$AC$14),ROUNDDOWN(AJ$3*0.9,0)-1100000,"")) ->  | BP14: =IF(AT$3="","",IF(AND(AT$3>=$AB$14,AT$3<=$AC$14),ROUNDDOWN(AT$3*0.9,0)-1100000,"")) ->  | BQ14: =IF(AU$3="","",IF(AND(AU$3>=$AB$14,AU$3<=$AC$14),ROUNDDOWN(AU$3*0.9,0)-1100000,"")) ->  | BR14: =IF(AV$3="","",IF(AND(AV$3>=$AB$14,AV$3<=$AC$14),ROUNDDOWN(AV$3*0.9,0)-1100000,"")) ->  | BS14: =IF(AW$3="","",IF(AND(AW$3>=$AB$14,AW$3<=$AC$14),ROUNDDOWN(AW$3*0.9,0)-1100000,"")) ->  | BT14: =IF(AX$3="","",IF(AND(AX$3>=$AB$14,AX$3<=$AC$14),ROUNDDOWN(AX$3*0.9,0)-1100000,"")) ->  | BU14: =IF(AY$3="","",IF(AND(AY$3>=$AB$14,AY$3<=$AC$14),ROUNDDOWN(AY$3*0.9,0)-1100000,"")) ->  | BV14: =IF(AZ$3="","",IF(AND(AZ$3>=$AB$14,AZ$3<=$AC$14),ROUNDDOWN(AZ$3*0.9,0)-1100000,"")) ->  | BW14: =IF(BA$3="","",IF(AND(BA$3>=$AB$14,BA$3<=$AC$14),ROUNDDOWN(BA$3*0.9,0)-1100000,"")) ->  | BX14: =IF(BB$3="","",IF(AND(BB$3>=$AB$14,BB$3<=$AC$14),ROUNDDOWN(BB$3*0.9,0)-1100000,"")) ->  | BY14: =IF(BC$3="","",IF(AND(BC$3>=$AB$14,BC$3<=$AC$14),ROUNDDOWN(BC$3*0.9,0)-1100000,"")) -> 
B15: =IF(入力!$K22="","",入力!$K22) ->  | W15: =IF(AND(入力!R22="",P15=""),"",IF(入力!R22="",P15,入力!R22)) ->  | AB15: =AC14+1 -> 8500000 | AD15: 給与の収入金額－1,950,000円（※所得金額調整控除は別計算） | BE15: =IF(AI$3="","",IF(AI$3>=$AB$15,AI$3-1950000,"")) ->  | BP15: =IF(AT$3="","",IF(AT$3>=$AB$15,AT$3-1950000,"")) -> 
AB16: 所得金額調整控除サイン | AI16: =IF(入力!$AL$13="","",SUM(入力!$AL$13)) ->  | AJ16: =IF(入力!$AL$14="","",SUM(入力!$AL$14)) ->  | AK16: =IF(入力!$AL$15="","",SUM(入力!$AL$15)) ->  | AL16: =IF(入力!$AL$16="","",SUM(入力!$AL$16)) ->  | AM16: =IF(入力!$AL$17="","",SUM(入力!$AL$17)) ->  | AN16: =IF(入力!$AL$18="","",SUM(入力!$AL$18)) ->  | AO16: =IF(入力!$AL$19="","",SUM(入力!$AL$19)) ->  | AP16: =IF(入力!$AL$20="","",SUM(入力!$AL$20)) ->  | AQ16: =IF(入力!$AL$21="","",SUM(入力!$AL$21)) ->  | AR16: =IF(入力!$AL$22="","",SUM(入力!$AL$22)) ->  | AT16: =IF(入力!$AL$13="","",SUM(入力!$AL$13)) ->  | AU16: =IF(入力!$AL$14="","",SUM(入力!$AL$14)) ->  | AV16: =IF(入力!$AL$15="","",SUM(入力!$AL$15)) ->  | AW16: =IF(入力!$AL$16="","",SUM(入力!$AL$16)) ->  | AX16: =IF(入力!$AL$17="","",SUM(入力!$AL$17)) ->  | AY16: =IF(入力!$AL$18="","",SUM(入力!$AL$18)) ->  | AZ16: =IF(入力!$AL$19="","",SUM(入力!$AL$19)) ->  | BA16: =IF(入力!$AL$20="","",SUM(入力!$AL$20)) ->  | BB16: =IF(入力!$AL$21="","",SUM(入力!$AL$21)) ->  | BC16: =IF(入力!$AL$22="","",SUM(入力!$AL$22)) ->  | BD16: 所得金額調整控除→ | BE16: =IF(AI$16="","",IF(SUM(AI$16)=1,SUM(BE$17),IF(SUM(AI$16)=2,SUM(BE$18),IF(SUM(AI$16)=3,SUM(BE$19),0)))) ->  | BO16: 所得金額調整控除→ | BP16: =IF(AT$16="","",IF(SUM(AT$16)=1,SUM(BP$17),IF(SUM(AT$16)=2,SUM(BP$18),IF(SUM(AT$16)=3,SUM(BP$19),0)))) ->  | BQ16: =IF(AU$16="","",IF(SUM(AU$16)=1,SUM(BQ$17),IF(SUM(AU$16)=2,SUM(BQ$18),IF(SUM(AU$16)=3,SUM(BQ$19),0)))) -> 
BD17: 所得金額調整控除サイン１の場合→ | BE17: =IF(AI$16="","",IF(AND(SUM(AI$16)=1,SUM(AI$3)>8500000,SUM(AI$23)=0),ROUNDDOWN(MAX(0,MIN(10000000,SUM(AI$3))-8500000)*0.1,0),0)) ->  | BF17: =IF(AJ$16="","",IF(AND(SUM(AJ$16)=1,SUM(AJ$3)>8500000,SUM(AJ$23)=0),ROUNDDOWN(MAX(0,MIN(10000000,SUM(AJ$3))-8500000)*0.1,0),0)) ->  | BG17: =IF(AK$16="","",IF(AND(SUM(AK$16)=1,SUM(AK$3)>8500000,SUM(AK$23)=0),ROUNDDOWN(MAX(0,MIN(10000000,SUM(AK$3))-8500000)*0.1,0),0)) ->  | BH17: =IF(AL$16="","",IF(AND(SUM(AL$16)=1,SUM(AL$3)>8500000,SUM(AL$23)=0),ROUNDDOWN(MAX(0,MIN(10000000,SUM(AL$3))-8500000)*0.1,0),0)) ->  | BI17: =IF(AM$16="","",IF(AND(SUM(AM$16)=1,SUM(AM$3)>8500000,SUM(AM$23)=0),ROUNDDOWN(MAX(0,MIN(10000000,SUM(AM$3))-8500000)*0.1,0),0)) ->  | BJ17: =IF(AN$16="","",IF(AND(SUM(AN$16)=1,SUM(AN$3)>8500000,SUM(AN$23)=0),ROUNDDOWN(MAX(0,MIN(10000000,SUM(AN$3))-8500000)*0.1,0),0)) ->  | BK17: =IF(AO$16="","",IF(AND(SUM(AO$16)=1,SUM(AO$3)>8500000,SUM(AO$23)=0),ROUNDDOWN(MAX(0,MIN(10000000,SUM(AO$3))-8500000)*0.1,0),0)) ->  | BL17: =IF(AP$16="","",IF(AND(SUM(AP$16)=1,SUM(AP$3)>8500000,SUM(AP$23)=0),ROUNDDOWN(MAX(0,MIN(10000000,SUM(AP$3))-8500000)*0.1,0),0)) ->  | BM17: =IF(AQ$16="","",IF(AND(SUM(AQ$16)=1,SUM(AQ$3)>8500000,SUM(AQ$23)=0),ROUNDDOWN(MAX(0,MIN(10000000,SUM(AQ$3))-8500000)*0.1,0),0)) ->  | BN17: =IF(AR$16="","",IF(AND(SUM(AR$16)=1,SUM(AR$3)>8500000,SUM(AR$23)=0),ROUNDDOWN(MAX(0,MIN(10000000,SUM(AR$3))-8500000)*0.1,0),0)) ->  | BO17: 所得金額調整控除サイン１の場合→ | BP17: =IF(AT$16="","",IF(AND(SUM(AT$16)=1,SUM(AT$3)>8500000,SUM(AI$23)=0),ROUNDDOWN(MAX(0,MIN(10000000,SUM(AT$3))-8500000)*0.1,0),0)) ->  | BQ17: =IF(AU$16="","",IF(AND(SUM(AU$16)=1,SUM(AU$3)>8500000,SUM(AJ$23)=0),ROUNDDOWN(MAX(0,MIN(10000000,SUM(AU$3))-8500000)*0.1,0),0)) -> 
BD18: 所得金額調整控除サイン２の場合→ | BE18: =IF(AI$16="","",IF(AND(SUM(AI$16)=2,SUM(AI$23)<>0,SUM(AI$3)<=8500000),MAX(0,MIN(100000,SUM(BE$5:BE$15))+MIN(100000,SUM(AI$23))-100000),0)) ->  | BF18: =IF(AJ$16="","",IF(AND(SUM(AJ$16)=2,SUM(AJ$23)<>0,SUM(AJ$3)<=8500000),MAX(0,MIN(100000,SUM(BF$5:BF$15))+MIN(100000,SUM(AJ$23))-100000),0)) ->  | BO18: 所得金額調整控除サイン２の場合→ | BP18: =IF(AT$16="","",IF(AND(SUM(AT$16)=2,SUM(AI$23)<>0,SUM(AT$3)<=8500000),MAX(0,MIN(100000,SUM(BP$5:BP$15))+MIN(100000,SUM(AI$23))-100000),0)) ->  | BQ18: =IF(AU$16="","",IF(AND(SUM(AU$16)=2,SUM(AJ$23)<>0,SUM(AU$3)<=8500000),MAX(0,MIN(100000,SUM(BQ$5:BQ$15))+MIN(100000,SUM(AJ$23))-100000),0)) -> 
BD19: 所得金額調整控除サイン３の場合→ | BE19: =IF(AI$16="","",IF(AND(SUM(AI$16)=3,SUM(AI$23)<>0,SUM(AI$3)>8500000),ROUNDDOWN(MAX(0,MIN(10000000,SUM(AI$3))-8500000)*0.1,0)+MAX(0,MIN(100000,SUM(BE$5:BE$15))+MIN(100000,SUM(AI$23))-100000),0)) ->  | BF19: =IF(AJ$16="","",IF(AND(SUM(AJ$16)=3,SUM(AJ$23)<>0,SUM(AJ$3)>8500000),ROUNDDOWN(MAX(0,MIN(10000000,SUM(AJ$3))-8500000)*0.1,0)+MAX(0,MIN(100000,SUM(BF$5:BF$15))+MIN(100000,SUM(AJ$23))-100000),0)) ->  | BO19: 所得金額調整控除サイン３の場合→ | BP19: =IF(AT$16="","",IF(AND(SUM(AT$16)=3,SUM(AI$23)<>0,SUM(AT$3)>8500000),ROUNDDOWN(MAX(0,MIN(10000000,SUM(AT$3))-8500000)*0.1,0)+MAX(0,MIN(100000,SUM(BP$5:BP$15))+MIN(100000,SUM(AI$23))-100000),0)) ->  | BQ19: =IF(AU$16="","",IF(AND(SUM(AU$16)=3,SUM(AJ$23)<>0,SUM(AU$3)>8500000),ROUNDDOWN(MAX(0,MIN(10000000,SUM(AU$3))-8500000)*0.1,0)+MAX(0,MIN(100000,SUM(BQ$5:BQ$15))+MIN(100000,SUM(AJ$23))-100000),0)) -> 
AB20: 年金所得計算 | AI20: 1 | AJ20: 2 | AK20: 3 | AL20: 4 | AM20: 5 | AN20: 6 | AO20: 7 | AP20: 8 | AQ20: 9 | AR20: 10
A21: 1 | D21: 年金所得に係る 雑所得以外の 合計所得金額 | O21: =入力!DJ13 -> 0 | AC21: 年金収入金額の合計(Ａ) | AE21: 公的年金等所得金額の計算 | AI21: =IF(入力!$AY13="","",入力!$AY13) ->  | AJ21: =IF(入力!$AY14="","",入力!$AY14) ->  | AK21: =IF(入力!$AY15="","",入力!$AY15) ->  | AL21: =IF(入力!$AY16="","",入力!$AY16) ->  | AM21: =IF(入力!$AY17="","",入力!$AY17) ->  | AN21: =IF(入力!$AY18="","",入力!$AY18) ->  | AO21: =IF(入力!$AY19="","",入力!$AY19) ->  | AP21: =IF(入力!$AY20="","",入力!$AY20) ->  | AQ21: =IF(入力!$AY21="","",入力!$AY21) ->  | AR21: =IF(入力!$AY22="","",入力!$AY22) -> 
AI22: =IF(所得計算!$W6="","",所得計算!$W6) ->  | AJ22: =IF(所得計算!$W7="","",所得計算!$W7) ->  | AK22: =IF(所得計算!$W8="","",所得計算!$W8) ->  | AL22: =IF(所得計算!$W9="","",所得計算!$W9) ->  | AM22: =IF(所得計算!$W10="","",所得計算!$W10) ->  | AN22: =IF(所得計算!$W11="","",所得計算!$W11) ->  | AO22: =IF(所得計算!$W12="","",所得計算!$W12) ->  | AP22: =IF(所得計算!$W13="","",所得計算!$W13) ->  | AQ22: =IF(所得計算!$W14="","",所得計算!$W14) ->  | AR22: =IF(所得計算!$W15="","",所得計算!$W15) -> 
A23: 2 | D23: 年金所得に係る 雑所得以外の 合計所得金額 | O23: =入力!DJ14 -> 0 | AC23: から | AD23: まで | AI23: =IF(SUM(AI24:AI35)=0,"",SUM(AI24:AI35)) ->  | AJ23: =IF(SUM(AJ24:AJ35)=0,"",SUM(AJ24:AJ35)) -> 
AB24: ６５歳以上 | AC24: 0 | AD24: 1100000 | AE24: 0円or〈～100,000円〉or《～200,000円》 | AI24: =IF(AI$21="","",IF(AND(SUM(AI$22)>=65,AI$21>=$AC24,AI$21<=$AD24),IF($O$21>20000000,MAX(AI21-900000,0),IF($O$21>10000000,MAX(AI21-1000000,0),0)),"")) ->  | AJ24: =IF(AJ$21="","",IF(AND(SUM(AJ$22)>=65,AJ$21>=$AC24,AJ$21<=$AD24),IF($O$23>20000000,MAX(AJ21-900000,0),IF($O$23>10000000,MAX(AJ21-1000000,0),0)),"")) ->  | AK24: =IF(AK$21="","",IF(AND(SUM(AK$22)>=65,AK$21>=$AC24,AK$21<=$AD24),IF($O$25>20000000,MAX(AK21-900000,0),IF($O$25>10000000,MAX(AK21-1000000,0),0)),"")) ->  | AL24: =IF(AL$21="","",IF(AND(SUM(AL$22)>=65,AL$21>=$AC24,AL$21<=$AD24),IF($O$27>20000000,MAX(AL21-900000,0),IF($O$27>10000000,MAX(AL21-1000000,0),0)),"")) ->  | AM24: =IF(AM$21="","",IF(AND(SUM(AM$22)>=65,AM$21>=$AC24,AM$21<=$AD24),IF($O$29>20000000,MAX(AM21-900000,0),IF($O$29>10000000,MAX(AM21-1000000,0),0)),"")) ->  | AN24: =IF(AN$21="","",IF(AND(SUM(AN$22)>=65,AN$21>=$AC24,AN$21<=$AD24),IF($O$31>20000000,MAX(AN21-900000,0),IF($O$31>10000000,MAX(AN21-1000000,0),0)),"")) ->  | AO24: =IF(AO$21="","",IF(AND(SUM(AO$22)>=65,AO$21>=$AC24,AO$21<=$AD24),IF($O$33>20000000,MAX(AO21-900000,0),IF($O$33>10000000,MAX(AO21-1000000,0),0)),"")) ->  | AP24: =IF(AP$21="","",IF(AND(SUM(AP$22)>=65,AP$21>=$AC24,AP$21<=$AD24),IF($O$35>20000000,MAX(AP21-900000,0),IF($O$35>10000000,MAX(AP21-1000000,0),0)),"")) ->  | AQ24: =IF(AQ$21="","",IF(AND(SUM(AQ$22)>=65,AQ$21>=$AC24,AQ$21<=$AD24),IF($O$37>20000000,MAX(AQ21-900000,0),IF($O$37>10000000,MAX(AQ21-1000000,0),0)),"")) ->  | AR24: =IF(AR$21="","",IF(AND(SUM(AR$22)>=65,AR$21>=$AC24,AR$21<=$AD24),IF($O$39>20000000,MAX(AR21-900000,0),IF($O$39>10000000,MAX(AR21-1000000,0),0)),"")) -> 
A25: 3 | D25: 年金所得に係る 雑所得以外の 合計所得金額 | O25: =入力!DJ15 -> 0 | AC25: =SUM(AD24,1) -> 1100001 | AD25: 3299999 | AE25: (Ａ)－1,100,000円〈1,000,000〉《900,000》 | AI25: =IF(AI$21="","",IF(AND(SUM(AI$22)>=65,AI$21>=$AC25,AI$21<=$AD25),IF($O$21>20000000,MAX(AI21-900000,0),IF($O$21>10000000,MAX(AI21-1000000,0),AI21-1100000)),"")) ->  | AJ25: =IF(AJ$21="","",IF(AND(SUM(AJ$22)>=65,AJ$21>=$AC25,AJ$21<=$AD25),IF($O$23>20000000,MAX(AJ21-900000,0),IF($O$23>10000000,MAX(AJ21-1000000,0),AJ21-1100000)),"")) ->  | AK25: =IF(AK$21="","",IF(AND(SUM(AK$22)>=65,AK$21>=$AC25,AK$21<=$AD25),IF($O$25>20000000,MAX(AK21-900000,0),IF($O$25>10000000,MAX(AK21-1000000,0),AK21-1100000)),"")) ->  | AL25: =IF(AL$21="","",IF(AND(SUM(AL$22)>=65,AL$21>=$AC25,AL$21<=$AD25),IF($O$27>20000000,MAX(AL21-900000,0),IF($O$27>10000000,MAX(AL21-1000000,0),AL21-1100000)),"")) ->  | AM25: =IF(AM$21="","",IF(AND(SUM(AM$22)>=65,AM$21>=$AC25,AM$21<=$AD25),IF($O$29>20000000,MAX(AM21-900000,0),IF($O$29>10000000,MAX(AM21-1000000,0),AM21-1100000)),"")) ->  | AN25: =IF(AN$21="","",IF(AND(SUM(AN$22)>=65,AN$21>=$AC25,AN$21<=$AD25),IF($O$31>20000000,MAX(AN21-900000,0),IF($O$31>10000000,MAX(AN21-1000000,0),AN21-1100000)),"")) ->  | AO25: =IF(AO$21="","",IF(AND(SUM(AO$22)>=65,AO$21>=$AC25,AO$21<=$AD25),IF($O$33>20000000,MAX(AO21-900000,0),IF($O$33>10000000,MAX(AO21-1000000,0),AO21-1100000)),"")) ->  | AP25: =IF(AP$21="","",IF(AND(SUM(AP$22)>=65,AP$21>=$AC25,AP$21<=$AD25),IF($O$35>20000000,MAX(AP21-900000,0),IF($O$35>10000000,MAX(AP21-1000000,0),AP21-1100000)),"")) ->  | AQ25: =IF(AQ$21="","",IF(AND(SUM(AQ$22)>=65,AQ$21>=$AC25,AQ$21<=$AD25),IF($O$37>20000000,MAX(AQ21-900000,0),IF($O$37>10000000,MAX(AQ21-1000000,0),AQ21-1100000)),"")) ->  | AR25: =IF(AR$21="","",IF(AND(SUM(AR$22)>=65,AR$21>=$AC25,AR$21<=$AD25),IF($O$39>20000000,MAX(AR21-900000,0),IF($O$39>10000000,MAX(AR21-1000000,0),AR21-1100000)),"")) -> 
AC26: =SUM(AD25,1) -> 3300000 | AD26: 4099999 | AE26: (Ａ)×75％－275,000円〈175,000〉《75,000》 | AI26: =IF(AI$21="","",IF(AND(SUM(AI$22)>=65,AI$21>=$AC26,AI$21<=$AD26),IF($O$21>20000000,ROUNDDOWN(AI$21*75/100,0)-75000,IF($O$21>10000000,ROUNDDOWN(AI$21*75/100,0)-175000,ROUNDDOWN(AI$21*75/100,0)-275000)),"")) ->  | AJ26: =IF(AJ$21="","",IF(AND(SUM(AJ$22)>=65,AJ$21>=$AC26,AJ$21<=$AD26),IF($O$23>20000000,ROUNDDOWN(AJ$21*75/100,0)-75000,IF($O$23>10000000,ROUNDDOWN(AJ$21*75/100,0)-175000,ROUNDDOWN(AJ$21*75/100,0)-275000)),"")) ->  | AK26: =IF(AK$21="","",IF(AND(SUM(AK$22)>=65,AK$21>=$AC26,AK$21<=$AD26),IF($O$25>20000000,ROUNDDOWN(AK$21*75/100,0)-75000,IF($O$25>10000000,ROUNDDOWN(AK$21*75/100,0)-175000,ROUNDDOWN(AK$21*75/100,0)-275000)),"")) ->  | AL26: =IF(AL$21="","",IF(AND(SUM(AL$22)>=65,AL$21>=$AC26,AL$21<=$AD26),IF($O$27>20000000,ROUNDDOWN(AL$21*75/100,0)-75000,IF($O$27>10000000,ROUNDDOWN(AL$21*75/100,0)-175000,ROUNDDOWN(AL$21*75/100,0)-275000)),"")) ->  | AM26: =IF(AM$21="","",IF(AND(SUM(AM$22)>=65,AM$21>=$AC26,AM$21<=$AD26),IF($O$29>20000000,ROUNDDOWN(AM$21*75/100,0)-75000,IF($O$29>10000000,ROUNDDOWN(AM$21*75/100,0)-175000,ROUNDDOWN(AM$21*75/100,0)-275000)),"")) ->  | AN26: =IF(AN$21="","",IF(AND(SUM(AN$22)>=65,AN$21>=$AC26,AN$21<=$AD26),IF($O$31>20000000,ROUNDDOWN(AN$21*75/100,0)-75000,IF($O$31>10000000,ROUNDDOWN(AN$21*75/100,0)-175000,ROUNDDOWN(AN$21*75/100,0)-275000)),"")) ->  | AO26: =IF(AO$21="","",IF(AND(SUM(AO$22)>=65,AO$21>=$AC26,AO$21<=$AD26),IF($O$33>20000000,ROUNDDOWN(AO$21*75/100,0)-75000,IF($O$33>10000000,ROUNDDOWN(AO$21*75/100,0)-175000,ROUNDDOWN(AO$21*75/100,0)-275000)),"")) ->  | AP26: =IF(AP$21="","",IF(AND(SUM(AP$22)>=65,AP$21>=$AC26,AP$21<=$AD26),IF($O$35>20000000,ROUNDDOWN(AP$21*75/100,0)-75000,IF($O$35>10000000,ROUNDDOWN(AP$21*75/100,0)-175000,ROUNDDOWN(AP$21*75/100,0)-275000)),"")) ->  | AQ26: =IF(AQ$21="","",IF(AND(SUM(AQ$22)>=65,AQ$21>=$AC26,AQ$21<=$AD26),IF($O$37>20000000,ROUNDDOWN(AQ$21*75/100,0)-75000,IF($O$37>10000000,ROUNDDOWN(AQ$21*75/100,0)-175000,ROUNDDOWN(AQ$21*75/100,0)-275000)),"")) ->  | AR26: =IF(AR$21="","",IF(AND(SUM(AR$22)>=65,AR$21>=$AC26,AR$21<=$AD26),IF($O$39>20000000,ROUNDDOWN(AR$21*75/100,0)-75000,IF($O$39>10000000,ROUNDDOWN(AR$21*75/100,0)-175000,ROUNDDOWN(AR$21*75/100,0)-275000)),"")) -> 
A27: 4 | D27: 年金所得に係る 雑所得以外の 合計所得金額 | O27: =入力!DJ16 -> 0 | AC27: =SUM(AD26,1) -> 4100000 | AD27: 7699999 | AE27: (Ａ)×85％－685,000円〈585,000〉《485,000》 | AI27: =IF(AI$21="","",IF(AND(SUM(AI$22)>=65,AI$21>=$AC27,AI$21<=$AD27),IF($O$21>20000000,ROUNDDOWN(AI$21*85/100,0)-485000,IF($O$21>10000000,ROUNDDOWN(AI$21*85/100,0)-585000,ROUNDDOWN(AI$21*85/100,0)-685000)),"")) ->  | AJ27: =IF(AJ$21="","",IF(AND(SUM(AJ$22)>=65,AJ$21>=$AC27,AJ$21<=$AD27),IF($O$23>20000000,ROUNDDOWN(AJ$21*85/100,0)-485000,IF($O$23>10000000,ROUNDDOWN(AJ$21*85/100,0)-585000,ROUNDDOWN(AJ$21*85/100,0)-685000)),"")) ->  | AK27: =IF(AK$21="","",IF(AND(SUM(AK$22)>=65,AK$21>=$AC27,AK$21<=$AD27),IF($O$25>20000000,ROUNDDOWN(AK$21*85/100,0)-485000,IF($O$25>10000000,ROUNDDOWN(AK$21*85/100,0)-585000,ROUNDDOWN(AK$21*85/100,0)-685000)),"")) ->  | AL27: =IF(AL$21="","",IF(AND(SUM(AL$22)>=65,AL$21>=$AC27,AL$21<=$AD27),IF($O$27>20000000,ROUNDDOWN(AL$21*85/100,0)-485000,IF($O$27>10000000,ROUNDDOWN(AL$21*85/100,0)-585000,ROUNDDOWN(AL$21*85/100,0)-685000)),"")) ->  | AM27: =IF(AM$21="","",IF(AND(SUM(AM$22)>=65,AM$21>=$AC27,AM$21<=$AD27),IF($O$29>20000000,ROUNDDOWN(AM$21*85/100,0)-485000,IF($O$29>10000000,ROUNDDOWN(AM$21*85/100,0)-585000,ROUNDDOWN(AM$21*85/100,0)-685000)),"")) ->  | AN27: =IF(AN$21="","",IF(AND(SUM(AN$22)>=65,AN$21>=$AC27,AN$21<=$AD27),IF($O$31>20000000,ROUNDDOWN(AN$21*85/100,0)-485000,IF($O$31>10000000,ROUNDDOWN(AN$21*85/100,0)-585000,ROUNDDOWN(AN$21*85/100,0)-685000)),"")) ->  | AO27: =IF(AO$21="","",IF(AND(SUM(AO$22)>=65,AO$21>=$AC27,AO$21<=$AD27),IF($O$33>20000000,ROUNDDOWN(AO$21*85/100,0)-485000,IF($O$33>10000000,ROUNDDOWN(AO$21*85/100,0)-585000,ROUNDDOWN(AO$21*85/100,0)-685000)),"")) ->  | AP27: =IF(AP$21="","",IF(AND(SUM(AP$22)>=65,AP$21>=$AC27,AP$21<=$AD27),IF($O$35>20000000,ROUNDDOWN(AP$21*85/100,0)-485000,IF($O$35>10000000,ROUNDDOWN(AP$21*85/100,0)-585000,ROUNDDOWN(AP$21*85/100,0)-685000)),"")) ->  | AQ27: =IF(AQ$21="","",IF(AND(SUM(AQ$22)>=65,AQ$21>=$AC27,AQ$21<=$AD27),IF($O$37>20000000,ROUNDDOWN(AQ$21*85/100,0)-485000,IF($O$37>10000000,ROUNDDOWN(AQ$21*85/100,0)-585000,ROUNDDOWN(AQ$21*85/100,0)-685000)),"")) ->  | AR27: =IF(AR$21="","",IF(AND(SUM(AR$22)>=65,AR$21>=$AC27,AR$21<=$AD27),IF($O$39>20000000,ROUNDDOWN(AR$21*85/100,0)-485000,IF($O$39>10000000,ROUNDDOWN(AR$21*85/100,0)-585000,ROUNDDOWN(AR$21*85/100,0)-685000)),"")) -> 
AC28: =SUM(AD27,1) -> 7700000 | AD28: 9999999 | AE28: (Ａ)×95％－1,455,000円〈1,355,000〉《1,255,000》 | AI28: =IF(AI$21="","",IF(AND(SUM(AI$22)>=65,AI$21>=$AC28,AI$21<=$AD28),IF($O$21>20000000,ROUNDDOWN(AI$21*95/100,0)-1255000,IF($O$21>10000000,ROUNDDOWN(AI$21*95/100,0)-1355000,ROUNDDOWN(AI$21*95/100,0)-1455000)),"")) ->  | AJ28: =IF(AJ$21="","",IF(AND(SUM(AJ$22)>=65,AJ$21>=$AC28,AJ$21<=$AD28),IF($O$23>20000000,ROUNDDOWN(AJ$21*95/100,0)-1255000,IF($O$23>10000000,ROUNDDOWN(AJ$21*95/100,0)-1355000,ROUNDDOWN(AJ$21*95/100,0)-1455000)),"")) ->  | AK28: =IF(AK$21="","",IF(AND(SUM(AK$22)>=65,AK$21>=$AC28,AK$21<=$AD28),IF($O$25>20000000,ROUNDDOWN(AK$21*95/100,0)-1255000,IF($O$25>10000000,ROUNDDOWN(AK$21*95/100,0)-1355000,ROUNDDOWN(AK$21*95/100,0)-1455000)),"")) ->  | AL28: =IF(AL$21="","",IF(AND(SUM(AL$22)>=65,AL$21>=$AC28,AL$21<=$AD28),IF($O$27>20000000,ROUNDDOWN(AL$21*95/100,0)-1255000,IF($O$27>10000000,ROUNDDOWN(AL$21*95/100,0)-1355000,ROUNDDOWN(AL$21*95/100,0)-1455000)),"")) ->  | AM28: =IF(AM$21="","",IF(AND(SUM(AM$22)>=65,AM$21>=$AC28,AM$21<=$AD28),IF($O$29>20000000,ROUNDDOWN(AM$21*95/100,0)-1255000,IF($O$29>10000000,ROUNDDOWN(AM$21*95/100,0)-1355000,ROUNDDOWN(AM$21*95/100,0)-1455000)),"")) ->  | AN28: =IF(AN$21="","",IF(AND(SUM(AN$22)>=65,AN$21>=$AC28,AN$21<=$AD28),IF($O$31>20000000,ROUNDDOWN(AN$21*95/100,0)-1255000,IF($O$31>10000000,ROUNDDOWN(AN$21*95/100,0)-1355000,ROUNDDOWN(AN$21*95/100,0)-1455000)),"")) ->  | AO28: =IF(AO$21="","",IF(AND(SUM(AO$22)>=65,AO$21>=$AC28,AO$21<=$AD28),IF($O$33>20000000,ROUNDDOWN(AO$21*95/100,0)-1255000,IF($O$33>10000000,ROUNDDOWN(AO$21*95/100,0)-1355000,ROUNDDOWN(AO$21*95/100,0)-1455000)),"")) ->  | AP28: =IF(AP$21="","",IF(AND(SUM(AP$22)>=65,AP$21>=$AC28,AP$21<=$AD28),IF($O$35>20000000,ROUNDDOWN(AP$21*95/100,0)-1255000,IF($O$35>10000000,ROUNDDOWN(AP$21*95/100,0)-1355000,ROUNDDOWN(AP$21*95/100,0)-1455000)),"")) ->  | AQ28: =IF(AQ$21="","",IF(AND(SUM(AQ$22)>=65,AQ$21>=$AC28,AQ$21<=$AD28),IF($O$37>20000000,ROUNDDOWN(AQ$21*95/100,0)-1255000,IF($O$37>10000000,ROUNDDOWN(AQ$21*95/100,0)-1355000,ROUNDDOWN(AQ$21*95/100,0)-1455000)),"")) ->  | AR28: =IF(AR$21="","",IF(AND(SUM(AR$22)>=65,AR$21>=$AC28,AR$21<=$AD28),IF($O$39>20000000,ROUNDDOWN(AR$21*95/100,0)-1255000,IF($O$39>10000000,ROUNDDOWN(AR$21*95/100,0)-1355000,ROUNDDOWN(AR$21*95/100,0)-1455000)),"")) -> 
A29: 5 | D29: 年金所得に係る 雑所得以外の 合計所得金額 | O29: =入力!DJ17 -> 0 | AC29: 10000000 | AE29: (Ａ)－1,955,000円〈1,855,000〉《1,755,000》 | AI29: =IF(AI$21="","",IF(AND(SUM(AI$22)>=65,AI$21>=$AC29),IF($O$21>20000000,MAX(AI21-1755000,0),IF($O$21>10000000,MAX(AI21-1855000,0),AI21-1955000)),"")) ->  | AJ29: =IF(AJ$21="","",IF(AND(SUM(AJ$22)>=65,AJ$21>=$AC29),IF($O$23>20000000,MAX(AJ21-1755000,0),IF($O$23>10000000,MAX(AJ21-1855000,0),AJ21-1955000)),"")) ->  | AK29: =IF(AK$21="","",IF(AND(SUM(AK$22)>=65,AK$21>=$AC29),IF($O$25>20000000,MAX(AK21-1755000,0),IF($O$25>10000000,MAX(AK21-1855000,0),AK21-1955000)),"")) ->  | AL29: =IF(AL$21="","",IF(AND(SUM(AL$22)>=65,AL$21>=$AC29),IF($O$27>20000000,MAX(AL21-1755000,0),IF($O$27>10000000,MAX(AL21-1855000,0),AL21-1955000)),"")) ->  | AM29: =IF(AM$21="","",IF(AND(SUM(AM$22)>=65,AM$21>=$AC29),IF($O$29>20000000,MAX(AM21-1755000,0),IF($O$29>10000000,MAX(AM21-1855000,0),AM21-1955000)),"")) ->  | AN29: =IF(AN$21="","",IF(AND(SUM(AN$22)>=65,AN$21>=$AC29),IF($O$31>20000000,MAX(AN21-1755000,0),IF($O$31>10000000,MAX(AN21-1855000,0),AN21-1955000)),"")) ->  | AO29: =IF(AO$21="","",IF(AND(SUM(AO$22)>=65,AO$21>=$AC29),IF($O$33>20000000,MAX(AO21-1755000,0),IF($O$33>10000000,MAX(AO21-1855000,0),AO21-1955000)),"")) ->  | AP29: =IF(AP$21="","",IF(AND(SUM(AP$22)>=65,AP$21>=$AC29),IF($O$35>20000000,MAX(AP21-1755000,0),IF($O$35>10000000,MAX(AP21-1855000,0),AP21-1955000)),"")) ->  | AQ29: =IF(AQ$21="","",IF(AND(SUM(AQ$22)>=65,AQ$21>=$AC29),IF($O$37>20000000,MAX(AQ21-1755000,0),IF($O$37>10000000,MAX(AQ21-1855000,0),AQ21-1955000)),"")) ->  | AR29: =IF(AR$21="","",IF(AND(SUM(AR$22)>=65,AR$21>=$AC29),IF($O$39>20000000,MAX(AR21-1755000,0),IF($O$39>10000000,MAX(AR21-1855000,0),AR21-1955000)),"")) -> 
AB30: ６５歳未満 | AC30: 0 | AD30: 600000 | AE30: 0円or〈～100,000円〉or《～200,000円》 | AI30: =IF(AI$21="","",IF(AND(SUM(AI$22)<65,AI$21>=$AC30,AI$21<=$AD30),IF($O$21>20000000,MAX(AI21-400000,0),IF($O$21>10000000,MAX(AI21-500000,0),0)),"")) ->  | AJ30: =IF(AJ$21="","",IF(AND(SUM(AJ$22)<65,AJ$21>=$AC30,AJ$21<=$AD30),IF($O$23>20000000,MAX(AJ21-400000,0),IF($O$23>10000000,MAX(AJ21-500000,0),0)),"")) ->  | AK30: =IF(AK$21="","",IF(AND(SUM(AK$22)<65,AK$21>=$AC30,AK$21<=$AD30),IF($O$25>20000000,MAX(AK21-400000,0),IF($O$25>10000000,MAX(AK21-500000,0),0)),"")) ->  | AL30: =IF(AL$21="","",IF(AND(SUM(AL$22)<65,AL$21>=$AC30,AL$21<=$AD30),IF($O$27>20000000,MAX(AL21-400000,0),IF($O$27>10000000,MAX(AL21-500000,0),0)),"")) ->  | AM30: =IF(AM$21="","",IF(AND(SUM(AM$22)<65,AM$21>=$AC30,AM$21<=$AD30),IF($O$29>20000000,MAX(AM21-400000,0),IF($O$29>10000000,MAX(AM21-500000,0),0)),"")) ->  | AN30: =IF(AN$21="","",IF(AND(SUM(AN$22)<65,AN$21>=$AC30,AN$21<=$AD30),IF($O$31>20000000,MAX(AN21-400000,0),IF($O$31>10000000,MAX(AN21-500000,0),0)),"")) ->  | AO30: =IF(AO$21="","",IF(AND(SUM(AO$22)<65,AO$21>=$AC30,AO$21<=$AD30),IF($O$33>20000000,MAX(AO21-400000,0),IF($O$33>10000000,MAX(AO21-500000,0),0)),"")) ->  | AP30: =IF(AP$21="","",IF(AND(SUM(AP$22)<65,AP$21>=$AC30,AP$21<=$AD30),IF($O$35>20000000,MAX(AP21-400000,0),IF($O$35>10000000,MAX(AP21-500000,0),0)),"")) ->  | AQ30: =IF(AQ$21="","",IF(AND(SUM(AQ$22)<65,AQ$21>=$AC30,AQ$21<=$AD30),IF($O$37>20000000,MAX(AQ21-400000,0),IF($O$37>10000000,MAX(AQ21-500000,0),0)),"")) ->  | AR30: =IF(AR$21="","",IF(AND(SUM(AR$22)<65,AR$21>=$AC30,AR$21<=$AD30),IF($O$39>20000000,MAX(AR21-400000,0),IF($O$39>10000000,MAX(AR21-500000,0),0)),"")) -> 
A31: 6 | D31: 年金所得に係る 雑所得以外の 合計所得金額 | O31: =入力!DJ18 -> 0 | AC31: =SUM(AD30,1) -> 600001 | AD31: 1299999 | AE31: (Ａ)－600,000円〈500,000〉《400,000》 | AI31: =IF(AI$21="","",IF(AND(SUM(AI$22)<65,AI$21>=$AC31,AI$21<=$AD31),IF($O$21>20000000,MAX(AI21-400000,0),IF($O$21>10000000,MAX(AI21-500000,0),AI21-600000)),"")) ->  | AJ31: =IF(AJ$21="","",IF(AND(SUM(AJ$22)<65,AJ$21>=$AC31,AJ$21<=$AD31),IF($O$23>20000000,MAX(AJ21-400000,0),IF($O$23>10000000,MAX(AJ21-500000,0),AJ21-600000)),"")) ->  | AK31: =IF(AK$21="","",IF(AND(SUM(AK$22)<65,AK$21>=$AC31,AK$21<=$AD31),IF($O$25>20000000,MAX(AK21-400000,0),IF($O$25>10000000,MAX(AK21-500000,0),AK21-600000)),"")) ->  | AL31: =IF(AL$21="","",IF(AND(SUM(AL$22)<65,AL$21>=$AC31,AL$21<=$AD31),IF($O$27>20000000,MAX(AL21-400000,0),IF($O$27>10000000,MAX(AL21-500000,0),AL21-600000)),"")) ->  | AM31: =IF(AM$21="","",IF(AND(SUM(AM$22)<65,AM$21>=$AC31,AM$21<=$AD31),IF($O$29>20000000,MAX(AM21-400000,0),IF($O$29>10000000,MAX(AM21-500000,0),AM21-600000)),"")) ->  | AN31: =IF(AN$21="","",IF(AND(SUM(AN$22)<65,AN$21>=$AC31,AN$21<=$AD31),IF($O$31>20000000,MAX(AN21-400000,0),IF($O$31>10000000,MAX(AN21-500000,0),AN21-600000)),"")) ->  | AO31: =IF(AO$21="","",IF(AND(SUM(AO$22)<65,AO$21>=$AC31,AO$21<=$AD31),IF($O$33>20000000,MAX(AO21-400000,0),IF($O$33>10000000,MAX(AO21-500000,0),AO21-600000)),"")) ->  | AP31: =IF(AP$21="","",IF(AND(SUM(AP$22)<65,AP$21>=$AC31,AP$21<=$AD31),IF($O$35>20000000,MAX(AP21-400000,0),IF($O$35>10000000,MAX(AP21-500000,0),AP21-600000)),"")) ->  | AQ31: =IF(AQ$21="","",IF(AND(SUM(AQ$22)<65,AQ$21>=$AC31,AQ$21<=$AD31),IF($O$37>20000000,MAX(AQ21-400000,0),IF($O$37>10000000,MAX(AQ21-500000,0),AQ21-600000)),"")) ->  | AR31: =IF(AR$21="","",IF(AND(SUM(AR$22)<65,AR$21>=$AC31,AR$21<=$AD31),IF($O$39>20000000,MAX(AR21-400000,0),IF($O$39>10000000,MAX(AR21-500000,0),AR21-600000)),"")) -> 
AC32: =SUM(AD31,1) -> 1300000 | AD32: 4099999 | AE32: (Ａ)×75％－275,000円〈175,000〉《75,000》 | AI32: =IF(AI$21="","",IF(AND(SUM(AI$22)<65,AI$21>=$AC32,AI$21<=$AD32),IF($O$21>20000000,ROUNDDOWN(AI$21*75/100,0)-75000,IF($O$21>10000000,ROUNDDOWN(AI$21*75/100,0)-175000,ROUNDDOWN(AI$21*75/100,0)-275000)),"")) ->  | AJ32: =IF(AJ$21="","",IF(AND(SUM(AJ$22)<65,AJ$21>=$AC32,AJ$21<=$AD32),IF($O$23>20000000,ROUNDDOWN(AJ$21*75/100,0)-75000,IF($O$23>10000000,ROUNDDOWN(AJ$21*75/100,0)-175000,ROUNDDOWN(AJ$21*75/100,0)-275000)),"")) ->  | AK32: =IF(AK$21="","",IF(AND(SUM(AK$22)<65,AK$21>=$AC32,AK$21<=$AD32),IF($O$25>20000000,ROUNDDOWN(AK$21*75/100,0)-75000,IF($O$25>10000000,ROUNDDOWN(AK$21*75/100,0)-175000,ROUNDDOWN(AK$21*75/100,0)-275000)),"")) ->  | AL32: =IF(AL$21="","",IF(AND(SUM(AL$22)<65,AL$21>=$AC32,AL$21<=$AD32),IF($O$27>20000000,ROUNDDOWN(AL$21*75/100,0)-75000,IF($O$27>10000000,ROUNDDOWN(AL$21*75/100,0)-175000,ROUNDDOWN(AL$21*75/100,0)-275000)),"")) ->  | AM32: =IF(AM$21="","",IF(AND(SUM(AM$22)<65,AM$21>=$AC32,AM$21<=$AD32),IF($O$29>20000000,ROUNDDOWN(AM$21*75/100,0)-75000,IF($O$29>10000000,ROUNDDOWN(AM$21*75/100,0)-175000,ROUNDDOWN(AM$21*75/100,0)-275000)),"")) ->  | AN32: =IF(AN$21="","",IF(AND(SUM(AN$22)<65,AN$21>=$AC32,AN$21<=$AD32),IF($O$31>20000000,ROUNDDOWN(AN$21*75/100,0)-75000,IF($O$31>10000000,ROUNDDOWN(AN$21*75/100,0)-175000,ROUNDDOWN(AN$21*75/100,0)-275000)),"")) ->  | AO32: =IF(AO$21="","",IF(AND(SUM(AO$22)<65,AO$21>=$AC32,AO$21<=$AD32),IF($O$33>20000000,ROUNDDOWN(AO$21*75/100,0)-75000,IF($O$33>10000000,ROUNDDOWN(AO$21*75/100,0)-175000,ROUNDDOWN(AO$21*75/100,0)-275000)),"")) ->  | AP32: =IF(AP$21="","",IF(AND(SUM(AP$22)<65,AP$21>=$AC32,AP$21<=$AD32),IF($O$35>20000000,ROUNDDOWN(AP$21*75/100,0)-75000,IF($O$35>10000000,ROUNDDOWN(AP$21*75/100,0)-175000,ROUNDDOWN(AP$21*75/100,0)-275000)),"")) ->  | AQ32: =IF(AQ$21="","",IF(AND(SUM(AQ$22)<65,AQ$21>=$AC32,AQ$21<=$AD32),IF($O$37>20000000,ROUNDDOWN(AQ$21*75/100,0)-75000,IF($O$37>10000000,ROUNDDOWN(AQ$21*75/100,0)-175000,ROUNDDOWN(AQ$21*75/100,0)-275000)),"")) ->  | AR32: =IF(AR$21="","",IF(AND(SUM(AR$22)<65,AR$21>=$AC32,AR$21<=$AD32),IF($O$39>20000000,ROUNDDOWN(AR$21*75/100,0)-75000,IF($O$39>10000000,ROUNDDOWN(AR$21*75/100,0)-175000,ROUNDDOWN(AR$21*75/100,0)-275000)),"")) -> 
A33: 7 | D33: 年金所得に係る 雑所得以外の 合計所得金額 | O33: =入力!DJ19 -> 0 | AC33: =SUM(AD32,1) -> 4100000 | AD33: 7699999 | AE33: (Ａ)×85％－785,000円〈585,000〉《485,000》 | AI33: =IF(AI$21="","",IF(AND(SUM(AI$22)<65,AI$21>=$AC33,AI$21<=$AD33),IF($O$21>20000000,ROUNDDOWN(AI$21*85/100,0)-485000,IF($O$21>10000000,ROUNDDOWN(AI$21*85/100,0)-585000,ROUNDDOWN(AI$21*85/100,0)-685000)),"")) ->  | AJ33: =IF(AJ$21="","",IF(AND(SUM(AJ$22)<65,AJ$21>=$AC33,AJ$21<=$AD33),IF($O$23>20000000,ROUNDDOWN(AJ$21*85/100,0)-485000,IF($O$23>10000000,ROUNDDOWN(AJ$21*85/100,0)-585000,ROUNDDOWN(AJ$21*85/100,0)-685000)),"")) ->  | AK33: =IF(AK$21="","",IF(AND(SUM(AK$22)<65,AK$21>=$AC33,AK$21<=$AD33),IF($O$25>20000000,ROUNDDOWN(AK$21*85/100,0)-485000,IF($O$25>10000000,ROUNDDOWN(AK$21*85/100,0)-585000,ROUNDDOWN(AK$21*85/100,0)-685000)),"")) ->  | AL33: =IF(AL$21="","",IF(AND(SUM(AL$22)<65,AL$21>=$AC33,AL$21<=$AD33),IF($O$27>20000000,ROUNDDOWN(AL$21*85/100,0)-485000,IF($O$27>10000000,ROUNDDOWN(AL$21*85/100,0)-585000,ROUNDDOWN(AL$21*85/100,0)-685000)),"")) ->  | AM33: =IF(AM$21="","",IF(AND(SUM(AM$22)<65,AM$21>=$AC33,AM$21<=$AD33),IF($O$29>20000000,ROUNDDOWN(AM$21*85/100,0)-485000,IF($O$29>10000000,ROUNDDOWN(AM$21*85/100,0)-585000,ROUNDDOWN(AM$21*85/100,0)-685000)),"")) ->  | AN33: =IF(AN$21="","",IF(AND(SUM(AN$22)<65,AN$21>=$AC33,AN$21<=$AD33),IF($O$31>20000000,ROUNDDOWN(AN$21*85/100,0)-485000,IF($O$31>10000000,ROUNDDOWN(AN$21*85/100,0)-585000,ROUNDDOWN(AN$21*85/100,0)-685000)),"")) ->  | AO33: =IF(AO$21="","",IF(AND(SUM(AO$22)<65,AO$21>=$AC33,AO$21<=$AD33),IF($O$33>20000000,ROUNDDOWN(AO$21*85/100,0)-485000,IF($O$33>10000000,ROUNDDOWN(AO$21*85/100,0)-585000,ROUNDDOWN(AO$21*85/100,0)-685000)),"")) ->  | AP33: =IF(AP$21="","",IF(AND(SUM(AP$22)<65,AP$21>=$AC33,AP$21<=$AD33),IF($O$35>20000000,ROUNDDOWN(AP$21*85/100,0)-485000,IF($O$35>10000000,ROUNDDOWN(AP$21*85/100,0)-585000,ROUNDDOWN(AP$21*85/100,0)-685000)),"")) ->  | AQ33: =IF(AQ$21="","",IF(AND(SUM(AQ$22)<65,AQ$21>=$AC33,AQ$21<=$AD33),IF($O$37>20000000,ROUNDDOWN(AQ$21*85/100,0)-485000,IF($O$37>10000000,ROUNDDOWN(AQ$21*85/100,0)-585000,ROUNDDOWN(AQ$21*85/100,0)-685000)),"")) ->  | AR33: =IF(AR$21="","",IF(AND(SUM(AR$22)<65,AR$21>=$AC33,AR$21<=$AD33),IF($O$39>20000000,ROUNDDOWN(AR$21*85/100,0)-485000,IF($O$39>10000000,ROUNDDOWN(AR$21*85/100,0)-585000,ROUNDDOWN(AR$21*85/100,0)-685000)),"")) -> 
AC34: =SUM(AD33,1) -> 7700000 | AD34: 9999999 | AE34: (Ａ)×95％－1,555,000円〈1,855,000〉《1,755,000》 | AI34: =IF(AI$21="","",IF(AND(SUM(AI$22)<65,AI$21>=$AC34,AI$21<=$AD34),IF($O$21>20000000,ROUNDDOWN(AI$21*95/100,0)-1255000,IF($O$21>10000000,ROUNDDOWN(AI$21*95/100,0)-1355000,ROUNDDOWN(AI$21*95/100,0)-1455000)),"")) ->  | AJ34: =IF(AJ$21="","",IF(AND(SUM(AJ$22)<65,AJ$21>=$AC34,AJ$21<=$AD34),IF($O$23>20000000,ROUNDDOWN(AJ$21*95/100,0)-1255000,IF($O$23>10000000,ROUNDDOWN(AJ$21*95/100,0)-1355000,ROUNDDOWN(AJ$21*95/100,0)-1455000)),"")) ->  | AK34: =IF(AK$21="","",IF(AND(SUM(AK$22)<65,AK$21>=$AC34,AK$21<=$AD34),IF($O$25>20000000,ROUNDDOWN(AK$21*95/100,0)-1255000,IF($O$25>10000000,ROUNDDOWN(AK$21*95/100,0)-1355000,ROUNDDOWN(AK$21*95/100,0)-1455000)),"")) ->  | AL34: =IF(AL$21="","",IF(AND(SUM(AL$22)<65,AL$21>=$AC34,AL$21<=$AD34),IF($O$27>20000000,ROUNDDOWN(AL$21*95/100,0)-1255000,IF($O$27>10000000,ROUNDDOWN(AL$21*95/100,0)-1355000,ROUNDDOWN(AL$21*95/100,0)-1455000)),"")) ->  | AM34: =IF(AM$21="","",IF(AND(SUM(AM$22)<65,AM$21>=$AC34,AM$21<=$AD34),IF($O$29>20000000,ROUNDDOWN(AM$21*95/100,0)-1255000,IF($O$29>10000000,ROUNDDOWN(AM$21*95/100,0)-1355000,ROUNDDOWN(AM$21*95/100,0)-1455000)),"")) ->  | AN34: =IF(AN$21="","",IF(AND(SUM(AN$22)<65,AN$21>=$AC34,AN$21<=$AD34),IF($O$31>20000000,ROUNDDOWN(AN$21*95/100,0)-1255000,IF($O$31>10000000,ROUNDDOWN(AN$21*95/100,0)-1355000,ROUNDDOWN(AN$21*95/100,0)-1455000)),"")) ->  | AO34: =IF(AO$21="","",IF(AND(SUM(AO$22)<65,AO$21>=$AC34,AO$21<=$AD34),IF($O$33>20000000,ROUNDDOWN(AO$21*95/100,0)-1255000,IF($O$33>10000000,ROUNDDOWN(AO$21*95/100,0)-1355000,ROUNDDOWN(AO$21*95/100,0)-1455000)),"")) ->  | AP34: =IF(AP$21="","",IF(AND(SUM(AP$22)<65,AP$21>=$AC34,AP$21<=$AD34),IF($O$35>20000000,ROUNDDOWN(AP$21*95/100,0)-1255000,IF($O$35>10000000,ROUNDDOWN(AP$21*95/100,0)-1355000,ROUNDDOWN(AP$21*95/100,0)-1455000)),"")) ->  | AQ34: =IF(AQ$21="","",IF(AND(SUM(AQ$22)<65,AQ$21>=$AC34,AQ$21<=$AD34),IF($O$37>20000000,ROUNDDOWN(AQ$21*95/100,0)-1255000,IF($O$37>10000000,ROUNDDOWN(AQ$21*95/100,0)-1355000,ROUNDDOWN(AQ$21*95/100,0)-1455000)),"")) ->  | AR34: =IF(AR$21="","",IF(AND(SUM(AR$22)<65,AR$21>=$AC34,AR$21<=$AD34),IF($O$39>20000000,ROUNDDOWN(AR$21*95/100,0)-1255000,IF($O$39>10000000,ROUNDDOWN(AR$21*95/100,0)-1355000,ROUNDDOWN(AR$21*95/100,0)-1455000)),"")) -> 
A35: 8 | D35: 年金所得に係る 雑所得以外の 合計所得金額 | O35: =入力!DJ20 -> 0 | AC35: 10000000 | AE35: (Ａ)－1,955,000円〈1,855,000〉《1,755,000》 | AI35: =IF(AI$21="","",IF(AND(SUM(AI$22)<65,AI$21>=$AC35),IF($O$21>20000000,MAX(AI21-1755000,0),IF($O$21>10000000,MAX(AI21-1855000,0),AI21-1955000)),"")) ->  | AJ35: =IF(AJ$21="","",IF(AND(SUM(AJ$22)<65,AJ$21>=$AC35),IF($O$23>20000000,MAX(AJ21-1755000,0),IF($O$23>10000000,MAX(AJ21-1855000,0),AJ21-1955000)),"")) ->  | AK35: =IF(AK$21="","",IF(AND(SUM(AK$22)<65,AK$21>=$AC35),IF($O$25>20000000,MAX(AK21-1755000,0),IF($O$25>10000000,MAX(AK21-1855000,0),AK21-1955000)),"")) ->  | AL35: =IF(AL$21="","",IF(AND(SUM(AL$22)<65,AL$21>=$AC35),IF($O$27>20000000,MAX(AL21-1755000,0),IF($O$27>10000000,MAX(AL21-1855000,0),AL21-1955000)),"")) ->  | AM35: =IF(AM$21="","",IF(AND(SUM(AM$22)<65,AM$21>=$AC35),IF($O$29>20000000,MAX(AM21-1755000,0),IF($O$29>10000000,MAX(AM21-1855000,0),AM21-1955000)),"")) ->  | AN35: =IF(AN$21="","",IF(AND(SUM(AN$22)<65,AN$21>=$AC35),IF($O$31>20000000,MAX(AN21-1755000,0),IF($O$31>10000000,MAX(AN21-1855000,0),AN21-1955000)),"")) ->  | AO35: =IF(AO$21="","",IF(AND(SUM(AO$22)<65,AO$21>=$AC35),IF($O$33>20000000,MAX(AO21-1755000,0),IF($O$33>10000000,MAX(AO21-1855000,0),AO21-1955000)),"")) ->  | AP35: =IF(AP$21="","",IF(AND(SUM(AP$22)<65,AP$21>=$AC35),IF($O$35>20000000,MAX(AP21-1755000,0),IF($O$35>10000000,MAX(AP21-1855000,0),AP21-1955000)),"")) ->  | AQ35: =IF(AQ$21="","",IF(AND(SUM(AQ$22)<65,AQ$21>=$AC35),IF($O$37>20000000,MAX(AQ21-1755000,0),IF($O$37>10000000,MAX(AQ21-1855000,0),AQ21-1955000)),"")) ->  | AR35: =IF(AR$21="","",IF(AND(SUM(AR$22)<65,AR$21>=$AC35),IF($O$39>20000000,MAX(AR21-1755000,0),IF($O$39>10000000,MAX(AR21-1855000,0),AR21-1955000)),"")) -> 
AB36: 軽減判定の際６５歳以上は，年金所得から１５万円引く ⇒ ⇒ ⇒ ⇒ ⇒ | AH36: =SUM(AI36:AR36) -> 0 | AI36: =IF(SUM(AI22)>=65,IF(SUM(AI23)>150000,150000,SUM(AI23)),"") ->  | AJ36: =IF(SUM(AJ22)>=65,IF(SUM(AJ23)>150000,150000,SUM(AJ23)),"") -> 
A37: 9 | D37: 年金所得に係る 雑所得以外の 合計所得金額 | O37: =入力!DJ21 -> 0
A39: 10 | D39: 年金所得に係る 雑所得以外の 合計所得金額 | O39: =入力!DJ22 -> 0

Sheet 軽減について (hidden)
B1: 軽減判定基準額（２・５・７割軽減）について
B2: １ 判定となる世帯の所得金額とは，擬主を含む世帯主，被保険者及び特定同一世帯所属者数の
B3: 所得の合計額
B4: ２ 国民健康保険に加入したまま，７５歳を迎えることにより後期高齢者医療制度へ移行した方
B5: を，特定同一世帯所属者と言います。
M6: 軽減判定対象 | S6: 所得割 計算対象 | V6: 備考
M8: 人数 | P8: 所得 | S8: 所得
D9: 世帯主（被保険者） | M9: ○ | P9: ○ | S9: ○
D11: 擬主 | M11: × | P11: ○ | S11: × | V11: 擬主は軽減判定の際，所得金額は関係するが，人数には入れない。
D13: その他被保険者 | M13: ○ | P13: ○ | S13: ○
D15: 特定同一世帯所属者 | M15: ○ | P15: ○ | S15: ×
D17: 専従者 給与（控除） | J17: 主 | M17: － | P17: ○ 収入 | S17: × | V17: 所得割：経費OR控除後 軽減：専従者給与収入金額を判定所得に入れる
J19: 専従者 | P19: × | S19: ○ | V19: 所得割：給与収入として給与所得が計算対象 軽減：対象外（対象所得に入れない）
D21: 損失の繰越控除 | J21: 純 | M21: － | P21: ○ | S21: × | V21: 所得割：繰越控除後，軽減：繰越控除後
J22: 雑 | P22: ○ | S22: ○ | V22: 所得割：繰越控除前，軽減：繰越控除後
B24: 特定世帯及び特定継続世帯の平等割額の軽減について
B25: １ 特定同一世帯所属者になられたことによって，国保加入者が一人になる世帯は，特定同一世
B26: 帯所属者になられた月から５年間，国民健康保険税のうち平等割額の２分の１が軽減されま
B27: す（特定世帯）。
B28: また，５年を経過した後も３年間，平等割額の４分の１が軽減されます（特定継続世帯）。
B30: 《２・５・７割軽減と特定世帯及び特定継続世帯の平等割額の軽減の例》
C31: 当年度 | L31: ８月
C32: 国保 | E32: Ａ 8月で75歳 | L32: 後期 高齢 | N32: Ａ | Q32: 特定同一世帯所属者 国民健康保険に加入したまま，７５歳を迎えることにより後期高齢者医療制度へ移行した方を，特定同一世帯所属者という。
E34: Ｂ 10月で74歳 | L34: 国保 | N34: Ｂ | Q34: ２・５・７割軽減の判定（4/1時点）～判定人数：Ａ・Ｂ・Ｃの３人 ※年度途中に特定同一世帯所属者が出ても再判定しない。 ※特定世帯及び特定継続世帯の平等割額の軽減にはならない。
E36: Ｃ 6月で60歳 | N36: Ｃ
E38: 年度当初は，３人が国保 | L38: ８月から２人が国保
C41: 次年度 | L41: 10月
C42: 国保 | E42: Ａ 8月で76歳 | L42: 後期 高齢 | N42: Ａ | Q42: 特定同一世帯所属者 国民健康保険に加入したまま，７５歳を迎えることにより後期高齢者医療制度へ移行した方を，特定同一世帯所属者という。
E44: Ｂ 10月で75歳 | N44: Ｂ
E46: Ｃ 6月で61歳 | L46: 国保 | N46: Ｃ | Q46: ２・５・７割軽減の判定（4/1時点）～判定人数：Ａ・Ｂ・Ｃの３人 ※年度途中に特定同一世帯所属者が出ても再判定しない。 Ａは昨年度に特定同一世帯所属者となったが，判定に含める。 ※特定世帯及び特定継続世帯の平等割額の軽減を受けることになる。
E48: 年度当初は，２人が国保，後期高齢は１人 | L48: １０月から１人のみ国保

Sheet 基礎控除 (hidden)
B2: 合計所得金額 | D2: 基礎控除額 | F2: 被保険者 | G2: 合計所得金額 | H2: 基礎控除額
B3: から | C3: まで | F3: 1 | G3: =IF(入力!DC13="","",入力!DC13) ->  | H3: =IF($G3="","",VLOOKUP($G3,$B$4:$D$7,3,TRUE)) -> 
B4: 0 | C4: 24000000 | D4: 430000 | F4: 2 | G4: =IF(入力!DC14="","",入力!DC14) ->  | H4: =IF($G4="","",VLOOKUP($G4,$B$4:$D$7,3,TRUE)) -> 
B5: =C4+1 -> 24000001 | C5: 24500000 | D5: 290000 | F5: 3 | G5: =IF(入力!DC15="","",入力!DC15) -> 
B6: =C5+1 -> 24500001 | C6: 25000000 | D6: 150000 | F6: 4 | G6: =IF(入力!DC16="","",入力!DC16) -> 
B7: =C6+1 -> 25000001 | D7: 0 | F7: 5 | G7: =IF(入力!DC17="","",入力!DC17) -> 
F8: 6 | G8: =IF(入力!DC18="","",入力!DC18) -> 
F9: 7 | G9: =IF(入力!DC19="","",入力!DC19) -> 
F10: 8 | G10: =IF(入力!DC20="","",入力!DC20) -> 
F11: 9 | G11: =IF(入力!DC21="","",入力!DC21) -> 
F12: 10 | G12: =IF(入力!DC22="","",入力!DC22) -> 

Sheet 未就学児 (hidden)
C2: =基本項目!E2 -> 未就学児 基準日 | D2: =基本項目!E3 -> 2026-04-01
B4: 被保険者 | C4: 生年月日 | D4: 年齢直接入力 | E4: 未就学児基準日の年齢 | F4: 未就学児 判定
B6: 1 | C6: =IF(入力!K13="","",入力!K13) ->  | D6: =IF(入力!U13="","",入力!U13) ->  | E6: =IF(AND(C6="",D6=""),"",IF(C6<>"",DATEDIF(C6,$D$2,"y"),D6)) ->  | F6: =IF(E6="","",IF(E6<=6,1,"")) -> 
B7: 2 | C7: =IF(入力!K14="","",入力!K14) ->  | D7: =IF(入力!U14="","",入力!U14) ->  | E7: =IF(AND(C7="",D7=""),"",IF(C7<>"",DATEDIF(C7,$D$2,"y"),D7)) ->  | F7: =IF(E7="","",IF(E7<=6,1,"")) -> 
B8: 3 | C8: =IF(入力!K15="","",入力!K15) ->  | D8: =IF(入力!U15="","",入力!U15) ->  | F8: =IF(E8="","",IF(E8<=6,1,"")) -> 
B9: 4 | C9: =IF(入力!K16="","",入力!K16) ->  | D9: =IF(入力!U16="","",入力!U16) -> 
B10: 5 | C10: =IF(入力!K17="","",入力!K17) ->  | D10: =IF(入力!U17="","",入力!U17) -> 
B11: 6 | C11: =IF(入力!K18="","",入力!K18) ->  | D11: =IF(入力!U18="","",入力!U18) -> 
B12: 7 | C12: =IF(入力!K19="","",入力!K19) ->  | D12: =IF(入力!U19="","",入力!U19) -> 
B13: 8 | C13: =IF(入力!K20="","",入力!K20) ->  | D13: =IF(入力!U20="","",入力!U20) -> 
B14: 9 | C14: =IF(入力!K21="","",入力!K21) ->  | D14: =IF(入力!U21="","",入力!U21) -> 
B15: 10 | C15: =IF(入力!K22="","",入力!K22) ->  | D15: =IF(入力!U22="","",入力!U22) -> 
